Body Name,Body,Date,Department,Beneficiary,Summary of Purpose (SeRCOP),Amount SUM,Merchant Code,Transaction Number,Supplier ID,,
Sandwell Metropolitan Borough Council,http://www.sandwell.gov.uk/info/200202/performance_and_spending/1079/payments_over_500,24-Mar-2023,Adult Social Care,CHARTER CARE,Adult Social Care,30264.88,Domiciliary Personal Budget,2223P12_CR00001,140789,,
Sandwell Metropolitan Borough Council,http://www.sandwell.gov.uk/info/200202/performance_and_spending/1079/payments_over_500,24-Mar-2023,Adult Social Care,CHERISH HOME CARE.,Adult Social Care,18306.08,Domiciliary Personal Budget,2223P12_CR00002,129034,,
Sandwell Metropolitan Borough Council,http://www.sandwell.gov.uk/info/200202/performance_and_spending/1079/payments_over_500,24-Mar-2023,Adult Social Care,CROSSROADS CARE ATTENDANT SCHEME (ASC),Adult Social Care,7755.82,Domiciliary Personal Budget,2223P12_CR00003,129040,,
Sandwell Metropolitan Borough Council,http://www.sandwell.gov.uk/info/200202/performance_and_spending/1079/payments_over_500,24-Mar-2023,Adult Social Care,DHC MIDLANDS LTD,Adult Social Care,29837.31,Domiciliary Personal Budget,2223P12_CR00004,140777,,
Sandwell Metropolitan Borough Council,http://www.sandwell.gov.uk/info/200202/performance_and_spending/1079/payments_over_500,24-Mar-2023,Adult Social Care,ELITE CARE 24/7 (ASC),Adult Social Care,30662.71,Domiciliary Personal Budget,2223P12_CR00005,132727,,
Sandwell Metropolitan Borough Council,http://www.sandwell.gov.uk/info/200202/performance_and_spending/1079/payments_over_500,24-Mar-2023,Adult Social Care,LONDON CARE PLC.,Adult Social Care,64597.60,Domiciliary Personal Budget,2223P12_CR00006,140255,,
Sandwell Metropolitan Borough Council,http://www.sandwell.gov.uk/info/200202/performance_and_spending/1079/payments_over_500,24-Mar-2023,Adult Social Care,SAGECARE LTD,Adult Social Care,31975.29,Domiciliary Personal Budget,2223P12_CR00007,140325,,
Sandwell Metropolitan Borough Council,http://www.sandwell.gov.uk/info/200202/performance_and_spending/1079/payments_over_500,24-Mar-2023,Adult Social Care,SMETHWICK ASRA PROJECT,Adult Social Care,15432.97,Domiciliary Personal Budget,2223P12_CR00008,08013341,,
Sandwell Metropolitan Borough Council,http://www.sandwell.gov.uk/info/200202/performance_and_spending/1079/payments_over_500,24-Mar-2023,Adult Social Care,TIPTON HOMECARE LIMITED.,Adult Social Care,22198.61,Domiciliary Personal Budget,2223P12_CR00009,140628,,
Sandwell Metropolitan Borough Council,http://www.sandwell.gov.uk/info/200202/performance_and_spending/1079/payments_over_500,24-Mar-2023,Adult Social Care,WEST BROMWICH AFRICAN CARRIBEAN RESOURCE CENTRE,Adult Social Care,16305.77,Domiciliary Personal Budget,2223P12_CR00010,140706,,
Sandwell Metropolitan Borough Council,http://www.sandwell.gov.uk/info/200202/performance_and_spending/1079/payments_over_500,01-Mar-2023,Adults Social Care Capital,AXIS EUROPE PLC        ,Adults Social Care Capital,15071.08,Deferred Charges/Grant Payments,2223P12_CR00011,64946,,
Sandwell Metropolitan Borough Council,http://www.sandwell.gov.uk/info/200202/performance_and_spending/1079/payments_over_500,07-Mar-2023,Adults Social Care Capital,AXIS EUROPE PLC        ,Adults Social Care Capital,8763.24,Deferred Charges/Grant Payments,2223P12_CR00012,64946,,
Sandwell Metropolitan Borough Council,http://www.sandwell.gov.uk/info/200202/performance_and_spending/1079/payments_over_500,01-Mar-2023,Adults Social Care Capital,DOLPHIN LIFTS MIDLANDS LTD,Adults Social Care Capital,2655.00,Deferred Charges/Grant Payments,2223P12_CR00013,123852,,
Sandwell Metropolitan Borough Council,http://www.sandwell.gov.uk/info/200202/performance_and_spending/1079/payments_over_500,06-Mar-2023,Adults Social Care Capital,DOLPHIN LIFTS MIDLANDS LTD,Adults Social Care Capital,1517.01,Deferred Charges/Grant Payments,2223P12_CR00014,123852,,
Sandwell Metropolitan Borough Council,http://www.sandwell.gov.uk/info/200202/performance_and_spending/1079/payments_over_500,01-Mar-2023,Adults Social Care Capital,DOLPHIN LIFTS MIDLANDS LTD,Adults Social Care Capital,3752.66,Deferred Charges/Grant Payments,2223P12_CR00015,123852,,
Sandwell Metropolitan Borough Council,http://www.sandwell.gov.uk/info/200202/performance_and_spending/1079/payments_over_500,20-Mar-2023,Adults Social Care Capital,DOLPHIN LIFTS MIDLANDS LTD,Adults Social Care Capital,2672.20,Deferred Charges/Grant Payments,2223P12_CR00016,123852,,
Sandwell Metropolitan Borough Council,http://www.sandwell.gov.uk/info/200202/performance_and_spending/1079/payments_over_500,01-Mar-2023,Adults Social Care Capital,LIFT & ENGINEERING SERVICES LTD,Adults Social Care Capital,1226.57,CIP - Fixtures & Fittings,2223P12_CR00017,77003962,,
Sandwell Metropolitan Borough Council,http://www.sandwell.gov.uk/info/200202/performance_and_spending/1079/payments_over_500,01-Mar-2023,Adults Social Care Capital,LIFT & ENGINEERING SERVICES LTD,Adults Social Care Capital,925.48,CIP - Fixtures & Fittings,2223P12_CR00018,77003962,,
Sandwell Metropolitan Borough Council,http://www.sandwell.gov.uk/info/200202/performance_and_spending/1079/payments_over_500,01-Mar-2023,Adults Social Care Capital,PR PROPERTY MAINTENANCE,Adults Social Care Capital,5275.00,Deferred Charges/Grant Payments,2223P12_CR00019,33836,,
Sandwell Metropolitan Borough Council,http://www.sandwell.gov.uk/info/200202/performance_and_spending/1079/payments_over_500,01-Mar-2023,Adults Social Care Capital,PR PROPERTY MAINTENANCE,Adults Social Care Capital,26990.93,Deferred Charges/Grant Payments,2223P12_CR00020,33836,,
Sandwell Metropolitan Borough Council,http://www.sandwell.gov.uk/info/200202/performance_and_spending/1079/payments_over_500,01-Mar-2023,Adults Social Care Capital,PR PROPERTY MAINTENANCE,Adults Social Care Capital,5472.95,Deferred Charges/Grant Payments,2223P12_CR00021,33836,,
Sandwell Metropolitan Borough Council,http://www.sandwell.gov.uk/info/200202/performance_and_spending/1079/payments_over_500,01-Mar-2023,Adults Social Care Capital,PR PROPERTY MAINTENANCE,Adults Social Care Capital,1240.04,Deferred Charges/Grant Payments,2223P12_CR00022,33836,,
Sandwell Metropolitan Borough Council,http://www.sandwell.gov.uk/info/200202/performance_and_spending/1079/payments_over_500,01-Mar-2023,Adults Social Care Capital,PR PROPERTY MAINTENANCE,Adults Social Care Capital,9581.03,Deferred Charges/Grant Payments,2223P12_CR00023,33836,,
Sandwell Metropolitan Borough Council,http://www.sandwell.gov.uk/info/200202/performance_and_spending/1079/payments_over_500,01-Mar-2023,Adults Social Care Capital,PR PROPERTY MAINTENANCE,Adults Social Care Capital,4942.47,Deferred Charges/Grant Payments,2223P12_CR00024,33836,,
Sandwell Metropolitan Borough Council,http://www.sandwell.gov.uk/info/200202/performance_and_spending/1079/payments_over_500,01-Mar-2023,Adults Social Care Capital,PR PROPERTY MAINTENANCE,Adults Social Care Capital,8510.78,Deferred Charges/Grant Payments,2223P12_CR00025,33836,,
Sandwell Metropolitan Borough Council,http://www.sandwell.gov.uk/info/200202/performance_and_spending/1079/payments_over_500,01-Mar-2023,Adults Social Care Capital,PR PROPERTY MAINTENANCE,Adults Social Care Capital,10950.91,Deferred Charges/Grant Payments,2223P12_CR00026,33836,,
Sandwell Metropolitan Borough Council,http://www.sandwell.gov.uk/info/200202/performance_and_spending/1079/payments_over_500,01-Mar-2023,Adults Social Care Capital,PR PROPERTY MAINTENANCE,Adults Social Care Capital,8032.18,Deferred Charges/Grant Payments,2223P12_CR00027,33836,,
Sandwell Metropolitan Borough Council,http://www.sandwell.gov.uk/info/200202/performance_and_spending/1079/payments_over_500,07-Mar-2023,Adults Social Care Capital,PR PROPERTY MAINTENANCE,Adults Social Care Capital,1065.79,Deferred Charges/Grant Payments,2223P12_CR00028,33836,,
Sandwell Metropolitan Borough Council,http://www.sandwell.gov.uk/info/200202/performance_and_spending/1079/payments_over_500,07-Mar-2023,Adults Social Care Capital,PR PROPERTY MAINTENANCE,Adults Social Care Capital,9347.43,Deferred Charges/Grant Payments,2223P12_CR00029,33836,,
Sandwell Metropolitan Borough Council,http://www.sandwell.gov.uk/info/200202/performance_and_spending/1079/payments_over_500,20-Mar-2023,Adults Social Care Capital,PR PROPERTY MAINTENANCE,Adults Social Care Capital,7018.44,Deferred Charges/Grant Payments,2223P12_CR00030,33836,,
Sandwell Metropolitan Borough Council,http://www.sandwell.gov.uk/info/200202/performance_and_spending/1079/payments_over_500,01-Mar-2023,Adults Social Care Capital,HOME DESIGN,Adults Social Care Capital,8883.15,Deferred Charges/Grant Payments,2223P12_CR00031,141847,,
Sandwell Metropolitan Borough Council,http://www.sandwell.gov.uk/info/200202/performance_and_spending/1079/payments_over_500,07-Mar-2023,Adults Social Care Capital,TDF DESIGN LIMITED,Adults Social Care Capital,8843.33,Deferred Charges/Grant Payments,2223P12_CR00032,10320,,
Sandwell Metropolitan Borough Council,http://www.sandwell.gov.uk/info/200202/performance_and_spending/1079/payments_over_500,01-Mar-2023,Adults Social Care Capital,TDF DESIGN LIMITED,Adults Social Care Capital,40000.00,Deferred Charges/Grant Payments,2223P12_CR00033,10320,,
Sandwell Metropolitan Borough Council,http://www.sandwell.gov.uk/info/200202/performance_and_spending/1079/payments_over_500,01-Mar-2023,Childrens Services,ABRAXAS CATERING EQUIPMENT LTD,Childrens Services,838.88,Equipment & Furniture ,2223P12_CR00034,124644,,
Sandwell Metropolitan Borough Council,http://www.sandwell.gov.uk/info/200202/performance_and_spending/1079/payments_over_500,14-Mar-2023,Childrens Services,ADCS LTD,Childrens Services,3726.00,SH Payments,2223P12_CR00035,3146,,
Sandwell Metropolitan Borough Council,http://www.sandwell.gov.uk/info/200202/performance_and_spending/1079/payments_over_500,01-Mar-2023,Childrens Services,AFJ LIMITED,Childrens Services,35426.42,Public Transport,2223P12_CR00036,164912,,
Sandwell Metropolitan Borough Council,http://www.sandwell.gov.uk/info/200202/performance_and_spending/1079/payments_over_500,01-Mar-2023,Childrens Services,AMP BIOMASS FUEL LTD T/A AMP CLEAN ENERGY,Childrens Services,4006.37,Ingestre Hall Arts Centre.Energy Costs-Bio Energy Costs.Bio Mass Fuel.0.0.Sandwell MBC,2223P12_CR00037,128761,,
Sandwell Metropolitan Borough Council,http://www.sandwell.gov.uk/info/200202/performance_and_spending/1079/payments_over_500,01-Mar-2023,Childrens Services,AMP BIOMASS FUEL LTD T/A AMP CLEAN ENERGY,Childrens Services,4439.96,Ingestre Hall Arts Centre.Energy Costs-Bio Energy Costs.Bio Mass Fuel.0.0.Sandwell MBC,2223P12_CR00038,128761,,
Sandwell Metropolitan Borough Council,http://www.sandwell.gov.uk/info/200202/performance_and_spending/1079/payments_over_500,01-Mar-2023,Childrens Services,APD PRINT & DESIGN,Childrens Services,2840.00,"Printing, Stationery & General Office Expenses",2223P12_CR00039,49454,,
Sandwell Metropolitan Borough Council,http://www.sandwell.gov.uk/info/200202/performance_and_spending/1079/payments_over_500,08-Mar-2023,Childrens Services,APD PRINT & DESIGN,Childrens Services,1240.00,"Printing, Stationery & General Office Expenses",2223P12_CR00040,49454,,
Sandwell Metropolitan Borough Council,http://www.sandwell.gov.uk/info/200202/performance_and_spending/1079/payments_over_500,09-Mar-2023,Childrens Services,AVANTI GAS LIMITED,Childrens Services,1946.99,Gas,2223P12_CR00041,60069,,
Sandwell Metropolitan Borough Council,http://www.sandwell.gov.uk/info/200202/performance_and_spending/1079/payments_over_500,28-Mar-2023,Childrens Services,BIRMINGHAM CITY COUNCIL,Childrens Services,19040.00,External Contract Hire,2223P12_CR00042,01622521,,
Sandwell Metropolitan Borough Council,http://www.sandwell.gov.uk/info/200202/performance_and_spending/1079/payments_over_500,28-Mar-2023,Childrens Services,BIRMINGHAM CITY COUNCIL,Childrens Services,960.00,External Contract Hire,2223P12_CR00043,01622521,,
Sandwell Metropolitan Borough Council,http://www.sandwell.gov.uk/info/200202/performance_and_spending/1079/payments_over_500,28-Mar-2023,Childrens Services,BIRMINGHAM CITY COUNCIL,Childrens Services,3090.00,External Contract Hire,2223P12_CR00044,01622521,,
Sandwell Metropolitan Borough Council,http://www.sandwell.gov.uk/info/200202/performance_and_spending/1079/payments_over_500,28-Mar-2023,Childrens Services,BIRMINGHAM CITY COUNCIL,Childrens Services,3900.00,External Contract Hire,2223P12_CR00045,01622521,,
Sandwell Metropolitan Borough Council,http://www.sandwell.gov.uk/info/200202/performance_and_spending/1079/payments_over_500,03-Mar-2023,Childrens Services,BLAKEMORE FOOD SERVICE LTD,Childrens Services,568.43,Catering Provisions,2223P12_CR00046,2518,,
Sandwell Metropolitan Borough Council,http://www.sandwell.gov.uk/info/200202/performance_and_spending/1079/payments_over_500,01-Mar-2023,Childrens Services,BLAKEMORE FOOD SERVICE LTD,Childrens Services,502.58,Catering Provisions,2223P12_CR00047,2518,,
Sandwell Metropolitan Borough Council,http://www.sandwell.gov.uk/info/200202/performance_and_spending/1079/payments_over_500,01-Mar-2023,Childrens Services,BRISTNALL HALL ACADEMY,Childrens Services,650.00,Equipment & Furniture ,2223P12_CR00048,107471,,
Sandwell Metropolitan Borough Council,http://www.sandwell.gov.uk/info/200202/performance_and_spending/1079/payments_over_500,16-Mar-2023,Childrens Services,CALOR GAS LTD,Childrens Services,1661.92,Gas,2223P12_CR00049,01562564,,
Sandwell Metropolitan Borough Council,http://www.sandwell.gov.uk/info/200202/performance_and_spending/1079/payments_over_500,09-Mar-2023,Childrens Services,CASTELL HOWELL FOODS LTD,Childrens Services,568.37,Catering Provisions,2223P12_CR00050,163660,,
Sandwell Metropolitan Borough Council,http://www.sandwell.gov.uk/info/200202/performance_and_spending/1079/payments_over_500,09-Mar-2023,Childrens Services,CASTELL HOWELL FOODS LTD,Childrens Services,648.16,Catering Provisions,2223P12_CR00051,163660,,
Sandwell Metropolitan Borough Council,http://www.sandwell.gov.uk/info/200202/performance_and_spending/1079/payments_over_500,01-Mar-2023,Childrens Services,CASTELL HOWELL FOODS LTD,Childrens Services,559.39,Catering Provisions,2223P12_CR00052,163660,,
Sandwell Metropolitan Borough Council,http://www.sandwell.gov.uk/info/200202/performance_and_spending/1079/payments_over_500,21-Mar-2023,Childrens Services,CASTELL HOWELL FOODS LTD,Childrens Services,651.68,Catering Provisions,2223P12_CR00053,163660,,
Sandwell Metropolitan Borough Council,http://www.sandwell.gov.uk/info/200202/performance_and_spending/1079/payments_over_500,17-Mar-2023,Childrens Services,CHRIST CHURCH C OF E PRIMARY SCHOOL,Childrens Services,500.00,Grants,2223P12_CR00054,1705,,
Sandwell Metropolitan Borough Council,http://www.sandwell.gov.uk/info/200202/performance_and_spending/1079/payments_over_500,01-Mar-2023,Childrens Services,CITIZENS ADVICE SANDWELL & WALSALL,Childrens Services,4043.00,Externally Purchased Professional Services ,2223P12_CR00055,01760899,,
Sandwell Metropolitan Borough Council,http://www.sandwell.gov.uk/info/200202/performance_and_spending/1079/payments_over_500,01-Mar-2023,Childrens Services,CITIZENS ADVICE SANDWELL & WALSALL,Childrens Services,3032.25,Externally Purchased Professional Services ,2223P12_CR00056,01760899,,
Sandwell Metropolitan Borough Council,http://www.sandwell.gov.uk/info/200202/performance_and_spending/1079/payments_over_500,01-Mar-2023,Childrens Services,CITIZENS ADVICE SANDWELL & WALSALL,Childrens Services,4043.00,Externally Purchased Professional Services ,2223P12_CR00057,01760899,,
Sandwell Metropolitan Borough Council,http://www.sandwell.gov.uk/info/200202/performance_and_spending/1079/payments_over_500,01-Mar-2023,Childrens Services,CITIZENS ADVICE SANDWELL & WALSALL,Childrens Services,941.16,Externally Purchased Professional Services ,2223P12_CR00058,01760899,,
Sandwell Metropolitan Borough Council,http://www.sandwell.gov.uk/info/200202/performance_and_spending/1079/payments_over_500,01-Mar-2023,Childrens Services,CITIZENS ADVICE SANDWELL & WALSALL,Childrens Services,1882.00,Rents,2223P12_CR00059,01760899,,
Sandwell Metropolitan Borough Council,http://www.sandwell.gov.uk/info/200202/performance_and_spending/1079/payments_over_500,08-Mar-2023,Childrens Services,CITIZENS ADVICE SANDWELL & WALSALL,Childrens Services,2823.00,Rents,2223P12_CR00060,01760899,,
Sandwell Metropolitan Borough Council,http://www.sandwell.gov.uk/info/200202/performance_and_spending/1079/payments_over_500,01-Mar-2023,Childrens Services,CORONA ENERGY RETAIL 2 LIMITED,Childrens Services,1283.86,Gas,2223P12_CR00061,118395,,
Sandwell Metropolitan Borough Council,http://www.sandwell.gov.uk/info/200202/performance_and_spending/1079/payments_over_500,01-Mar-2023,Childrens Services,COUNTY CARS (2003) LIMITED,Childrens Services,354292.56,Public Transport,2223P12_CR00062,06002387,,
Sandwell Metropolitan Borough Council,http://www.sandwell.gov.uk/info/200202/performance_and_spending/1079/payments_over_500,24-Mar-2023,Childrens Services,COUNTY CARS (2003) LIMITED,Childrens Services,47659.67,Public Transport,2223P12_CR00063,06002387,,
Sandwell Metropolitan Borough Council,http://www.sandwell.gov.uk/info/200202/performance_and_spending/1079/payments_over_500,24-Mar-2023,Childrens Services,COUNTY CARS (2003) LIMITED,Childrens Services,189353.70,Public Transport,2223P12_CR00064,06002387,,
Sandwell Metropolitan Borough Council,http://www.sandwell.gov.uk/info/200202/performance_and_spending/1079/payments_over_500,24-Mar-2023,Childrens Services,COUNTY CARS (2003) LIMITED,Childrens Services,134694.17,Public Transport,2223P12_CR00065,06002387,,
Sandwell Metropolitan Borough Council,http://www.sandwell.gov.uk/info/200202/performance_and_spending/1079/payments_over_500,24-Mar-2023,Childrens Services,COUNTY CARS (2003) LIMITED,Childrens Services,84022.13,Public Transport,2223P12_CR00066,06002387,,
Sandwell Metropolitan Borough Council,http://www.sandwell.gov.uk/info/200202/performance_and_spending/1079/payments_over_500,24-Mar-2023,Childrens Services,COUNTY CARS (2003) LIMITED,Childrens Services,102387.98,Public Transport,2223P12_CR00067,06002387,,
Sandwell Metropolitan Borough Council,http://www.sandwell.gov.uk/info/200202/performance_and_spending/1079/payments_over_500,24-Mar-2023,Childrens Services,COUNTY CARS (2003) LIMITED,Childrens Services,29300.86,Public Transport,2223P12_CR00068,06002387,,
Sandwell Metropolitan Borough Council,http://www.sandwell.gov.uk/info/200202/performance_and_spending/1079/payments_over_500,01-Mar-2023,Childrens Services,DROACH TRAVEL LTD,Childrens Services,62044.48,Public Transport,2223P12_CR00069,06002707,,
Sandwell Metropolitan Borough Council,http://www.sandwell.gov.uk/info/200202/performance_and_spending/1079/payments_over_500,01-Mar-2023,Childrens Services,DROACH TRAVEL LTD,Childrens Services,62044.48,Public Transport,2223P12_CR00070,06002707,,
Sandwell Metropolitan Borough Council,http://www.sandwell.gov.uk/info/200202/performance_and_spending/1079/payments_over_500,28-Mar-2023,Childrens Services,DUDLEY MBC,Childrens Services,5766.00,External Contract Hire,2223P12_CR00071,01349846,,
Sandwell Metropolitan Borough Council,http://www.sandwell.gov.uk/info/200202/performance_and_spending/1079/payments_over_500,28-Mar-2023,Childrens Services,DUDLEY MBC,Childrens Services,4924.80,External Contract Hire,2223P12_CR00072,01349846,,
Sandwell Metropolitan Borough Council,http://www.sandwell.gov.uk/info/200202/performance_and_spending/1079/payments_over_500,28-Mar-2023,Childrens Services,DUDLEY MBC,Childrens Services,5301.00,External Contract Hire,2223P12_CR00073,01349846,,
Sandwell Metropolitan Borough Council,http://www.sandwell.gov.uk/info/200202/performance_and_spending/1079/payments_over_500,28-Mar-2023,Childrens Services,DUDLEY MBC,Childrens Services,4924.80,External Contract Hire,2223P12_CR00074,01349846,,
Sandwell Metropolitan Borough Council,http://www.sandwell.gov.uk/info/200202/performance_and_spending/1079/payments_over_500,28-Mar-2023,Childrens Services,DUDLEY MBC,Childrens Services,6700.00,External Contract Hire,2223P12_CR00075,01349846,,
Sandwell Metropolitan Borough Council,http://www.sandwell.gov.uk/info/200202/performance_and_spending/1079/payments_over_500,01-Mar-2023,Childrens Services,DUDLEY MBC,Childrens Services,33487.95,Grants,2223P12_CR00076,01349846,,
Sandwell Metropolitan Borough Council,http://www.sandwell.gov.uk/info/200202/performance_and_spending/1079/payments_over_500,01-Mar-2023,Childrens Services,DUDLEY MBC,Childrens Services,19793.22,Grants,2223P12_CR00077,01349846,,
Sandwell Metropolitan Borough Council,http://www.sandwell.gov.uk/info/200202/performance_and_spending/1079/payments_over_500,01-Mar-2023,Childrens Services,DUDLEY MBC,Childrens Services,1960.58,Grants,2223P12_CR00078,01349846,,
Sandwell Metropolitan Borough Council,http://www.sandwell.gov.uk/info/200202/performance_and_spending/1079/payments_over_500,28-Mar-2023,Childrens Services,DUDLEY MBC,Childrens Services,782.82,Grants,2223P12_CR00079,01349846,,
Sandwell Metropolitan Borough Council,http://www.sandwell.gov.uk/info/200202/performance_and_spending/1079/payments_over_500,01-Mar-2023,Childrens Services,DUDLEY MBC,Childrens Services,2314.45,Grants,2223P12_CR00080,01349846,,
Sandwell Metropolitan Borough Council,http://www.sandwell.gov.uk/info/200202/performance_and_spending/1079/payments_over_500,01-Mar-2023,Childrens Services,DUDLEY MBC,Childrens Services,5193.82,Grants,2223P12_CR00081,01349846,,
Sandwell Metropolitan Borough Council,http://www.sandwell.gov.uk/info/200202/performance_and_spending/1079/payments_over_500,01-Mar-2023,Childrens Services,DWP,Childrens Services,5921.70,Grant Payments,2223P12_CR00082,01753867,,
Sandwell Metropolitan Borough Council,http://www.sandwell.gov.uk/info/200202/performance_and_spending/1079/payments_over_500,01-Mar-2023,Childrens Services,EDUFOCUS LIMITED,Childrens Services,6049.00,Subscriptions,2223P12_CR00083,102238,,
Sandwell Metropolitan Borough Council,http://www.sandwell.gov.uk/info/200202/performance_and_spending/1079/payments_over_500,01-Mar-2023,Childrens Services,EMILE HOLBA PHOTOGRAPHY,Childrens Services,8000.00,Externally Purchased Professional Services ,2223P12_CR00084,165304,,
Sandwell Metropolitan Borough Council,http://www.sandwell.gov.uk/info/200202/performance_and_spending/1079/payments_over_500,01-Mar-2023,Childrens Services,ENTRE PRISES (UK) LTD,Childrens Services,662.00,Equipment & Furniture ,2223P12_CR00085,01672377,,
Sandwell Metropolitan Borough Council,http://www.sandwell.gov.uk/info/200202/performance_and_spending/1079/payments_over_500,06-Mar-2023,Childrens Services,EON NEXT ENERGY LTD,Childrens Services,740.65,Electricity,2223P12_CR00086,149566,,
Sandwell Metropolitan Borough Council,http://www.sandwell.gov.uk/info/200202/performance_and_spending/1079/payments_over_500,01-Mar-2023,Childrens Services,EURO SHAF TRAINING SERVICES LIMITED,Childrens Services,901.00,Externally Purchased Professional Services ,2223P12_CR00087,76260,,
Sandwell Metropolitan Borough Council,http://www.sandwell.gov.uk/info/200202/performance_and_spending/1079/payments_over_500,10-Mar-2023,Childrens Services,EURO SHAF TRAINING SERVICES LIMITED,Childrens Services,901.00,Externally Purchased Professional Services ,2223P12_CR00088,76260,,
Sandwell Metropolitan Borough Council,http://www.sandwell.gov.uk/info/200202/performance_and_spending/1079/payments_over_500,01-Mar-2023,Childrens Services,FFT EDUCATION LIMITED,Childrens Services,71849.26,ICT ,2223P12_CR00089,91550,,
Sandwell Metropolitan Borough Council,http://www.sandwell.gov.uk/info/200202/performance_and_spending/1079/payments_over_500,08-Mar-2023,Childrens Services,FIRST RESPONSE (FIRST AID) LTD,Childrens Services,905.00,Externally Purchased Professional Services ,2223P12_CR00090,57372,,
Sandwell Metropolitan Borough Council,http://www.sandwell.gov.uk/info/200202/performance_and_spending/1079/payments_over_500,01-Mar-2023,Childrens Services,FIRST RESPONSE (FIRST AID) LTD,Childrens Services,850.00,Externally Purchased Professional Services ,2223P12_CR00091,57372,,
Sandwell Metropolitan Borough Council,http://www.sandwell.gov.uk/info/200202/performance_and_spending/1079/payments_over_500,01-Mar-2023,Childrens Services,FUTURE FIRST INDEPENDENT SCHOOL,Childrens Services,1950.00,External Contract Hire,2223P12_CR00092,106165,,
Sandwell Metropolitan Borough Council,http://www.sandwell.gov.uk/info/200202/performance_and_spending/1079/payments_over_500,01-Mar-2023,Childrens Services,FUTURE FIRST INDEPENDENT SCHOOL,Childrens Services,1950.00,External Contract Hire,2223P12_CR00093,106165,,
Sandwell Metropolitan Borough Council,http://www.sandwell.gov.uk/info/200202/performance_and_spending/1079/payments_over_500,01-Mar-2023,Childrens Services,GEL DATA SOLUTIONS LIMITED,Childrens Services,828.00,ICT ,2223P12_CR00094,88332,,
Sandwell Metropolitan Borough Council,http://www.sandwell.gov.uk/info/200202/performance_and_spending/1079/payments_over_500,01-Mar-2023,Childrens Services,GLEBEFIELDS PRIMARY SCHOOL     ,Childrens Services,1500.00,Grants,2223P12_CR00095,01782689,,
Sandwell Metropolitan Borough Council,http://www.sandwell.gov.uk/info/200202/performance_and_spending/1079/payments_over_500,01-Mar-2023,Childrens Services,GLEBEFIELDS PRIMARY SCHOOL      ,Childrens Services,1500.00,Grants,2223P12_CR00096,01782689,,
Sandwell Metropolitan Borough Council,http://www.sandwell.gov.uk/info/200202/performance_and_spending/1079/payments_over_500,24-Mar-2023,Childrens Services,GREEN DESTINATIONS LTD,Childrens Services,122877.75,Public Transport,2223P12_CR00097,109275,,
Sandwell Metropolitan Borough Council,http://www.sandwell.gov.uk/info/200202/performance_and_spending/1079/payments_over_500,01-Mar-2023,Childrens Services,GROUNDWORK WEST MIDLANDS,Childrens Services,2985.02,Externally Purchased Professional Services ,2223P12_CR00098,92743,,
Sandwell Metropolitan Borough Council,http://www.sandwell.gov.uk/info/200202/performance_and_spending/1079/payments_over_500,01-Mar-2023,Childrens Services,HANBURY PRIMARY SCHOOL,Childrens Services,1500.00,Grants,2223P12_CR00099,01734408,,
Sandwell Metropolitan Borough Council,http://www.sandwell.gov.uk/info/200202/performance_and_spending/1079/payments_over_500,02-Mar-2023,Childrens Services,HANBURY PRIMARY SCHOOL,Childrens Services,1500.00,Grants,2223P12_CR00100,01734408,,
Sandwell Metropolitan Borough Council,http://www.sandwell.gov.uk/info/200202/performance_and_spending/1079/payments_over_500,02-Mar-2023,Childrens Services,HANBURY PRIMARY SCHOOL,Childrens Services,1500.00,Grants,2223P12_CR00101,01734408,,
Sandwell Metropolitan Borough Council,http://www.sandwell.gov.uk/info/200202/performance_and_spending/1079/payments_over_500,02-Mar-2023,Childrens Services,HANBURY PRIMARY SCHOOL,Childrens Services,1500.00,Grants,2223P12_CR00102,01734408,,
Sandwell Metropolitan Borough Council,http://www.sandwell.gov.uk/info/200202/performance_and_spending/1079/payments_over_500,16-Mar-2023,Childrens Services,HANBURY PRIMARY SCHOOL,Childrens Services,500.00,Grants,2223P12_CR00103,01734408,,
Sandwell Metropolitan Borough Council,http://www.sandwell.gov.uk/info/200202/performance_and_spending/1079/payments_over_500,16-Mar-2023,Childrens Services,HANBURY PRIMARY SCHOOL,Childrens Services,500.00,Grants,2223P12_CR00104,01734408,,
Sandwell Metropolitan Borough Council,http://www.sandwell.gov.uk/info/200202/performance_and_spending/1079/payments_over_500,01-Mar-2023,Childrens Services,HARGATE PRIMARY SCHOOL,Childrens Services,1500.00,Grants,2223P12_CR00105,04010481,,
Sandwell Metropolitan Borough Council,http://www.sandwell.gov.uk/info/200202/performance_and_spending/1079/payments_over_500,07-Mar-2023,Childrens Services,HARGATE PRIMARY SCHOOL,Childrens Services,1500.00,Grants,2223P12_CR00106,04010481,,
Sandwell Metropolitan Borough Council,http://www.sandwell.gov.uk/info/200202/performance_and_spending/1079/payments_over_500,22-Mar-2023,Childrens Services,HARGATE PRIMARY SCHOOL,Childrens Services,500.00,Grants,2223P12_CR00107,04010481,,
Sandwell Metropolitan Borough Council,http://www.sandwell.gov.uk/info/200202/performance_and_spending/1079/payments_over_500,22-Mar-2023,Childrens Services,HARGATE PRIMARY SCHOOL,Childrens Services,500.00,Grants,2223P12_CR00108,04010481,,
Sandwell Metropolitan Borough Council,http://www.sandwell.gov.uk/info/200202/performance_and_spending/1079/payments_over_500,22-Mar-2023,Childrens Services,HARGATE PRIMARY SCHOOL,Childrens Services,500.00,Grants,2223P12_CR00109,04010481,,
Sandwell Metropolitan Borough Council,http://www.sandwell.gov.uk/info/200202/performance_and_spending/1079/payments_over_500,01-Mar-2023,Childrens Services,HEART & SOUL COMMUNITY CIC LTD,Childrens Services,1074.28,Externally Purchased Professional Services ,2223P12_CR00110,133378,,
Sandwell Metropolitan Borough Council,http://www.sandwell.gov.uk/info/200202/performance_and_spending/1079/payments_over_500,01-Mar-2023,Childrens Services,HEART & SOUL COMMUNITY CIC LTD,Childrens Services,1048.24,Externally Purchased Professional Services ,2223P12_CR00111,133378,,
Sandwell Metropolitan Borough Council,http://www.sandwell.gov.uk/info/200202/performance_and_spending/1079/payments_over_500,01-Mar-2023,Childrens Services,HEART & SOUL COMMUNITY CIC LTD,Childrens Services,1074.28,Externally Purchased Professional Services ,2223P12_CR00112,133378,,
Sandwell Metropolitan Borough Council,http://www.sandwell.gov.uk/info/200202/performance_and_spending/1079/payments_over_500,01-Mar-2023,Childrens Services,HEART & SOUL COMMUNITY CIC LTD,Childrens Services,1074.28,Externally Purchased Professional Services ,2223P12_CR00113,133378,,
Sandwell Metropolitan Borough Council,http://www.sandwell.gov.uk/info/200202/performance_and_spending/1079/payments_over_500,01-Mar-2023,Childrens Services,HEART & SOUL COMMUNITY CIC LTD,Childrens Services,1074.28,Externally Purchased Professional Services ,2223P12_CR00114,133378,,
Sandwell Metropolitan Borough Council,http://www.sandwell.gov.uk/info/200202/performance_and_spending/1079/payments_over_500,01-Mar-2023,Childrens Services,HEART & SOUL COMMUNITY CIC LTD,Childrens Services,1074.28,Externally Purchased Professional Services ,2223P12_CR00115,133378,,
Sandwell Metropolitan Borough Council,http://www.sandwell.gov.uk/info/200202/performance_and_spending/1079/payments_over_500,01-Mar-2023,Childrens Services,HEART & SOUL COMMUNITY CIC LTD,Childrens Services,1074.28,Externally Purchased Professional Services ,2223P12_CR00116,133378,,
Sandwell Metropolitan Borough Council,http://www.sandwell.gov.uk/info/200202/performance_and_spending/1079/payments_over_500,01-Mar-2023,Childrens Services,HEART & SOUL COMMUNITY CIC LTD,Childrens Services,1074.28,Externally Purchased Professional Services ,2223P12_CR00117,133378,,
Sandwell Metropolitan Borough Council,http://www.sandwell.gov.uk/info/200202/performance_and_spending/1079/payments_over_500,01-Mar-2023,Childrens Services,HEART & SOUL COMMUNITY CIC LTD,Childrens Services,1074.28,Externally Purchased Professional Services ,2223P12_CR00118,133378,,
Sandwell Metropolitan Borough Council,http://www.sandwell.gov.uk/info/200202/performance_and_spending/1079/payments_over_500,01-Mar-2023,Childrens Services,HEART & SOUL COMMUNITY CIC LTD,Childrens Services,1074.28,Externally Purchased Professional Services ,2223P12_CR00119,133378,,
Sandwell Metropolitan Borough Council,http://www.sandwell.gov.uk/info/200202/performance_and_spending/1079/payments_over_500,24-Mar-2023,Childrens Services,HER MAJESTYS PRISON AND PROBATION SERVICE,Childrens Services,8596.00,Other Establishments,2223P12_CR00120,134815,,
Sandwell Metropolitan Borough Council,http://www.sandwell.gov.uk/info/200202/performance_and_spending/1079/payments_over_500,24-Mar-2023,Childrens Services,HER MAJESTYS PRISON AND PROBATION SERVICE,Childrens Services,23870.00,Other Establishments,2223P12_CR00121,134815,,
Sandwell Metropolitan Borough Council,http://www.sandwell.gov.uk/info/200202/performance_and_spending/1079/payments_over_500,24-Mar-2023,Childrens Services,HER MAJESTYS PRISON AND PROBATION SERVICE,Childrens Services,9517.00,Other Establishments,2223P12_CR00122,134815,,
Sandwell Metropolitan Borough Council,http://www.sandwell.gov.uk/info/200202/performance_and_spending/1079/payments_over_500,24-Mar-2023,Childrens Services,HER MAJESTYS PRISON AND PROBATION SERVICE,Childrens Services,9517.00,Other Establishments,2223P12_CR00123,134815,,
Sandwell Metropolitan Borough Council,http://www.sandwell.gov.uk/info/200202/performance_and_spending/1079/payments_over_500,24-Mar-2023,Childrens Services,HER MAJESTYS PRISON AND PROBATION SERVICE,Childrens Services,21560.00,Other Establishments,2223P12_CR00124,134815,,
Sandwell Metropolitan Borough Council,http://www.sandwell.gov.uk/info/200202/performance_and_spending/1079/payments_over_500,24-Mar-2023,Childrens Services,HER MAJESTYS PRISON AND PROBATION SERVICE,Childrens Services,2456.00,Other Establishments,2223P12_CR00125,134815,,
Sandwell Metropolitan Borough Council,http://www.sandwell.gov.uk/info/200202/performance_and_spending/1079/payments_over_500,24-Mar-2023,Childrens Services,HER MAJESTYS PRISON AND PROBATION SERVICE,Childrens Services,8596.00,Other Establishments,2223P12_CR00126,134815,,
Sandwell Metropolitan Borough Council,http://www.sandwell.gov.uk/info/200202/performance_and_spending/1079/payments_over_500,02-Mar-2023,Childrens Services,HILL INTERIOR CONTRACTS LTD,Childrens Services,2988.00,Building Maintenance & Improvements,2223P12_CR00127,17158,,
Sandwell Metropolitan Borough Council,http://www.sandwell.gov.uk/info/200202/performance_and_spending/1079/payments_over_500,01-Mar-2023,Childrens Services,IDOX SOFTWARE LTD,Childrens Services,33750.00,Externally Purchased Professional Services ,2223P12_CR00128,17007,,
Sandwell Metropolitan Borough Council,http://www.sandwell.gov.uk/info/200202/performance_and_spending/1079/payments_over_500,01-Mar-2023,Childrens Services,INGESTRE ORANGERY AND GARDENS,Childrens Services,650.00,Materials & Consumables,2223P12_CR00129,127331,,
Sandwell Metropolitan Borough Council,http://www.sandwell.gov.uk/info/200202/performance_and_spending/1079/payments_over_500,01-Mar-2023,Childrens Services,IRON MAIDENS COMMERCIAL LAUNDRY LIMITED,Childrens Services,1199.90,Laundry,2223P12_CR00130,124628,,
Sandwell Metropolitan Borough Council,http://www.sandwell.gov.uk/info/200202/performance_and_spending/1079/payments_over_500,20-Mar-2023,Childrens Services,JOHN PRICE PRINTERS LIMITED,Childrens Services,1800.00,"Printing, Stationery & General Office Expenses",2223P12_CR00131,111986,,
Sandwell Metropolitan Borough Council,http://www.sandwell.gov.uk/info/200202/performance_and_spending/1079/payments_over_500,02-Mar-2023,Childrens Services,LOCAL EDUCATION AND DEVELOPMENT,Childrens Services,1413.75,Discretionary Awards,2223P12_CR00132,148259,,
Sandwell Metropolitan Borough Council,http://www.sandwell.gov.uk/info/200202/performance_and_spending/1079/payments_over_500,11-Mar-2023,Childrens Services,MAJOR COACHWAYS LIMITED,Childrens Services,950.00,Equipment & Furniture ,2223P12_CR00133,06003722,,
Sandwell Metropolitan Borough Council,http://www.sandwell.gov.uk/info/200202/performance_and_spending/1079/payments_over_500,01-Mar-2023,Childrens Services,MITRE FURNISHING GROUP LTD,Childrens Services,1145.14,Equipment & Furniture ,2223P12_CR00134,01784799,,
Sandwell Metropolitan Borough Council,http://www.sandwell.gov.uk/info/200202/performance_and_spending/1079/payments_over_500,16-Mar-2023,Childrens Services,NATIONAL CHILDRENS BUREAU,Childrens Services,960.00,Externally Purchased Professional Services ,2223P12_CR00135,01612311,,
Sandwell Metropolitan Borough Council,http://www.sandwell.gov.uk/info/200202/performance_and_spending/1079/payments_over_500,16-Mar-2023,Childrens Services,NATIONAL CHILDRENS BUREAU,Childrens Services,1740.00,Externally Purchased Professional Services ,2223P12_CR00136,01612311,,
Sandwell Metropolitan Borough Council,http://www.sandwell.gov.uk/info/200202/performance_and_spending/1079/payments_over_500,16-Mar-2023,Childrens Services,NATIONAL CHILDRENS BUREAU,Childrens Services,1740.00,Externally Purchased Professional Services ,2223P12_CR00137,01612311,,
Sandwell Metropolitan Borough Council,http://www.sandwell.gov.uk/info/200202/performance_and_spending/1079/payments_over_500,22-Mar-2023,Childrens Services,NEW BEGINNINGS COMMUNITY,Childrens Services,585.00,Hire of Facilities,2223P12_CR00138,155886,,
Sandwell Metropolitan Borough Council,http://www.sandwell.gov.uk/info/200202/performance_and_spending/1079/payments_over_500,24-Mar-2023,Childrens Services,NEW BEGINNINGS COMMUNITY,Childrens Services,900.00,Hire of Facilities,2223P12_CR00139,155886,,
Sandwell Metropolitan Borough Council,http://www.sandwell.gov.uk/info/200202/performance_and_spending/1079/payments_over_500,01-Mar-2023,Childrens Services,NEWAVE LTD,Childrens Services,999.87,Agency Staff,2223P12_CR00140,101666,,
Sandwell Metropolitan Borough Council,http://www.sandwell.gov.uk/info/200202/performance_and_spending/1079/payments_over_500,01-Mar-2023,Childrens Services,NEWAVE LTD,Childrens Services,1301.21,Agency Staff,2223P12_CR00141,101666,,
Sandwell Metropolitan Borough Council,http://www.sandwell.gov.uk/info/200202/performance_and_spending/1079/payments_over_500,09-Mar-2023,Childrens Services,NEWAVE LTD,Childrens Services,664.62,Agency Staff,2223P12_CR00142,101666,,
Sandwell Metropolitan Borough Council,http://www.sandwell.gov.uk/info/200202/performance_and_spending/1079/payments_over_500,09-Mar-2023,Childrens Services,NEWAVE LTD,Childrens Services,2592.00,Agency Staff,2223P12_CR00143,101666,,
Sandwell Metropolitan Borough Council,http://www.sandwell.gov.uk/info/200202/performance_and_spending/1079/payments_over_500,01-Mar-2023,Childrens Services,NEWAVE LTD,Childrens Services,1702.69,Agency Staff,2223P12_CR00144,101666,,
Sandwell Metropolitan Borough Council,http://www.sandwell.gov.uk/info/200202/performance_and_spending/1079/payments_over_500,01-Mar-2023,Childrens Services,NEWAVE LTD,Childrens Services,2080.40,Agency Staff,2223P12_CR00145,101666,,
Sandwell Metropolitan Borough Council,http://www.sandwell.gov.uk/info/200202/performance_and_spending/1079/payments_over_500,01-Mar-2023,Childrens Services,NEWAVE LTD,Childrens Services,3205.40,Agency Staff,2223P12_CR00146,101666,,
Sandwell Metropolitan Borough Council,http://www.sandwell.gov.uk/info/200202/performance_and_spending/1079/payments_over_500,01-Mar-2023,Childrens Services,NEWAVE LTD,Childrens Services,1909.15,Agency Staff,2223P12_CR00147,101666,,
Sandwell Metropolitan Borough Council,http://www.sandwell.gov.uk/info/200202/performance_and_spending/1079/payments_over_500,29-Mar-2023,Childrens Services,NORTH BIRMINGHAM TRAVEL LTD,Childrens Services,327935.32,Public Transport,2223P12_CR00148,72112,,
Sandwell Metropolitan Borough Council,http://www.sandwell.gov.uk/info/200202/performance_and_spending/1079/payments_over_500,29-Mar-2023,Childrens Services,NORTH BIRMINGHAM TRAVEL LTD,Childrens Services,84232.66,Public Transport,2223P12_CR00149,72112,,
Sandwell Metropolitan Borough Council,http://www.sandwell.gov.uk/info/200202/performance_and_spending/1079/payments_over_500,29-Mar-2023,Childrens Services,NORTH BIRMINGHAM TRAVEL LTD,Childrens Services,2656.53,Public Transport,2223P12_CR00150,72112,,
Sandwell Metropolitan Borough Council,http://www.sandwell.gov.uk/info/200202/performance_and_spending/1079/payments_over_500,29-Mar-2023,Childrens Services,NORTH BIRMINGHAM TRAVEL LTD,Childrens Services,99836.36,Public Transport,2223P12_CR00151,72112,,
Sandwell Metropolitan Borough Council,http://www.sandwell.gov.uk/info/200202/performance_and_spending/1079/payments_over_500,29-Mar-2023,Childrens Services,NORTH BIRMINGHAM TRAVEL LTD,Childrens Services,96713.77,Public Transport,2223P12_CR00152,72112,,
Sandwell Metropolitan Borough Council,http://www.sandwell.gov.uk/info/200202/performance_and_spending/1079/payments_over_500,29-Mar-2023,Childrens Services,NORTH BIRMINGHAM TRAVEL LTD,Childrens Services,84600.65,Public Transport,2223P12_CR00153,72112,,
Sandwell Metropolitan Borough Council,http://www.sandwell.gov.uk/info/200202/performance_and_spending/1079/payments_over_500,03-Mar-2023,Childrens Services,NORTH SMETHWICK DEVELOPMENT TRUST,Childrens Services,1360.00,Hire of Facilities,2223P12_CR00154,01346623,,
Sandwell Metropolitan Borough Council,http://www.sandwell.gov.uk/info/200202/performance_and_spending/1079/payments_over_500,02-Mar-2023,Childrens Services,NOTTINGHAMSHIRE COUNTY COUNCIL,Childrens Services,1381.25,External Contract Hire,2223P12_CR00155,01218759,,
Sandwell Metropolitan Borough Council,http://www.sandwell.gov.uk/info/200202/performance_and_spending/1079/payments_over_500,02-Mar-2023,Childrens Services,NOTTINGHAMSHIRE COUNTY COUNCIL,Childrens Services,1299.97,External Contract Hire,2223P12_CR00156,01218759,,
Sandwell Metropolitan Borough Council,http://www.sandwell.gov.uk/info/200202/performance_and_spending/1079/payments_over_500,02-Mar-2023,Childrens Services,NOTTINGHAMSHIRE COUNTY COUNCIL,Childrens Services,893.73,External Contract Hire,2223P12_CR00157,01218759,,
Sandwell Metropolitan Borough Council,http://www.sandwell.gov.uk/info/200202/performance_and_spending/1079/payments_over_500,02-Mar-2023,Childrens Services,NOTTINGHAMSHIRE COUNTY COUNCIL,Childrens Services,849.20,External Contract Hire,2223P12_CR00158,01218759,,
Sandwell Metropolitan Borough Council,http://www.sandwell.gov.uk/info/200202/performance_and_spending/1079/payments_over_500,02-Mar-2023,Childrens Services,NOTTINGHAMSHIRE COUNTY COUNCIL,Childrens Services,1910.70,External Contract Hire,2223P12_CR00159,01218759,,
Sandwell Metropolitan Borough Council,http://www.sandwell.gov.uk/info/200202/performance_and_spending/1079/payments_over_500,02-Mar-2023,Childrens Services,NOTTINGHAMSHIRE COUNTY COUNCIL,Childrens Services,1061.50,External Contract Hire,2223P12_CR00160,01218759,,
Sandwell Metropolitan Borough Council,http://www.sandwell.gov.uk/info/200202/performance_and_spending/1079/payments_over_500,24-Mar-2023,Childrens Services,ONE 4 YOU SERVICES LTD,Childrens Services,8515.87,Public Transport,2223P12_CR00161,81204,,
Sandwell Metropolitan Borough Council,http://www.sandwell.gov.uk/info/200202/performance_and_spending/1079/payments_over_500,24-Mar-2023,Childrens Services,ONE 4 YOU SERVICES LTD,Childrens Services,8515.87,Public Transport,2223P12_CR00162,81204,,
Sandwell Metropolitan Borough Council,http://www.sandwell.gov.uk/info/200202/performance_and_spending/1079/payments_over_500,24-Mar-2023,Childrens Services,ONE 4 YOU SERVICES LTD,Childrens Services,110093.52,Public Transport,2223P12_CR00163,81204,,
Sandwell Metropolitan Borough Council,http://www.sandwell.gov.uk/info/200202/performance_and_spending/1079/payments_over_500,24-Mar-2023,Childrens Services,ONE 4 YOU SERVICES LTD,Childrens Services,104810.39,Public Transport,2223P12_CR00164,81204,,
Sandwell Metropolitan Borough Council,http://www.sandwell.gov.uk/info/200202/performance_and_spending/1079/payments_over_500,02-Mar-2023,Childrens Services,PENNA PLC,Childrens Services,5000.00,Advertising & Publicity,2223P12_CR00165,20829,,
Sandwell Metropolitan Borough Council,http://www.sandwell.gov.uk/info/200202/performance_and_spending/1079/payments_over_500,02-Mar-2023,Childrens Services,PENNA PLC,Childrens Services,5000.00,Advertising & Publicity,2223P12_CR00166,20829,,
Sandwell Metropolitan Borough Council,http://www.sandwell.gov.uk/info/200202/performance_and_spending/1079/payments_over_500,02-Mar-2023,Childrens Services,PENNA PLC,Childrens Services,5000.00,Advertising & Publicity,2223P12_CR00167,20829,,
Sandwell Metropolitan Borough Council,http://www.sandwell.gov.uk/info/200202/performance_and_spending/1079/payments_over_500,08-Mar-2023,Childrens Services,PENNA PLC,Childrens Services,17582.00,Advertising & Publicity,2223P12_CR00168,20829,,
Sandwell Metropolitan Borough Council,http://www.sandwell.gov.uk/info/200202/performance_and_spending/1079/payments_over_500,11-Mar-2023,Childrens Services,PHOENIX COLLEGIATE,Childrens Services,700.00,Equipment & Furniture ,2223P12_CR00169,122448,,
Sandwell Metropolitan Borough Council,http://www.sandwell.gov.uk/info/200202/performance_and_spending/1079/payments_over_500,05-Mar-2023,Childrens Services,PLACES FOR PEOPLE LEISURE LIMITED,Childrens Services,600.00,Hire of Facilities,2223P12_CR00170,119069,,
Sandwell Metropolitan Borough Council,http://www.sandwell.gov.uk/info/200202/performance_and_spending/1079/payments_over_500,01-Mar-2023,Childrens Services,POWERED BY CAN LTD,Childrens Services,5830.00,Externally Purchased Professional Services ,2223P12_CR00171,116825,,
Sandwell Metropolitan Borough Council,http://www.sandwell.gov.uk/info/200202/performance_and_spending/1079/payments_over_500,13-Mar-2023,Childrens Services,PROSPECTS SERVICES LIMITED,Childrens Services,500.00,Externally Purchased Professional Services ,2223P12_CR00172,01721288,,
Sandwell Metropolitan Borough Council,http://www.sandwell.gov.uk/info/200202/performance_and_spending/1079/payments_over_500,01-Mar-2023,Childrens Services,PROSPECTS SERVICES LIMITED,Childrens Services,4089.92,Grant Payments,2223P12_CR00173,01721288,,
Sandwell Metropolitan Borough Council,http://www.sandwell.gov.uk/info/200202/performance_and_spending/1079/payments_over_500,01-Mar-2023,Childrens Services,RENAISSANCE CREATIVE DESIGN & PRINT LTD,Childrens Services,24600.00,Advertising & Publicity,2223P12_CR00174,97376,,
Sandwell Metropolitan Borough Council,http://www.sandwell.gov.uk/info/200202/performance_and_spending/1079/payments_over_500,01-Mar-2023,Childrens Services,ROYALE TRAINING LTD,Childrens Services,994.49,Externally Purchased Professional Services ,2223P12_CR00175,133604,,
Sandwell Metropolitan Borough Council,http://www.sandwell.gov.uk/info/200202/performance_and_spending/1079/payments_over_500,06-Mar-2023,Childrens Services,ROYALE TRAINING LTD,Childrens Services,1579.30,Externally Purchased Professional Services ,2223P12_CR00176,133604,,
Sandwell Metropolitan Borough Council,http://www.sandwell.gov.uk/info/200202/performance_and_spending/1079/payments_over_500,06-Mar-2023,Childrens Services,ROYALE TRAINING LTD,Childrens Services,1579.30,Externally Purchased Professional Services ,2223P12_CR00177,133604,,
Sandwell Metropolitan Borough Council,http://www.sandwell.gov.uk/info/200202/performance_and_spending/1079/payments_over_500,06-Mar-2023,Childrens Services,ROYALE TRAINING LTD,Childrens Services,1579.30,Externally Purchased Professional Services ,2223P12_CR00178,133604,,
Sandwell Metropolitan Borough Council,http://www.sandwell.gov.uk/info/200202/performance_and_spending/1079/payments_over_500,06-Mar-2023,Childrens Services,ROYALE TRAINING LTD,Childrens Services,1579.30,Externally Purchased Professional Services ,2223P12_CR00179,133604,,
Sandwell Metropolitan Borough Council,http://www.sandwell.gov.uk/info/200202/performance_and_spending/1079/payments_over_500,06-Mar-2023,Childrens Services,ROYALE TRAINING LTD,Childrens Services,1579.30,Externally Purchased Professional Services ,2223P12_CR00180,133604,,
Sandwell Metropolitan Borough Council,http://www.sandwell.gov.uk/info/200202/performance_and_spending/1079/payments_over_500,21-Mar-2023,Childrens Services,SANDWELL CHILDREN'S TRUST,Childrens Services,7362.74,Externally Purchased Professional Services ,2223P12_CR00181,133302,,
Sandwell Metropolitan Borough Council,http://www.sandwell.gov.uk/info/200202/performance_and_spending/1079/payments_over_500,15-Mar-2023,Childrens Services,SANDWELL CHILDREN'S TRUST,Childrens Services,47896.86,Other Establishments,2223P12_CR00182,133302,,
Sandwell Metropolitan Borough Council,http://www.sandwell.gov.uk/info/200202/performance_and_spending/1079/payments_over_500,20-Mar-2023,Childrens Services,SANDWELL CHILDREN'S TRUST,Childrens Services,11411538.46,Other Establishments,2223P12_CR00183,133302,,
Sandwell Metropolitan Borough Council,http://www.sandwell.gov.uk/info/200202/performance_and_spending/1079/payments_over_500,01-Mar-2023,Childrens Services,SANDWELL CONSORTIUM CIC,Childrens Services,1438.26,Grants,2223P12_CR00184,104616,,
Sandwell Metropolitan Borough Council,http://www.sandwell.gov.uk/info/200202/performance_and_spending/1079/payments_over_500,01-Mar-2023,Childrens Services,SANDWELL CONSORTIUM CIC,Childrens Services,24219.29,Grants,2223P12_CR00185,104616,,
Sandwell Metropolitan Borough Council,http://www.sandwell.gov.uk/info/200202/performance_and_spending/1079/payments_over_500,01-Mar-2023,Childrens Services,SANDWELL CONSORTIUM CIC,Childrens Services,7797.85,Grants,2223P12_CR00186,104616,,
Sandwell Metropolitan Borough Council,http://www.sandwell.gov.uk/info/200202/performance_and_spending/1079/payments_over_500,01-Mar-2023,Childrens Services,SANDWELL CONSORTIUM CIC,Childrens Services,27533.94,Grants,2223P12_CR00187,104616,,
Sandwell Metropolitan Borough Council,http://www.sandwell.gov.uk/info/200202/performance_and_spending/1079/payments_over_500,01-Mar-2023,Childrens Services,SANDWELL CONSORTIUM CIC,Childrens Services,3451.45,Grants,2223P12_CR00188,104616,,
Sandwell Metropolitan Borough Council,http://www.sandwell.gov.uk/info/200202/performance_and_spending/1079/payments_over_500,01-Mar-2023,Childrens Services,SEDDON CONSTRUCTION LIMITED,Childrens Services,1010.75,Externally Purchased Professional Services ,2223P12_CR00189,132999,,
Sandwell Metropolitan Borough Council,http://www.sandwell.gov.uk/info/200202/performance_and_spending/1079/payments_over_500,01-Mar-2023,Childrens Services,SIPS EDUCATION LTD,Childrens Services,2729.35,Catering Provisions,2223P12_CR00190,110784,,
Sandwell Metropolitan Borough Council,http://www.sandwell.gov.uk/info/200202/performance_and_spending/1079/payments_over_500,09-Mar-2023,Childrens Services,SIPS EDUCATION LTD,Childrens Services,2329.05,Catering Provisions,2223P12_CR00191,110784,,
Sandwell Metropolitan Borough Council,http://www.sandwell.gov.uk/info/200202/performance_and_spending/1079/payments_over_500,09-Mar-2023,Childrens Services,SIPS EDUCATION LTD,Childrens Services,2757.25,Catering Provisions,2223P12_CR00192,110784,,
Sandwell Metropolitan Borough Council,http://www.sandwell.gov.uk/info/200202/performance_and_spending/1079/payments_over_500,01-Mar-2023,Childrens Services,SIPS EDUCATION LTD,Childrens Services,3210.00,Externally Purchased Professional Services ,2223P12_CR00193,110784,,
Sandwell Metropolitan Borough Council,http://www.sandwell.gov.uk/info/200202/performance_and_spending/1079/payments_over_500,01-Mar-2023,Childrens Services,SIPS EDUCATION LTD,Childrens Services,1070.00,Externally Purchased Professional Services ,2223P12_CR00194,110784,,
Sandwell Metropolitan Borough Council,http://www.sandwell.gov.uk/info/200202/performance_and_spending/1079/payments_over_500,01-Mar-2023,Childrens Services,SITEWATCH FIRE AND SURVEILLANCE LIMITED,Childrens Services,1369.00,Security,2223P12_CR00195,55288,,
Sandwell Metropolitan Borough Council,http://www.sandwell.gov.uk/info/200202/performance_and_spending/1079/payments_over_500,08-Mar-2023,Childrens Services,STEPHEN MILLER T/A S M W S,Childrens Services,500.00,Equipment & Furniture ,2223P12_CR00196,144981,,
Sandwell Metropolitan Borough Council,http://www.sandwell.gov.uk/info/200202/performance_and_spending/1079/payments_over_500,06-Mar-2023,Childrens Services,THE HAVEN WOLVERHAMPTON,Childrens Services,608.18,Externally Purchased Professional Services ,2223P12_CR00197,115108,,
Sandwell Metropolitan Borough Council,http://www.sandwell.gov.uk/info/200202/performance_and_spending/1079/payments_over_500,16-Mar-2023,Childrens Services,THE PRIORY PRIMARY,Childrens Services,1500.00,Grants,2223P12_CR00198,01746051,,
Sandwell Metropolitan Borough Council,http://www.sandwell.gov.uk/info/200202/performance_and_spending/1079/payments_over_500,17-Mar-2023,Childrens Services,THE PRIORY PRIMARY,Childrens Services,1500.00,Grants,2223P12_CR00199,01746051,,
Sandwell Metropolitan Borough Council,http://www.sandwell.gov.uk/info/200202/performance_and_spending/1079/payments_over_500,20-Mar-2023,Childrens Services,THE PRIORY PRIMARY,Childrens Services,500.00,Grants,2223P12_CR00200,01746051,,
Sandwell Metropolitan Borough Council,http://www.sandwell.gov.uk/info/200202/performance_and_spending/1079/payments_over_500,20-Mar-2023,Childrens Services,THE PRIORY PRIMARY,Childrens Services,500.00,Grants,2223P12_CR00201,01746051,,
Sandwell Metropolitan Borough Council,http://www.sandwell.gov.uk/info/200202/performance_and_spending/1079/payments_over_500,20-Mar-2023,Childrens Services,THE PRIORY PRIMARY,Childrens Services,500.00,Grants,2223P12_CR00202,01746051,,
Sandwell Metropolitan Borough Council,http://www.sandwell.gov.uk/info/200202/performance_and_spending/1079/payments_over_500,17-Mar-2023,Childrens Services,THE PRIORY PRIMARY,Childrens Services,3683.26,Rents,2223P12_CR00203,01746051,,
Sandwell Metropolitan Borough Council,http://www.sandwell.gov.uk/info/200202/performance_and_spending/1079/payments_over_500,17-Mar-2023,Childrens Services,THE PRIORY PRIMARY,Childrens Services,3092.94,Rents,2223P12_CR00204,01746051,,
Sandwell Metropolitan Borough Council,http://www.sandwell.gov.uk/info/200202/performance_and_spending/1079/payments_over_500,01-Mar-2023,Childrens Services,TOPPS MANAGEMENT & SUPPORT SERVICES LTD,Childrens Services,7499.94,Discretionary Awards,2223P12_CR00205,68846,,
Sandwell Metropolitan Borough Council,http://www.sandwell.gov.uk/info/200202/performance_and_spending/1079/payments_over_500,01-Mar-2023,Childrens Services,TOPPS MANAGEMENT & SUPPORT SERVICES LTD,Childrens Services,996.94,Externally Purchased Professional Services ,2223P12_CR00206,68846,,
Sandwell Metropolitan Borough Council,http://www.sandwell.gov.uk/info/200202/performance_and_spending/1079/payments_over_500,01-Mar-2023,Childrens Services,TOPPS MANAGEMENT & SUPPORT SERVICES LTD,Childrens Services,996.94,Externally Purchased Professional Services ,2223P12_CR00207,68846,,
Sandwell Metropolitan Borough Council,http://www.sandwell.gov.uk/info/200202/performance_and_spending/1079/payments_over_500,01-Mar-2023,Childrens Services,TOPPS MANAGEMENT & SUPPORT SERVICES LTD,Childrens Services,996.94,Externally Purchased Professional Services ,2223P12_CR00208,68846,,
Sandwell Metropolitan Borough Council,http://www.sandwell.gov.uk/info/200202/performance_and_spending/1079/payments_over_500,01-Mar-2023,Childrens Services,TOPPS MANAGEMENT & SUPPORT SERVICES LTD,Childrens Services,996.94,Externally Purchased Professional Services ,2223P12_CR00209,68846,,
Sandwell Metropolitan Borough Council,http://www.sandwell.gov.uk/info/200202/performance_and_spending/1079/payments_over_500,01-Mar-2023,Childrens Services,TOPPS MANAGEMENT & SUPPORT SERVICES LTD,Childrens Services,996.94,Externally Purchased Professional Services ,2223P12_CR00210,68846,,
Sandwell Metropolitan Borough Council,http://www.sandwell.gov.uk/info/200202/performance_and_spending/1079/payments_over_500,01-Mar-2023,Childrens Services,TOPPS MANAGEMENT & SUPPORT SERVICES LTD,Childrens Services,892.28,Externally Purchased Professional Services ,2223P12_CR00211,68846,,
Sandwell Metropolitan Borough Council,http://www.sandwell.gov.uk/info/200202/performance_and_spending/1079/payments_over_500,01-Mar-2023,Childrens Services,TOPPS MANAGEMENT & SUPPORT SERVICES LTD,Childrens Services,996.94,Externally Purchased Professional Services ,2223P12_CR00212,68846,,
Sandwell Metropolitan Borough Council,http://www.sandwell.gov.uk/info/200202/performance_and_spending/1079/payments_over_500,01-Mar-2023,Childrens Services,TOPPS MANAGEMENT & SUPPORT SERVICES LTD,Childrens Services,996.94,Externally Purchased Professional Services ,2223P12_CR00213,68846,,
Sandwell Metropolitan Borough Council,http://www.sandwell.gov.uk/info/200202/performance_and_spending/1079/payments_over_500,01-Mar-2023,Childrens Services,TOPPS MANAGEMENT & SUPPORT SERVICES LTD,Childrens Services,996.94,Externally Purchased Professional Services ,2223P12_CR00214,68846,,
Sandwell Metropolitan Borough Council,http://www.sandwell.gov.uk/info/200202/performance_and_spending/1079/payments_over_500,01-Mar-2023,Childrens Services,TOTALENERGIES GAS & POWER LTD,Childrens Services,2621.53,Electricity,2223P12_CR00215,107605,,
Sandwell Metropolitan Borough Council,http://www.sandwell.gov.uk/info/200202/performance_and_spending/1079/payments_over_500,11-Mar-2023,Childrens Services,TOTALENERGIES GAS & POWER LTD,Childrens Services,1243.74,Electricity,2223P12_CR00216,107605,,
Sandwell Metropolitan Borough Council,http://www.sandwell.gov.uk/info/200202/performance_and_spending/1079/payments_over_500,11-Mar-2023,Childrens Services,TOTALENERGIES GAS & POWER LTD,Childrens Services,584.64,Electricity,2223P12_CR00217,107605,,
Sandwell Metropolitan Borough Council,http://www.sandwell.gov.uk/info/200202/performance_and_spending/1079/payments_over_500,11-Mar-2023,Childrens Services,TOTALENERGIES GAS & POWER LTD,Childrens Services,1013.89,Electricity,2223P12_CR00218,107605,,
Sandwell Metropolitan Borough Council,http://www.sandwell.gov.uk/info/200202/performance_and_spending/1079/payments_over_500,01-Mar-2023,Childrens Services,TOTALENERGIES GAS & POWER LTD,Childrens Services,2219.15,Electricity,2223P12_CR00219,107605,,
Sandwell Metropolitan Borough Council,http://www.sandwell.gov.uk/info/200202/performance_and_spending/1079/payments_over_500,01-Mar-2023,Childrens Services,TOTALENERGIES GAS & POWER LTD,Childrens Services,577.81,Electricity,2223P12_CR00220,107605,,
Sandwell Metropolitan Borough Council,http://www.sandwell.gov.uk/info/200202/performance_and_spending/1079/payments_over_500,01-Mar-2023,Childrens Services,TOTALENERGIES GAS & POWER LTD,Childrens Services,2536.54,Electricity,2223P12_CR00221,107605,,
Sandwell Metropolitan Borough Council,http://www.sandwell.gov.uk/info/200202/performance_and_spending/1079/payments_over_500,09-Mar-2023,Childrens Services,TOTALENERGIES GAS & POWER LTD,Childrens Services,1747.02,Electricity,2223P12_CR00222,107605,,
Sandwell Metropolitan Borough Council,http://www.sandwell.gov.uk/info/200202/performance_and_spending/1079/payments_over_500,11-Mar-2023,Childrens Services,TOTALENERGIES GAS & POWER LTD,Childrens Services,1093.95,Electricity,2223P12_CR00223,107605,,
Sandwell Metropolitan Borough Council,http://www.sandwell.gov.uk/info/200202/performance_and_spending/1079/payments_over_500,16-Mar-2023,Childrens Services,TOTALENERGIES GAS & POWER LTD,Childrens Services,2156.75,Electricity,2223P12_CR00224,107605,,
Sandwell Metropolitan Borough Council,http://www.sandwell.gov.uk/info/200202/performance_and_spending/1079/payments_over_500,12-Mar-2023,Childrens Services,TOTALENERGIES GAS & POWER LTD,Childrens Services,530.24,Electricity,2223P12_CR00225,107605,,
Sandwell Metropolitan Borough Council,http://www.sandwell.gov.uk/info/200202/performance_and_spending/1079/payments_over_500,12-Mar-2023,Childrens Services,TOTALENERGIES GAS & POWER LTD,Childrens Services,526.38,Electricity,2223P12_CR00226,107605,,
Sandwell Metropolitan Borough Council,http://www.sandwell.gov.uk/info/200202/performance_and_spending/1079/payments_over_500,11-Mar-2023,Childrens Services,TOTALENERGIES GAS & POWER LTD,Childrens Services,1626.90,Electricity,2223P12_CR00227,107605,,
Sandwell Metropolitan Borough Council,http://www.sandwell.gov.uk/info/200202/performance_and_spending/1079/payments_over_500,01-Mar-2023,Childrens Services,TOTALENERGIES GAS & POWER LTD,Childrens Services,1756.02,Gas,2223P12_CR00228,107605,,
Sandwell Metropolitan Borough Council,http://www.sandwell.gov.uk/info/200202/performance_and_spending/1079/payments_over_500,12-Mar-2023,Childrens Services,TOTALENERGIES GAS & POWER LTD,Childrens Services,501.45,Gas,2223P12_CR00229,107605,,
Sandwell Metropolitan Borough Council,http://www.sandwell.gov.uk/info/200202/performance_and_spending/1079/payments_over_500,06-Mar-2023,Childrens Services,UP & UNDER OUTDOOR GEAR LTD,Childrens Services,2560.73,Equipment & Furniture ,2223P12_CR00230,72873,,
Sandwell Metropolitan Borough Council,http://www.sandwell.gov.uk/info/200202/performance_and_spending/1079/payments_over_500,09-Mar-2023,Childrens Services,WATER PLUS SELECT LIMITED,Childrens Services,4496.46,Water Services,2223P12_CR00231,129644,,
Sandwell Metropolitan Borough Council,http://www.sandwell.gov.uk/info/200202/performance_and_spending/1079/payments_over_500,01-Mar-2023,Childrens Services,WEST BROMWICH ALBION FC LTD,Childrens Services,1167.60,Hire of Facilities,2223P12_CR00232,01606624,,
Sandwell Metropolitan Borough Council,http://www.sandwell.gov.uk/info/200202/performance_and_spending/1079/payments_over_500,17-Mar-2023,Childrens Services,WEST BROMWICH ALBION FC LTD,Childrens Services,1620.00,Hire of Facilities,2223P12_CR00233,01606624,,
Sandwell Metropolitan Borough Council,http://www.sandwell.gov.uk/info/200202/performance_and_spending/1079/payments_over_500,24-Mar-2023,Childrens Services,WEST BROMWICH ALBION FC LTD,Childrens Services,750.00,Hire of Facilities,2223P12_CR00234,01606624,,
Sandwell Metropolitan Borough Council,http://www.sandwell.gov.uk/info/200202/performance_and_spending/1079/payments_over_500,01-Mar-2023,Childrens Services,WEST MIDLANDS TRAVEL LIMITED,Childrens Services,8880.14,Public Transport,2223P12_CR00235,01736688,,
Sandwell Metropolitan Borough Council,http://www.sandwell.gov.uk/info/200202/performance_and_spending/1079/payments_over_500,01-Mar-2023,Childrens Services,WEST MIDLANDS TRAVEL LIMITED,Childrens Services,4983.86,Public Transport,2223P12_CR00236,01736688,,
Sandwell Metropolitan Borough Council,http://www.sandwell.gov.uk/info/200202/performance_and_spending/1079/payments_over_500,01-Mar-2023,Childrens Services,WEST MIDLANDS TRAVEL LIMITED,Childrens Services,2271.70,Public Transport,2223P12_CR00237,01736688,,
Sandwell Metropolitan Borough Council,http://www.sandwell.gov.uk/info/200202/performance_and_spending/1079/payments_over_500,01-Mar-2023,Childrens Services,WEST MIDLANDS TRAVEL LIMITED,Childrens Services,5006.90,Public Transport,2223P12_CR00238,01736688,,
Sandwell Metropolitan Borough Council,http://www.sandwell.gov.uk/info/200202/performance_and_spending/1079/payments_over_500,11-Mar-2023,Childrens Services,WESTMINSTER SCHOOL,Childrens Services,650.00,Equipment & Furniture ,2223P12_CR00239,38481,,
Sandwell Metropolitan Borough Council,http://www.sandwell.gov.uk/info/200202/performance_and_spending/1079/payments_over_500,24-Mar-2023,Childrens Services,WOLVERHAMPTON CITY COUNCIL,Childrens Services,598.50,External Contract Hire,2223P12_CR00240,01374555,,
Sandwell Metropolitan Borough Council,http://www.sandwell.gov.uk/info/200202/performance_and_spending/1079/payments_over_500,24-Mar-2023,Childrens Services,WOLVERHAMPTON CITY COUNCIL,Childrens Services,1654.74,External Contract Hire,2223P12_CR00241,01374555,,
Sandwell Metropolitan Borough Council,http://www.sandwell.gov.uk/info/200202/performance_and_spending/1079/payments_over_500,24-Mar-2023,Childrens Services,WOLVERHAMPTON CITY COUNCIL,Childrens Services,4212.60,External Contract Hire,2223P12_CR00242,01374555,,
Sandwell Metropolitan Borough Council,http://www.sandwell.gov.uk/info/200202/performance_and_spending/1079/payments_over_500,30-Mar-2023,Childrens Services,WOLVERHAMPTON CITY COUNCIL,Childrens Services,1801.93,External Contract Hire,2223P12_CR00243,01374555,,
Sandwell Metropolitan Borough Council,http://www.sandwell.gov.uk/info/200202/performance_and_spending/1079/payments_over_500,08-Mar-2023,Childrens Services,YOUTH FOCUS WEST MIDLANDS,Childrens Services,500.00,Subscriptions,2223P12_CR00244,112224,,
Sandwell Metropolitan Borough Council,http://www.sandwell.gov.uk/info/200202/performance_and_spending/1079/payments_over_500,16-Mar-2023,Childrens Services,KAREN BENJAMIN,Childrens Services,800.00,Externally Purchased Professional Services ,2223P12_CR00245,150479,,
Sandwell Metropolitan Borough Council,http://www.sandwell.gov.uk/info/200202/performance_and_spending/1079/payments_over_500,20-Mar-2023,Childrens Services,MARK LAMSDALE,Childrens Services,4000.00,"Printing, Stationery & General Office Expenses",2223P12_CR00246,26316,,
Sandwell Metropolitan Borough Council,http://www.sandwell.gov.uk/info/200202/performance_and_spending/1079/payments_over_500,21-Mar-2023,Childrens Services,BURNT TREE PRIMARY SCHOOL      ,Childrens Services,5000.00,Grant Payments,2223P12_CR00247,60974,,
Sandwell Metropolitan Borough Council,http://www.sandwell.gov.uk/info/200202/performance_and_spending/1079/payments_over_500,21-Mar-2023,Childrens Services,CAUSEWAY GREEN PRIMARY SCHOOL   ,Childrens Services,5000.00,Grant Payments,2223P12_CR00248,60976,,
Sandwell Metropolitan Borough Council,http://www.sandwell.gov.uk/info/200202/performance_and_spending/1079/payments_over_500,21-Mar-2023,Childrens Services,CHRIST CHURCH C OF E PRIMARY SCHOOL,Childrens Services,5000.00,Grant Payments,2223P12_CR00249,1705,,
Sandwell Metropolitan Borough Council,http://www.sandwell.gov.uk/info/200202/performance_and_spending/1079/payments_over_500,21-Mar-2023,Childrens Services,DEVONSHIRE INFANTS ACADEMY,Childrens Services,5000.00,Grant Payments,2223P12_CR00250,118366,,
Sandwell Metropolitan Borough Council,http://www.sandwell.gov.uk/info/200202/performance_and_spending/1079/payments_over_500,21-Mar-2023,Childrens Services,DEVONSHIRE JUNIOR ACADEMY,Childrens Services,5000.00,Grant Payments,2223P12_CR00251,118367,,
Sandwell Metropolitan Borough Council,http://www.sandwell.gov.uk/info/200202/performance_and_spending/1079/payments_over_500,21-Mar-2023,Childrens Services,EATON VALLEY PRIMARY SCHOOL,Childrens Services,5000.00,Grant Payments,2223P12_CR00252,60981,,
Sandwell Metropolitan Borough Council,http://www.sandwell.gov.uk/info/200202/performance_and_spending/1079/payments_over_500,21-Mar-2023,Childrens Services,FERNDALE PRIMARY SCHOOL           ,Childrens Services,5000.00,Grant Payments,2223P12_CR00253,11562,,
Sandwell Metropolitan Borough Council,http://www.sandwell.gov.uk/info/200202/performance_and_spending/1079/payments_over_500,21-Mar-2023,Childrens Services,GLEBEFIELDS PRIMARY SCHOOL     ,Childrens Services,5000.00,Grant Payments,2223P12_CR00254,60989,,
Sandwell Metropolitan Borough Council,http://www.sandwell.gov.uk/info/200202/performance_and_spending/1079/payments_over_500,21-Mar-2023,Childrens Services,GROVE VALE PRIMARY SCHOOL,Childrens Services,5000.00,Grant Payments,2223P12_CR00255,60993,,
Sandwell Metropolitan Borough Council,http://www.sandwell.gov.uk/info/200202/performance_and_spending/1079/payments_over_500,21-Mar-2023,Childrens Services,HAMSTEAD JUNIOR SCHOOL      ,Childrens Services,5000.00,Grant Payments,2223P12_CR00256,60998,,
Sandwell Metropolitan Borough Council,http://www.sandwell.gov.uk/info/200202/performance_and_spending/1079/payments_over_500,21-Mar-2023,Childrens Services,HARVILLS HAWTHORN PRIMARY SCHOOL   ,Childrens Services,5000.00,Grant Payments,2223P12_CR00257,01782074,,
Sandwell Metropolitan Borough Council,http://www.sandwell.gov.uk/info/200202/performance_and_spending/1079/payments_over_500,21-Mar-2023,Childrens Services,JOSEPH TURNER PRIMARY SCHOOL    ,Childrens Services,5000.00,Grant Payments,2223P12_CR00258,61006,,
Sandwell Metropolitan Borough Council,http://www.sandwell.gov.uk/info/200202/performance_and_spending/1079/payments_over_500,21-Mar-2023,Childrens Services,LANGLEY PRIMARY SCHOOL   ,Childrens Services,5000.00,Grant Payments,2223P12_CR00259,61011,,
Sandwell Metropolitan Borough Council,http://www.sandwell.gov.uk/info/200202/performance_and_spending/1079/payments_over_500,21-Mar-2023,Childrens Services,LYNG PRIMARY SCHOOL     ,Childrens Services,5000.00,Grant Payments,2223P12_CR00260,61026,,
Sandwell Metropolitan Borough Council,http://www.sandwell.gov.uk/info/200202/performance_and_spending/1079/payments_over_500,21-Mar-2023,Childrens Services,OLD PARK PRIMARY SCHOOL     ,Childrens Services,5000.00,Grant Payments,2223P12_CR00261,61039,,
Sandwell Metropolitan Borough Council,http://www.sandwell.gov.uk/info/200202/performance_and_spending/1079/payments_over_500,21-Mar-2023,Childrens Services,ROOD END PRIMARY SCHOOL       ,Childrens Services,5000.00,Grant Payments,2223P12_CR00262,61044,,
Sandwell Metropolitan Borough Council,http://www.sandwell.gov.uk/info/200202/performance_and_spending/1079/payments_over_500,21-Mar-2023,Childrens Services,ROWLEY HALL PRIMARY SCHOOL         ,Childrens Services,5000.00,Grant Payments,2223P12_CR00263,61046,,
Sandwell Metropolitan Borough Council,http://www.sandwell.gov.uk/info/200202/performance_and_spending/1079/payments_over_500,21-Mar-2023,Childrens Services,SACRED HEART PRIMARY SCHOOL  ,Childrens Services,5000.00,Grant Payments,2223P12_CR00264,61048,,
Sandwell Metropolitan Borough Council,http://www.sandwell.gov.uk/info/200202/performance_and_spending/1079/payments_over_500,21-Mar-2023,Childrens Services,ST CATHERINE OF SIENA MULTI ACADEMY COMPANY        ,Childrens Services,5000.00,Grant Payments,2223P12_CR00265,61052,,
Sandwell Metropolitan Borough Council,http://www.sandwell.gov.uk/info/200202/performance_and_spending/1079/payments_over_500,21-Mar-2023,Childrens Services,ST MARYS RC PRIMARY SCHOOL         ,Childrens Services,5000.00,Grant Payments,2223P12_CR00266,61060,,
Sandwell Metropolitan Borough Council,http://www.sandwell.gov.uk/info/200202/performance_and_spending/1079/payments_over_500,21-Mar-2023,Childrens Services,THE PRIORY PRIMARY,Childrens Services,5000.00,Grant Payments,2223P12_CR00267,01746051,,
Sandwell Metropolitan Borough Council,http://www.sandwell.gov.uk/info/200202/performance_and_spending/1079/payments_over_500,21-Mar-2023,Childrens Services,TIVIDALE HALL PRIMARY SCHOOL    ,Childrens Services,5000.00,Grant Payments,2223P12_CR00268,61070,,
Sandwell Metropolitan Borough Council,http://www.sandwell.gov.uk/info/200202/performance_and_spending/1079/payments_over_500,21-Mar-2023,Childrens Services,UPLANDS MANOR PRIMARY  ,Childrens Services,5000.00,Grant Payments,2223P12_CR00269,61071,,
Sandwell Metropolitan Borough Council,http://www.sandwell.gov.uk/info/200202/performance_and_spending/1079/payments_over_500,21-Mar-2023,Childrens Services,VICTORIA PARK PRIMARY ACADEMY,Childrens Services,5000.00,Grant Payments,2223P12_CR00270,106209,,
Sandwell Metropolitan Borough Council,http://www.sandwell.gov.uk/info/200202/performance_and_spending/1079/payments_over_500,21-Mar-2023,Childrens Services,YEW TREE PRIMARY SCHOOL     ,Childrens Services,5000.00,Grant Payments,2223P12_CR00271,61078,,
Sandwell Metropolitan Borough Council,http://www.sandwell.gov.uk/info/200202/performance_and_spending/1079/payments_over_500,10-Mar-2023,Childrens Services,REDACTED PERSONAL DATA,Childrens Services,727.27,External Contract Hire,2223P12_CR00272,REDACTED PERSONAL DATA,,
Sandwell Metropolitan Borough Council,http://www.sandwell.gov.uk/info/200202/performance_and_spending/1079/payments_over_500,10-Mar-2023,Childrens Services,REDACTED PERSONAL DATA,Childrens Services,727.27,External Contract Hire,2223P12_CR00273,REDACTED PERSONAL DATA,,
Sandwell Metropolitan Borough Council,http://www.sandwell.gov.uk/info/200202/performance_and_spending/1079/payments_over_500,10-Mar-2023,Childrens Services,REDACTED PERSONAL DATA,Childrens Services,545.45,External Contract Hire,2223P12_CR00274,REDACTED PERSONAL DATA,,
Sandwell Metropolitan Borough Council,http://www.sandwell.gov.uk/info/200202/performance_and_spending/1079/payments_over_500,10-Mar-2023,Childrens Services,REDACTED PERSONAL DATA,Childrens Services,545.45,External Contract Hire,2223P12_CR00275,REDACTED PERSONAL DATA,,
Sandwell Metropolitan Borough Council,http://www.sandwell.gov.uk/info/200202/performance_and_spending/1079/payments_over_500,10-Mar-2023,Childrens Services,REDACTED PERSONAL DATA,Childrens Services,545.45,External Contract Hire,2223P12_CR00276,REDACTED PERSONAL DATA,,
Sandwell Metropolitan Borough Council,http://www.sandwell.gov.uk/info/200202/performance_and_spending/1079/payments_over_500,10-Mar-2023,Childrens Services,REDACTED PERSONAL DATA,Childrens Services,545.45,External Contract Hire,2223P12_CR00277,REDACTED PERSONAL DATA,,
Sandwell Metropolitan Borough Council,http://www.sandwell.gov.uk/info/200202/performance_and_spending/1079/payments_over_500,10-Mar-2023,Childrens Services,REDACTED PERSONAL DATA,Childrens Services,545.45,External Contract Hire,2223P12_CR00278,REDACTED PERSONAL DATA,,
Sandwell Metropolitan Borough Council,http://www.sandwell.gov.uk/info/200202/performance_and_spending/1079/payments_over_500,10-Mar-2023,Childrens Services,REDACTED PERSONAL DATA,Childrens Services,545.45,External Contract Hire,2223P12_CR00279,REDACTED PERSONAL DATA,,
Sandwell Metropolitan Borough Council,http://www.sandwell.gov.uk/info/200202/performance_and_spending/1079/payments_over_500,10-Mar-2023,Childrens Services,REDACTED PERSONAL DATA,Childrens Services,1090.90,External Contract Hire,2223P12_CR00280,REDACTED PERSONAL DATA,,
Sandwell Metropolitan Borough Council,http://www.sandwell.gov.uk/info/200202/performance_and_spending/1079/payments_over_500,10-Mar-2023,Childrens Services,REDACTED PERSONAL DATA,Childrens Services,545.45,External Contract Hire,2223P12_CR00281,REDACTED PERSONAL DATA,,
Sandwell Metropolitan Borough Council,http://www.sandwell.gov.uk/info/200202/performance_and_spending/1079/payments_over_500,10-Mar-2023,Childrens Services,REDACTED PERSONAL DATA,Childrens Services,545.45,External Contract Hire,2223P12_CR00282,REDACTED PERSONAL DATA,,
Sandwell Metropolitan Borough Council,http://www.sandwell.gov.uk/info/200202/performance_and_spending/1079/payments_over_500,10-Mar-2023,Childrens Services,REDACTED PERSONAL DATA,Childrens Services,909.09,External Contract Hire,2223P12_CR00283,REDACTED PERSONAL DATA,,
Sandwell Metropolitan Borough Council,http://www.sandwell.gov.uk/info/200202/performance_and_spending/1079/payments_over_500,10-Mar-2023,Childrens Services,REDACTED PERSONAL DATA,Childrens Services,545.45,External Contract Hire,2223P12_CR00284,REDACTED PERSONAL DATA,,
Sandwell Metropolitan Borough Council,http://www.sandwell.gov.uk/info/200202/performance_and_spending/1079/payments_over_500,10-Mar-2023,Childrens Services,REDACTED PERSONAL DATA,Childrens Services,545.45,External Contract Hire,2223P12_CR00285,REDACTED PERSONAL DATA,,
Sandwell Metropolitan Borough Council,http://www.sandwell.gov.uk/info/200202/performance_and_spending/1079/payments_over_500,10-Mar-2023,Childrens Services,REDACTED PERSONAL DATA,Childrens Services,800.00,External Contract Hire,2223P12_CR00286,REDACTED PERSONAL DATA,,
Sandwell Metropolitan Borough Council,http://www.sandwell.gov.uk/info/200202/performance_and_spending/1079/payments_over_500,10-Mar-2023,Childrens Services,REDACTED PERSONAL DATA,Childrens Services,545.45,External Contract Hire,2223P12_CR00287,REDACTED PERSONAL DATA,,
Sandwell Metropolitan Borough Council,http://www.sandwell.gov.uk/info/200202/performance_and_spending/1079/payments_over_500,10-Mar-2023,Childrens Services,REDACTED PERSONAL DATA,Childrens Services,727.28,External Contract Hire,2223P12_CR00288,REDACTED PERSONAL DATA,,
Sandwell Metropolitan Borough Council,http://www.sandwell.gov.uk/info/200202/performance_and_spending/1079/payments_over_500,10-Mar-2023,Childrens Services,REDACTED PERSONAL DATA,Childrens Services,727.27,External Contract Hire,2223P12_CR00289,REDACTED PERSONAL DATA,,
Sandwell Metropolitan Borough Council,http://www.sandwell.gov.uk/info/200202/performance_and_spending/1079/payments_over_500,10-Mar-2023,Childrens Services,REDACTED PERSONAL DATA,Childrens Services,545.45,External Contract Hire,2223P12_CR00290,REDACTED PERSONAL DATA,,
Sandwell Metropolitan Borough Council,http://www.sandwell.gov.uk/info/200202/performance_and_spending/1079/payments_over_500,10-Mar-2023,Childrens Services,REDACTED PERSONAL DATA,Childrens Services,545.45,External Contract Hire,2223P12_CR00291,REDACTED PERSONAL DATA,,
Sandwell Metropolitan Borough Council,http://www.sandwell.gov.uk/info/200202/performance_and_spending/1079/payments_over_500,10-Mar-2023,Childrens Services,REDACTED PERSONAL DATA,Childrens Services,545.45,External Contract Hire,2223P12_CR00292,REDACTED PERSONAL DATA,,
Sandwell Metropolitan Borough Council,http://www.sandwell.gov.uk/info/200202/performance_and_spending/1079/payments_over_500,10-Mar-2023,Childrens Services,REDACTED PERSONAL DATA,Childrens Services,727.27,External Contract Hire,2223P12_CR00293,REDACTED PERSONAL DATA,,
Sandwell Metropolitan Borough Council,http://www.sandwell.gov.uk/info/200202/performance_and_spending/1079/payments_over_500,10-Mar-2023,Childrens Services,REDACTED PERSONAL DATA,Childrens Services,727.27,External Contract Hire,2223P12_CR00294,REDACTED PERSONAL DATA,,
Sandwell Metropolitan Borough Council,http://www.sandwell.gov.uk/info/200202/performance_and_spending/1079/payments_over_500,10-Mar-2023,Childrens Services,REDACTED PERSONAL DATA,Childrens Services,727.27,External Contract Hire,2223P12_CR00295,REDACTED PERSONAL DATA,,
Sandwell Metropolitan Borough Council,http://www.sandwell.gov.uk/info/200202/performance_and_spending/1079/payments_over_500,10-Mar-2023,Childrens Services,REDACTED PERSONAL DATA,Childrens Services,545.45,External Contract Hire,2223P12_CR00296,REDACTED PERSONAL DATA,,
Sandwell Metropolitan Borough Council,http://www.sandwell.gov.uk/info/200202/performance_and_spending/1079/payments_over_500,10-Mar-2023,Childrens Services,REDACTED PERSONAL DATA,Childrens Services,545.45,External Contract Hire,2223P12_CR00297,REDACTED PERSONAL DATA,,
Sandwell Metropolitan Borough Council,http://www.sandwell.gov.uk/info/200202/performance_and_spending/1079/payments_over_500,10-Mar-2023,Childrens Services,REDACTED PERSONAL DATA,Childrens Services,727.27,External Contract Hire,2223P12_CR00298,REDACTED PERSONAL DATA,,
Sandwell Metropolitan Borough Council,http://www.sandwell.gov.uk/info/200202/performance_and_spending/1079/payments_over_500,10-Mar-2023,Childrens Services,REDACTED PERSONAL DATA,Childrens Services,545.45,External Contract Hire,2223P12_CR00299,REDACTED PERSONAL DATA,,
Sandwell Metropolitan Borough Council,http://www.sandwell.gov.uk/info/200202/performance_and_spending/1079/payments_over_500,10-Mar-2023,Childrens Services,REDACTED PERSONAL DATA,Childrens Services,545.45,External Contract Hire,2223P12_CR00300,REDACTED PERSONAL DATA,,
Sandwell Metropolitan Borough Council,http://www.sandwell.gov.uk/info/200202/performance_and_spending/1079/payments_over_500,10-Mar-2023,Childrens Services,REDACTED PERSONAL DATA,Childrens Services,727.27,External Contract Hire,2223P12_CR00301,REDACTED PERSONAL DATA,,
Sandwell Metropolitan Borough Council,http://www.sandwell.gov.uk/info/200202/performance_and_spending/1079/payments_over_500,10-Mar-2023,Childrens Services,REDACTED PERSONAL DATA,Childrens Services,545.45,External Contract Hire,2223P12_CR00302,REDACTED PERSONAL DATA,,
Sandwell Metropolitan Borough Council,http://www.sandwell.gov.uk/info/200202/performance_and_spending/1079/payments_over_500,10-Mar-2023,Childrens Services,REDACTED PERSONAL DATA,Childrens Services,727.27,External Contract Hire,2223P12_CR00303,REDACTED PERSONAL DATA,,
Sandwell Metropolitan Borough Council,http://www.sandwell.gov.uk/info/200202/performance_and_spending/1079/payments_over_500,06-Mar-2023,Childrens Services,REDACTED PERSONAL DATA,Childrens Services,809.51,External Contract Hire,2223P12_CR00304,REDACTED PERSONAL DATA,,
Sandwell Metropolitan Borough Council,http://www.sandwell.gov.uk/info/200202/performance_and_spending/1079/payments_over_500,06-Mar-2023,Childrens Services,REDACTED PERSONAL DATA,Childrens Services,506.88,External Contract Hire,2223P12_CR00305,REDACTED PERSONAL DATA,,
Sandwell Metropolitan Borough Council,http://www.sandwell.gov.uk/info/200202/performance_and_spending/1079/payments_over_500,09-Mar-2023,Childrens Services,4 COMMUNITY TRUST CIC,Childrens Services,9088.00,Grant Payments,2223P12_CR00306,137880,,
Sandwell Metropolitan Borough Council,http://www.sandwell.gov.uk/info/200202/performance_and_spending/1079/payments_over_500,09-Mar-2023,Childrens Services,4 COMMUNITY TRUST CIC,Childrens Services,28872.00,Grant Payments,2223P12_CR00307,137880,,
Sandwell Metropolitan Borough Council,http://www.sandwell.gov.uk/info/200202/performance_and_spending/1079/payments_over_500,09-Mar-2023,Childrens Services,4 COMMUNITY TRUST CIC,Childrens Services,5409.00,Grant Payments,2223P12_CR00308,137880,,
Sandwell Metropolitan Borough Council,http://www.sandwell.gov.uk/info/200202/performance_and_spending/1079/payments_over_500,09-Mar-2023,Childrens Services,ALL STARS WALSALL C.I.C.,Childrens Services,4070.00,Grant Payments,2223P12_CR00309,153410,,
Sandwell Metropolitan Borough Council,http://www.sandwell.gov.uk/info/200202/performance_and_spending/1079/payments_over_500,16-Mar-2023,Childrens Services,ASPIRE ACTIVE CAMPS LTD,Childrens Services,12702.00,Grant Payments,2223P12_CR00310,163410,,
Sandwell Metropolitan Borough Council,http://www.sandwell.gov.uk/info/200202/performance_and_spending/1079/payments_over_500,09-Mar-2023,Childrens Services,BANGLADESHI WOMEN'S ASSOCIATION LIMITED,Childrens Services,4754.00,Grant Payments,2223P12_CR00311,69648,,
Sandwell Metropolitan Borough Council,http://www.sandwell.gov.uk/info/200202/performance_and_spending/1079/payments_over_500,21-Mar-2023,Childrens Services,BEARWOOD COMMUNITY HUB,Childrens Services,3935.00,Grant Payments,2223P12_CR00312,152312,,
Sandwell Metropolitan Borough Council,http://www.sandwell.gov.uk/info/200202/performance_and_spending/1079/payments_over_500,09-Mar-2023,Childrens Services,BENSON COMMUNITY PROJECT,Childrens Services,10000.00,Grant Payments,2223P12_CR00313,125061,,
Sandwell Metropolitan Borough Council,http://www.sandwell.gov.uk/info/200202/performance_and_spending/1079/payments_over_500,09-Mar-2023,Childrens Services,CENTRE SPOT C.I.C,Childrens Services,5090.00,Grant Payments,2223P12_CR00314,98361,,
Sandwell Metropolitan Borough Council,http://www.sandwell.gov.uk/info/200202/performance_and_spending/1079/payments_over_500,09-Mar-2023,Childrens Services,CHRIST CHURCH C OF E PRIMARY SCHOOL,Childrens Services,3509.00,Grant Payments,2223P12_CR00315,1705,,
Sandwell Metropolitan Borough Council,http://www.sandwell.gov.uk/info/200202/performance_and_spending/1079/payments_over_500,09-Mar-2023,Childrens Services,COMMUNITY ACTION PROJECT,Childrens Services,5136.00,Grant Payments,2223P12_CR00316,01702622,,
Sandwell Metropolitan Borough Council,http://www.sandwell.gov.uk/info/200202/performance_and_spending/1079/payments_over_500,09-Mar-2023,Childrens Services,COMMUNITY CONNECT FOUNDATION,Childrens Services,5394.00,Grant Payments,2223P12_CR00317,01685391,,
Sandwell Metropolitan Borough Council,http://www.sandwell.gov.uk/info/200202/performance_and_spending/1079/payments_over_500,09-Mar-2023,Childrens Services,CREATIVE ACTIVE LIVES CIC,Childrens Services,6328.00,Grant Payments,2223P12_CR00318,138641,,
Sandwell Metropolitan Borough Council,http://www.sandwell.gov.uk/info/200202/performance_and_spending/1079/payments_over_500,09-Mar-2023,Childrens Services,DYNAMIC KIDS C.I.C,Childrens Services,5430.00,Grant Payments,2223P12_CR00319,165444,,
Sandwell Metropolitan Borough Council,http://www.sandwell.gov.uk/info/200202/performance_and_spending/1079/payments_over_500,27-Mar-2023,Childrens Services,DYNAMIC KIDS C.I.C,Childrens Services,5430.00,Grant Payments,2223P12_CR00320,165444,,
Sandwell Metropolitan Borough Council,http://www.sandwell.gov.uk/info/200202/performance_and_spending/1079/payments_over_500,09-Mar-2023,Childrens Services,EARLS GYMNASTICS CLUB,Childrens Services,6633.00,Grant Payments,2223P12_CR00321,96950,,
Sandwell Metropolitan Borough Council,http://www.sandwell.gov.uk/info/200202/performance_and_spending/1079/payments_over_500,21-Mar-2023,Childrens Services,ELP SPORTS LTD,Childrens Services,2422.00,Grant Payments,2223P12_CR00322,165615,,
Sandwell Metropolitan Borough Council,http://www.sandwell.gov.uk/info/200202/performance_and_spending/1079/payments_over_500,09-Mar-2023,Childrens Services,EMPOWERING PEOPLE IN CHANGE C.I.C,Childrens Services,3600.00,Grant Payments,2223P12_CR00323,165445,,
Sandwell Metropolitan Borough Council,http://www.sandwell.gov.uk/info/200202/performance_and_spending/1079/payments_over_500,21-Mar-2023,Childrens Services,ENERGISE LTD,Childrens Services,4000.00,Grant Payments,2223P12_CR00324,165588,,
Sandwell Metropolitan Borough Council,http://www.sandwell.gov.uk/info/200202/performance_and_spending/1079/payments_over_500,09-Mar-2023,Childrens Services,EXCELR8 SCE C.I.C,Childrens Services,5735.00,Grant Payments,2223P12_CR00325,153112,,
Sandwell Metropolitan Borough Council,http://www.sandwell.gov.uk/info/200202/performance_and_spending/1079/payments_over_500,09-Mar-2023,Childrens Services,FANTASTIC JOURNEYS C.I.C,Childrens Services,3915.00,Grant Payments,2223P12_CR00326,163596,,
Sandwell Metropolitan Borough Council,http://www.sandwell.gov.uk/info/200202/performance_and_spending/1079/payments_over_500,09-Mar-2023,Childrens Services,FRIAR PARK MILLENNIUM CENTRE,Childrens Services,12634.00,Grant Payments,2223P12_CR00327,28476,,
Sandwell Metropolitan Borough Council,http://www.sandwell.gov.uk/info/200202/performance_and_spending/1079/payments_over_500,09-Mar-2023,Childrens Services,G.A.P ENTERTAINMENT C.I.C,Childrens Services,10000.00,Grant Payments,2223P12_CR00328,153273,,
Sandwell Metropolitan Borough Council,http://www.sandwell.gov.uk/info/200202/performance_and_spending/1079/payments_over_500,16-Mar-2023,Childrens Services,GEORGE SALTER COLLEGIATE ACADEMY ORMISTON ACADEMIES TRUST,Childrens Services,14008.00,Grant Payments,2223P12_CR00329,01217798,,
Sandwell Metropolitan Borough Council,http://www.sandwell.gov.uk/info/200202/performance_and_spending/1079/payments_over_500,09-Mar-2023,Childrens Services,GREAT BRIDGE COMMUNITY FORUM,Childrens Services,4062.00,Grant Payments,2223P12_CR00330,21026008,,
Sandwell Metropolitan Borough Council,http://www.sandwell.gov.uk/info/200202/performance_and_spending/1079/payments_over_500,09-Mar-2023,Childrens Services,GROVE VALE PRIMARY SCHOOL,Childrens Services,6438.00,Grant Payments,2223P12_CR00331,60993,,
Sandwell Metropolitan Borough Council,http://www.sandwell.gov.uk/info/200202/performance_and_spending/1079/payments_over_500,21-Mar-2023,Childrens Services,HILL TOP COMMUNITY DEVELOPMENT ASSOCIATION,Childrens Services,3335.00,Grant Payments,2223P12_CR00332,97197,,
Sandwell Metropolitan Borough Council,http://www.sandwell.gov.uk/info/200202/performance_and_spending/1079/payments_over_500,14-Mar-2023,Childrens Services,HOLLY LODGE FOUNDATION HIGH SCHOOL,Childrens Services,18900.00,Grant Payments,2223P12_CR00333,60942,,
Sandwell Metropolitan Borough Council,http://www.sandwell.gov.uk/info/200202/performance_and_spending/1079/payments_over_500,09-Mar-2023,Childrens Services,IDEAL FOR ALL LIMITED,Childrens Services,6521.00,Grant Payments,2223P12_CR00334,01678484,,
Sandwell Metropolitan Borough Council,http://www.sandwell.gov.uk/info/200202/performance_and_spending/1079/payments_over_500,09-Mar-2023,Childrens Services,ILEYS COMMUNITY ASSOCIATION,Childrens Services,4622.00,Grant Payments,2223P12_CR00335,88247,,
Sandwell Metropolitan Borough Council,http://www.sandwell.gov.uk/info/200202/performance_and_spending/1079/payments_over_500,09-Mar-2023,Childrens Services,KIDS,Childrens Services,7706.00,Grant Payments,2223P12_CR00336,80825,,
Sandwell Metropolitan Borough Council,http://www.sandwell.gov.uk/info/200202/performance_and_spending/1079/payments_over_500,09-Mar-2023,Childrens Services,LIMITLESS FITNESS CENTRE C.I.C,Childrens Services,7700.00,Grant Payments,2223P12_CR00337,165489,,
Sandwell Metropolitan Borough Council,http://www.sandwell.gov.uk/info/200202/performance_and_spending/1079/payments_over_500,09-Mar-2023,Childrens Services,LION FARM ACTION CENTRE (SANDWELL) LTD,Childrens Services,5883.00,Grant Payments,2223P12_CR00338,21023409,,
Sandwell Metropolitan Borough Council,http://www.sandwell.gov.uk/info/200202/performance_and_spending/1079/payments_over_500,09-Mar-2023,Childrens Services,MALE FAMILY GROUP T/A WARRENS HALL FARM RIDING STABLES,Childrens Services,4480.00,Grant Payments,2223P12_CR00339,87755,,
Sandwell Metropolitan Borough Council,http://www.sandwell.gov.uk/info/200202/performance_and_spending/1079/payments_over_500,20-Mar-2023,Childrens Services,OLDBURY UNITED C.I.C,Childrens Services,9774.00,Grant Payments,2223P12_CR00340,153379,,
Sandwell Metropolitan Borough Council,http://www.sandwell.gov.uk/info/200202/performance_and_spending/1079/payments_over_500,14-Mar-2023,Childrens Services,P&E SPORTS REDDITCH LTD,Childrens Services,3578.00,Grant Payments,2223P12_CR00341,163643,,
Sandwell Metropolitan Borough Council,http://www.sandwell.gov.uk/info/200202/performance_and_spending/1079/payments_over_500,14-Mar-2023,Childrens Services,PILOT IMS LTD,Childrens Services,11953.00,Grant Payments,2223P12_CR00342,59674,,
Sandwell Metropolitan Borough Council,http://www.sandwell.gov.uk/info/200202/performance_and_spending/1079/payments_over_500,21-Mar-2023,Childrens Services,PREMIER SOCCER COACHING T/A PREMIER EDUCATION,Childrens Services,10322.00,Grant Payments,2223P12_CR00343,163599,,
Sandwell Metropolitan Borough Council,http://www.sandwell.gov.uk/info/200202/performance_and_spending/1079/payments_over_500,16-Mar-2023,Childrens Services,RB SPORTS ACTIVITIES LTD,Childrens Services,11899.00,Grant Payments,2223P12_CR00344,126163,,
Sandwell Metropolitan Borough Council,http://www.sandwell.gov.uk/info/200202/performance_and_spending/1079/payments_over_500,09-Mar-2023,Childrens Services,SADWICA DAY NURSERY,Childrens Services,2090.00,Grant Payments,2223P12_CR00345,01667892,,
Sandwell Metropolitan Borough Council,http://www.sandwell.gov.uk/info/200202/performance_and_spending/1079/payments_over_500,09-Mar-2023,Childrens Services,SANDWELL ASIAN DEVELOPMENT ASSOCIATION,Childrens Services,4000.00,Grant Payments,2223P12_CR00346,55737,,
Sandwell Metropolitan Borough Council,http://www.sandwell.gov.uk/info/200202/performance_and_spending/1079/payments_over_500,14-Mar-2023,Childrens Services,SANDWELL ASIAN FAMILY SUPPORT SERVICES,Childrens Services,3099.00,Grant Payments,2223P12_CR00347,01480451,,
Sandwell Metropolitan Borough Council,http://www.sandwell.gov.uk/info/200202/performance_and_spending/1079/payments_over_500,01-Mar-2023,Childrens Services,SANDWELL CONSORTIUM CIC,Childrens Services,120351.00,Grant Payments,2223P12_CR00348,104616,,
Sandwell Metropolitan Borough Council,http://www.sandwell.gov.uk/info/200202/performance_and_spending/1079/payments_over_500,09-Mar-2023,Childrens Services,SANDWELL LEISURE TRUST,Childrens Services,4150.00,Grant Payments,2223P12_CR00349,23305,,
Sandwell Metropolitan Borough Council,http://www.sandwell.gov.uk/info/200202/performance_and_spending/1079/payments_over_500,14-Mar-2023,Childrens Services,SMETHWICK YOUTH & COMMUNITY CENTRE LIMITED,Childrens Services,2172.00,Grant Payments,2223P12_CR00350,01731934,,
Sandwell Metropolitan Borough Council,http://www.sandwell.gov.uk/info/200202/performance_and_spending/1079/payments_over_500,14-Mar-2023,Childrens Services,SPORTING SPIRIT CIC,Childrens Services,11438.00,Grant Payments,2223P12_CR00351,130989,,
Sandwell Metropolitan Borough Council,http://www.sandwell.gov.uk/info/200202/performance_and_spending/1079/payments_over_500,14-Mar-2023,Childrens Services,SPORTING YOUR FUTURES,Childrens Services,7680.00,Grant Payments,2223P12_CR00352,153219,,
Sandwell Metropolitan Borough Council,http://www.sandwell.gov.uk/info/200202/performance_and_spending/1079/payments_over_500,09-Mar-2023,Childrens Services,SPORTS 4 LIFE UK,Childrens Services,5319.00,Grant Payments,2223P12_CR00353,153208,,
Sandwell Metropolitan Borough Council,http://www.sandwell.gov.uk/info/200202/performance_and_spending/1079/payments_over_500,09-Mar-2023,Childrens Services,SPORTS PLUS SCHEME LTD,Childrens Services,43550.00,Grant Payments,2223P12_CR00354,46504,,
Sandwell Metropolitan Borough Council,http://www.sandwell.gov.uk/info/200202/performance_and_spending/1079/payments_over_500,14-Mar-2023,Childrens Services,STRIKE9T C.I.C,Childrens Services,8738.00,Grant Payments,2223P12_CR00355,162855,,
Sandwell Metropolitan Borough Council,http://www.sandwell.gov.uk/info/200202/performance_and_spending/1079/payments_over_500,09-Mar-2023,Childrens Services,THE ABRAHAMIC FOUNDATION,Childrens Services,5010.00,Grant Payments,2223P12_CR00356,130572,,
Sandwell Metropolitan Borough Council,http://www.sandwell.gov.uk/info/200202/performance_and_spending/1079/payments_over_500,14-Mar-2023,Childrens Services,THE ALBION FOUNDATION,Childrens Services,19640.00,Grant Payments,2223P12_CR00357,21026659,,
Sandwell Metropolitan Borough Council,http://www.sandwell.gov.uk/info/200202/performance_and_spending/1079/payments_over_500,09-Mar-2023,Childrens Services,THE BRANCH,Childrens Services,16200.00,Grant Payments,2223P12_CR00358,08588514,,
Sandwell Metropolitan Borough Council,http://www.sandwell.gov.uk/info/200202/performance_and_spending/1079/payments_over_500,15-Mar-2023,Childrens Services,TIBBINGTON TENANTS & RESIDENTS ASSOCIATION,Childrens Services,6660.00,Grant Payments,2223P12_CR00359,89706,,
Sandwell Metropolitan Borough Council,http://www.sandwell.gov.uk/info/200202/performance_and_spending/1079/payments_over_500,09-Mar-2023,Childrens Services,TIME STEP DANCE,Childrens Services,4351.00,Grant Payments,2223P12_CR00360,141570,,
Sandwell Metropolitan Borough Council,http://www.sandwell.gov.uk/info/200202/performance_and_spending/1079/payments_over_500,14-Mar-2023,Childrens Services,VIBES N SHINE CIC,Childrens Services,3450.00,Grant Payments,2223P12_CR00361,163633,,
Sandwell Metropolitan Borough Council,http://www.sandwell.gov.uk/info/200202/performance_and_spending/1079/payments_over_500,09-Mar-2023,Childrens Services,WEST SMETHWICK ENTERPRISE AND STEPPING STONES PRE-SCHOOL,Childrens Services,2880.00,Grant Payments,2223P12_CR00362,01722169,,
Sandwell Metropolitan Borough Council,http://www.sandwell.gov.uk/info/200202/performance_and_spending/1079/payments_over_500,09-Mar-2023,Childrens Services,YEMENI COMMUNITY ASSOCIATION IN SANDWELL,Childrens Services,3410.00,Grant Payments,2223P12_CR00363,01711292,,
Sandwell Metropolitan Borough Council,http://www.sandwell.gov.uk/info/200202/performance_and_spending/1079/payments_over_500,09-Mar-2023,Childrens Services,YMCA BLACK COUNTRY GROUP,Childrens Services,10869.00,Grant Payments,2223P12_CR00364,109842,,
Sandwell Metropolitan Borough Council,http://www.sandwell.gov.uk/info/200202/performance_and_spending/1079/payments_over_500,01-Mar-2023,Childrens Services Capital,KAPPION LTD,Childrens Services Capital,7893.75,"CIP - New Construction,Conversion, Enhancement & Reno",2223P12_CR00365,163885,,
Sandwell Metropolitan Borough Council,http://www.sandwell.gov.uk/info/200202/performance_and_spending/1079/payments_over_500,01-Mar-2023,Childrens Services Capital,SEDDON CONSTRUCTION LIMITED,Childrens Services Capital,302640.59,"CIP - New Construction,Conversion, Enhancement & Reno",2223P12_CR00366,132999,,
Sandwell Metropolitan Borough Council,http://www.sandwell.gov.uk/info/200202/performance_and_spending/1079/payments_over_500,10-Mar-2023,Corporate Management,VALENCIA FINE FOODS LIMITED,Corporate Management,1004.50,Catering Provisions,2223P12_CR00367,131572,,
Sandwell Metropolitan Borough Council,http://www.sandwell.gov.uk/info/200202/performance_and_spending/1079/payments_over_500,24-Mar-2023,Director of Law & Governance,FACULTATIEVE TECHNOLOGIES LTD,Assistant Chief Executive (Excl SIU),-2142.26,Building Maintenance & Improvements,2223P12_CR00368,89268,,
Sandwell Metropolitan Borough Council,http://www.sandwell.gov.uk/info/200202/performance_and_spending/1079/payments_over_500,01-Mar-2023,Director of Law & Governance,ALLSTAR BUSINESS SOLUTIONS LIMITED,Assistant Chief Executive (Excl SIU),540.70,Fuel ,2223P12_CR00369,104057,,
Sandwell Metropolitan Borough Council,http://www.sandwell.gov.uk/info/200202/performance_and_spending/1079/payments_over_500,01-Mar-2023,Director of Law & Governance,ALLSTAR BUSINESS SOLUTIONS LIMITED,Assistant Chief Executive (Excl SIU),920.15,Fuel ,2223P12_CR00370,104057,,
Sandwell Metropolitan Borough Council,http://www.sandwell.gov.uk/info/200202/performance_and_spending/1079/payments_over_500,20-Mar-2023,Director of Law & Governance,ANTHONY COLLINS SOLICITORS LLP,Assistant Chief Executive (Excl SIU),500.00,Externally Purchased Professional Services ,2223P12_CR00371,6288,,
Sandwell Metropolitan Borough Council,http://www.sandwell.gov.uk/info/200202/performance_and_spending/1079/payments_over_500,20-Mar-2023,Director of Law & Governance,ANTHONY COLLINS SOLICITORS LLP,Assistant Chief Executive (Excl SIU),500.00,Externally Purchased Professional Services ,2223P12_CR00372,6288,,
Sandwell Metropolitan Borough Council,http://www.sandwell.gov.uk/info/200202/performance_and_spending/1079/payments_over_500,01-Mar-2023,Director of Law & Governance,ASHDOWN SUPPLIES,Assistant Chief Executive (Excl SIU),1475.00,Bereavement Expenses,2223P12_CR00373,24335,,
Sandwell Metropolitan Borough Council,http://www.sandwell.gov.uk/info/200202/performance_and_spending/1079/payments_over_500,01-Mar-2023,Director of Law & Governance,ASHDOWN SUPPLIES,Assistant Chief Executive (Excl SIU),1270.00,Building Maintenance & Improvements,2223P12_CR00374,24335,,
Sandwell Metropolitan Borough Council,http://www.sandwell.gov.uk/info/200202/performance_and_spending/1079/payments_over_500,15-Mar-2023,Director of Law & Governance,BACHES SOLICITORS               ,Assistant Chief Executive (Excl SIU),2042.96,Externally Purchased Professional Services ,2223P12_CR00375,01643644,,
Sandwell Metropolitan Borough Council,http://www.sandwell.gov.uk/info/200202/performance_and_spending/1079/payments_over_500,01-Mar-2023,Director of Law & Governance,BACHES SOLICITORS               ,Assistant Chief Executive (Excl SIU),502.48,Externally Purchased Professional Services ,2223P12_CR00376,01643644,,
Sandwell Metropolitan Borough Council,http://www.sandwell.gov.uk/info/200202/performance_and_spending/1079/payments_over_500,01-Mar-2023,Director of Law & Governance,BACHES SOLICITORS               ,Assistant Chief Executive (Excl SIU),758.18,Externally Purchased Professional Services ,2223P12_CR00377,01643644,,
Sandwell Metropolitan Borough Council,http://www.sandwell.gov.uk/info/200202/performance_and_spending/1079/payments_over_500,01-Mar-2023,Director of Law & Governance,BACHES SOLICITORS               ,Assistant Chief Executive (Excl SIU),1296.92,Externally Purchased Professional Services ,2223P12_CR00378,01643644,,
Sandwell Metropolitan Borough Council,http://www.sandwell.gov.uk/info/200202/performance_and_spending/1079/payments_over_500,01-Mar-2023,Director of Law & Governance,BEVAN BRITTAN LLP,Assistant Chief Executive (Excl SIU),1630.30,Externally Purchased Professional Services ,2223P12_CR00379,55036,,
Sandwell Metropolitan Borough Council,http://www.sandwell.gov.uk/info/200202/performance_and_spending/1079/payments_over_500,01-Mar-2023,Director of Law & Governance,BEVAN BRITTAN LLP,Assistant Chief Executive (Excl SIU),748.00,Externally Purchased Professional Services ,2223P12_CR00380,55036,,
Sandwell Metropolitan Borough Council,http://www.sandwell.gov.uk/info/200202/performance_and_spending/1079/payments_over_500,01-Mar-2023,Director of Law & Governance,BEVAN BRITTAN LLP,Assistant Chief Executive (Excl SIU),1510.50,Externally Purchased Professional Services ,2223P12_CR00381,55036,,
Sandwell Metropolitan Borough Council,http://www.sandwell.gov.uk/info/200202/performance_and_spending/1079/payments_over_500,01-Mar-2023,Director of Law & Governance,BEVAN BRITTAN LLP,Assistant Chief Executive (Excl SIU),3724.10,Externally Purchased Professional Services ,2223P12_CR00382,55036,,
Sandwell Metropolitan Borough Council,http://www.sandwell.gov.uk/info/200202/performance_and_spending/1079/payments_over_500,01-Mar-2023,Director of Law & Governance,BEVAN BRITTAN LLP,Assistant Chief Executive (Excl SIU),3553.90,Externally Purchased Professional Services ,2223P12_CR00383,55036,,
Sandwell Metropolitan Borough Council,http://www.sandwell.gov.uk/info/200202/performance_and_spending/1079/payments_over_500,01-Mar-2023,Director of Law & Governance,BEVAN BRITTAN LLP,Assistant Chief Executive (Excl SIU),1653.00,Externally Purchased Professional Services ,2223P12_CR00384,55036,,
Sandwell Metropolitan Borough Council,http://www.sandwell.gov.uk/info/200202/performance_and_spending/1079/payments_over_500,01-Mar-2023,Director of Law & Governance,BEVAN BRITTAN LLP,Director of Law & Governance,798.60,Externally Purchased Professional Services ,2223P12_CR00385,55036,,
Sandwell Metropolitan Borough Council,http://www.sandwell.gov.uk/info/200202/performance_and_spending/1079/payments_over_500,01-Mar-2023,Director of Law & Governance,BEVAN BRITTAN LLP,Director of Law & Governance,536.80,Externally Purchased Professional Services ,2223P12_CR00386,55036,,
Sandwell Metropolitan Borough Council,http://www.sandwell.gov.uk/info/200202/performance_and_spending/1079/payments_over_500,01-Mar-2023,Director of Law & Governance,CAPSTICKS SOLICITORS LLP,Assistant Chief Executive (Excl SIU),4000.00,Externally Purchased Professional Services ,2223P12_CR00387,137897,,
Sandwell Metropolitan Borough Council,http://www.sandwell.gov.uk/info/200202/performance_and_spending/1079/payments_over_500,01-Mar-2023,Director of Law & Governance,CFH DOCMAIIL LTD,Assistant Chief Executive (Excl SIU),524.06,Postages,2223P12_CR00388,140107,,
Sandwell Metropolitan Borough Council,http://www.sandwell.gov.uk/info/200202/performance_and_spending/1079/payments_over_500,08-Mar-2023,Director of Law & Governance,CFH DOCMAIIL LTD,Assistant Chief Executive (Excl SIU),678.71,Postages,2223P12_CR00389,140107,,
Sandwell Metropolitan Borough Council,http://www.sandwell.gov.uk/info/200202/performance_and_spending/1079/payments_over_500,15-Mar-2023,Director of Law & Governance,CFH DOCMAIIL LTD,Assistant Chief Executive (Excl SIU),540.90,Postages,2223P12_CR00390,140107,,
Sandwell Metropolitan Borough Council,http://www.sandwell.gov.uk/info/200202/performance_and_spending/1079/payments_over_500,06-Mar-2023,Director of Law & Governance,EE LIMITED,Assistant Chief Executive (Excl SIU),690.00,Telephones,2223P12_CR00391,117168,,
Sandwell Metropolitan Borough Council,http://www.sandwell.gov.uk/info/200202/performance_and_spending/1079/payments_over_500,06-Mar-2023,Director of Law & Governance,EE LIMITED,Assistant Chief Executive (Excl SIU),875.00,Telephones,2223P12_CR00392,117168,,
Sandwell Metropolitan Borough Council,http://www.sandwell.gov.uk/info/200202/performance_and_spending/1079/payments_over_500,06-Mar-2023,Director of Law & Governance,EE LIMITED,Assistant Chief Executive (Excl SIU),608.00,Telephones,2223P12_CR00393,117168,,
Sandwell Metropolitan Borough Council,http://www.sandwell.gov.uk/info/200202/performance_and_spending/1079/payments_over_500,01-Mar-2023,Director of Law & Governance,ENVIRONMENTAL CONTRACTS LTD,Assistant Chief Executive (Excl SIU),3740.80,Materials & Consumables,2223P12_CR00394,2572,,
Sandwell Metropolitan Borough Council,http://www.sandwell.gov.uk/info/200202/performance_and_spending/1079/payments_over_500,01-Mar-2023,Director of Law & Governance,ENVIRONMENTAL CONTRACTS LTD,Assistant Chief Executive (Excl SIU),2553.52,Materials & Consumables,2223P12_CR00395,2572,,
Sandwell Metropolitan Borough Council,http://www.sandwell.gov.uk/info/200202/performance_and_spending/1079/payments_over_500,24-Mar-2023,Director of Law & Governance,FACULTATIEVE TECHNOLOGIES LTD,Assistant Chief Executive (Excl SIU),598.70,Building Maintenance & Improvements,2223P12_CR00396,89268,,
Sandwell Metropolitan Borough Council,http://www.sandwell.gov.uk/info/200202/performance_and_spending/1079/payments_over_500,10-Mar-2023,Director of Law & Governance,FACULTATIEVE TECHNOLOGIES LTD,Assistant Chief Executive (Excl SIU),13851.23,Building Maintenance & Improvements,2223P12_CR00397,89268,,
Sandwell Metropolitan Borough Council,http://www.sandwell.gov.uk/info/200202/performance_and_spending/1079/payments_over_500,01-Mar-2023,Director of Law & Governance,FEDERATION OF BURIAL & CREMATION AUTHORITIES,Assistant Chief Executive (Excl SIU),1220.00,Externally Purchased Professional Services ,2223P12_CR00398,16878,,
Sandwell Metropolitan Borough Council,http://www.sandwell.gov.uk/info/200202/performance_and_spending/1079/payments_over_500,10-Mar-2023,Director of Law & Governance,FUTURE GARMENTS LTD,Assistant Chief Executive (Excl SIU),601.15,Protective Clothing & Uniforms,2223P12_CR00399,17305,,
Sandwell Metropolitan Borough Council,http://www.sandwell.gov.uk/info/200202/performance_and_spending/1079/payments_over_500,28-Mar-2023,Director of Law & Governance,FUTURE GARMENTS LTD,Assistant Chief Executive (Excl SIU),771.23,Protective Clothing & Uniforms,2223P12_CR00400,17305,,
Sandwell Metropolitan Borough Council,http://www.sandwell.gov.uk/info/200202/performance_and_spending/1079/payments_over_500,01-Mar-2023,Director of Law & Governance,GREENTECH LTD,Assistant Chief Executive (Excl SIU),1500.00,Materials & Consumables,2223P12_CR00401,163053,,
Sandwell Metropolitan Borough Council,http://www.sandwell.gov.uk/info/200202/performance_and_spending/1079/payments_over_500,01-Mar-2023,Director of Law & Governance,GREENTECH LTD,Assistant Chief Executive (Excl SIU),688.05,Materials & Consumables,2223P12_CR00402,163053,,
Sandwell Metropolitan Borough Council,http://www.sandwell.gov.uk/info/200202/performance_and_spending/1079/payments_over_500,01-Mar-2023,Director of Law & Governance,GREENTECH LTD,Assistant Chief Executive (Excl SIU),500.00,Materials & Consumables,2223P12_CR00403,163053,,
Sandwell Metropolitan Borough Council,http://www.sandwell.gov.uk/info/200202/performance_and_spending/1079/payments_over_500,01-Mar-2023,Director of Law & Governance,GREENTECH LTD,Assistant Chief Executive (Excl SIU),500.00,Materials & Consumables,2223P12_CR00404,163053,,
Sandwell Metropolitan Borough Council,http://www.sandwell.gov.uk/info/200202/performance_and_spending/1079/payments_over_500,20-Mar-2023,Director of Law & Governance,GREENTECH LTD,Assistant Chief Executive (Excl SIU),713.00,Materials & Consumables,2223P12_CR00405,163053,,
Sandwell Metropolitan Borough Council,http://www.sandwell.gov.uk/info/200202/performance_and_spending/1079/payments_over_500,20-Mar-2023,Director of Law & Governance,GREENTECH LTD,Assistant Chief Executive (Excl SIU),713.00,Materials & Consumables,2223P12_CR00406,163053,,
Sandwell Metropolitan Borough Council,http://www.sandwell.gov.uk/info/200202/performance_and_spending/1079/payments_over_500,20-Mar-2023,Director of Law & Governance,GREENTECH LTD,Assistant Chief Executive (Excl SIU),710.15,Materials & Consumables,2223P12_CR00407,163053,,
Sandwell Metropolitan Borough Council,http://www.sandwell.gov.uk/info/200202/performance_and_spending/1079/payments_over_500,01-Mar-2023,Director of Law & Governance,INSTITUTE OF CEMETERY AND CREMATORIUM MANAGEMENT,Assistant Chief Executive (Excl SIU),2200.00,Staff Development & Training,2223P12_CR00408,01704821,,
Sandwell Metropolitan Borough Council,http://www.sandwell.gov.uk/info/200202/performance_and_spending/1079/payments_over_500,01-Mar-2023,Director of Law & Governance,KATHRYN WILLIETS SOLICITOR,Assistant Chief Executive (Excl SIU),1500.00,Externally Purchased Professional Services ,2223P12_CR00409,130946,,
Sandwell Metropolitan Borough Council,http://www.sandwell.gov.uk/info/200202/performance_and_spending/1079/payments_over_500,03-Mar-2023,Director of Law & Governance,KEEP BRITAIN TIDY,Assistant Chief Executive (Excl SIU),738.00,Subscriptions,2223P12_CR00410,88061,,
Sandwell Metropolitan Borough Council,http://www.sandwell.gov.uk/info/200202/performance_and_spending/1079/payments_over_500,07-Mar-2023,Director of Law & Governance,LINK SUPPORT SERVICES (UK) LTD,Assistant Chief Executive (Excl SIU),1615.00,Externally Purchased Professional Services ,2223P12_CR00411,163562,,
Sandwell Metropolitan Borough Council,http://www.sandwell.gov.uk/info/200202/performance_and_spending/1079/payments_over_500,07-Mar-2023,Director of Law & Governance,LINK SUPPORT SERVICES (UK) LTD,Assistant Chief Executive (Excl SIU),1615.00,Externally Purchased Professional Services ,2223P12_CR00412,163562,,
Sandwell Metropolitan Borough Council,http://www.sandwell.gov.uk/info/200202/performance_and_spending/1079/payments_over_500,01-Mar-2023,Director of Law & Governance,LJT LEGAL LTD,Assistant Chief Executive (Excl SIU),5683.69,Externally Purchased Professional Services ,2223P12_CR00413,139589,,
Sandwell Metropolitan Borough Council,http://www.sandwell.gov.uk/info/200202/performance_and_spending/1079/payments_over_500,01-Mar-2023,Director of Law & Governance,LWC DRINKS LIMITED,Assistant Chief Executive (Excl SIU),632.66,Catering Provisions,2223P12_CR00414,122226,,
Sandwell Metropolitan Borough Council,http://www.sandwell.gov.uk/info/200202/performance_and_spending/1079/payments_over_500,07-Mar-2023,Director of Law & Governance,MIDLAND FUNERAL SUPPLIES LTD    ,Assistant Chief Executive (Excl SIU),531.90,Bereavement Expenses,2223P12_CR00415,01345127,,
Sandwell Metropolitan Borough Council,http://www.sandwell.gov.uk/info/200202/performance_and_spending/1079/payments_over_500,01-Mar-2023,Director of Law & Governance,MOVECORP HOLDINGS LTD,Assistant Chief Executive (Excl SIU),901.00,Waste Disposal Charges,2223P12_CR00416,152623,,
Sandwell Metropolitan Borough Council,http://www.sandwell.gov.uk/info/200202/performance_and_spending/1079/payments_over_500,09-Mar-2023,Director of Law & Governance,NATIONAL WESTMINSTER BANK PLC,Assistant Chief Executive (Excl SIU),2937.00,Externally Purchased Professional Services ,2223P12_CR00417,120965,,
Sandwell Metropolitan Borough Council,http://www.sandwell.gov.uk/info/200202/performance_and_spending/1079/payments_over_500,01-Mar-2023,Director of Law & Governance,ODLINGS LTD,Assistant Chief Executive (Excl SIU),1755.00,Bereavement Expenses,2223P12_CR00418,119434,,
Sandwell Metropolitan Borough Council,http://www.sandwell.gov.uk/info/200202/performance_and_spending/1079/payments_over_500,16-Mar-2023,Director of Law & Governance,PENNON WATER SERVICES T/A SOURCE FOR BUSINESS,Assistant Chief Executive (Excl SIU),995.56,Water Services,2223P12_CR00419,131726,,
Sandwell Metropolitan Borough Council,http://www.sandwell.gov.uk/info/200202/performance_and_spending/1079/payments_over_500,01-Mar-2023,Director of Law & Governance,PENNON WATER SERVICES T/A SOURCE FOR BUSINESS,Assistant Chief Executive (Excl SIU),3803.97,Water Services,2223P12_CR00420,131726,,
Sandwell Metropolitan Borough Council,http://www.sandwell.gov.uk/info/200202/performance_and_spending/1079/payments_over_500,28-Mar-2023,Director of Law & Governance,PENNON WATER SERVICES T/A SOURCE FOR BUSINESS,Assistant Chief Executive (Excl SIU),3484.96,Water Services,2223P12_CR00421,131726,,
Sandwell Metropolitan Borough Council,http://www.sandwell.gov.uk/info/200202/performance_and_spending/1079/payments_over_500,28-Mar-2023,Director of Law & Governance,PENNON WATER SERVICES T/A SOURCE FOR BUSINESS,Assistant Chief Executive (Excl SIU),1045.53,Water Services,2223P12_CR00422,131726,,
Sandwell Metropolitan Borough Council,http://www.sandwell.gov.uk/info/200202/performance_and_spending/1079/payments_over_500,24-Mar-2023,Director of Law & Governance,PENNON WATER SERVICES T/A SOURCE FOR BUSINESS,Assistant Chief Executive (Excl SIU),940.74,Water Services,2223P12_CR00423,131726,,
Sandwell Metropolitan Borough Council,http://www.sandwell.gov.uk/info/200202/performance_and_spending/1079/payments_over_500,28-Mar-2023,Director of Law & Governance,SCRIBES PLUS LTD,Assistant Chief Executive (Excl SIU),1550.00,Bereavement Expenses,2223P12_CR00424,19254,,
Sandwell Metropolitan Borough Council,http://www.sandwell.gov.uk/info/200202/performance_and_spending/1079/payments_over_500,01-Mar-2023,Director of Law & Governance,SERCO LIMITED,Assistant Chief Executive (Excl SIU),572.60,Externally Purchased Professional Services ,2223P12_CR00425,53771,,
Sandwell Metropolitan Borough Council,http://www.sandwell.gov.uk/info/200202/performance_and_spending/1079/payments_over_500,01-Mar-2023,Director of Law & Governance,SERCO LIMITED,Assistant Chief Executive (Excl SIU),548.80,Externally Purchased Professional Services ,2223P12_CR00426,53771,,
Sandwell Metropolitan Borough Council,http://www.sandwell.gov.uk/info/200202/performance_and_spending/1079/payments_over_500,01-Mar-2023,Director of Law & Governance,SERCO LIMITED,Assistant Chief Executive (Excl SIU),1027.88,Externally Purchased Professional Services ,2223P12_CR00427,53771,,
Sandwell Metropolitan Borough Council,http://www.sandwell.gov.uk/info/200202/performance_and_spending/1079/payments_over_500,01-Mar-2023,Director of Law & Governance,SERCO LIMITED,Assistant Chief Executive (Excl SIU),1134.00,Externally Purchased Professional Services ,2223P12_CR00428,53771,,
Sandwell Metropolitan Borough Council,http://www.sandwell.gov.uk/info/200202/performance_and_spending/1079/payments_over_500,01-Mar-2023,Director of Law & Governance,SERCO LIMITED,Assistant Chief Executive (Excl SIU),1465.80,Externally Purchased Professional Services ,2223P12_CR00429,53771,,
Sandwell Metropolitan Borough Council,http://www.sandwell.gov.uk/info/200202/performance_and_spending/1079/payments_over_500,01-Mar-2023,Director of Law & Governance,SERCO LIMITED,Assistant Chief Executive (Excl SIU),746.00,Externally Purchased Professional Services ,2223P12_CR00430,53771,,
Sandwell Metropolitan Borough Council,http://www.sandwell.gov.uk/info/200202/performance_and_spending/1079/payments_over_500,01-Mar-2023,Director of Law & Governance,SHARPE PRITCHARD,Assistant Chief Executive (Excl SIU),2754.00,Externally Purchased Professional Services ,2223P12_CR00431,13615,,
Sandwell Metropolitan Borough Council,http://www.sandwell.gov.uk/info/200202/performance_and_spending/1079/payments_over_500,01-Mar-2023,Director of Law & Governance,SHARPE PRITCHARD,Assistant Chief Executive (Excl SIU),1850.00,Externally Purchased Professional Services ,2223P12_CR00432,13615,,
Sandwell Metropolitan Borough Council,http://www.sandwell.gov.uk/info/200202/performance_and_spending/1079/payments_over_500,01-Mar-2023,Director of Law & Governance,SHARPE PRITCHARD,Assistant Chief Executive (Excl SIU),1044.00,Externally Purchased Professional Services ,2223P12_CR00433,13615,,
Sandwell Metropolitan Borough Council,http://www.sandwell.gov.uk/info/200202/performance_and_spending/1079/payments_over_500,28-Mar-2023,Director of Law & Governance,SHARPE PRITCHARD,Assistant Chief Executive (Excl SIU),928.00,Externally Purchased Professional Services ,2223P12_CR00434,13615,,
Sandwell Metropolitan Borough Council,http://www.sandwell.gov.uk/info/200202/performance_and_spending/1079/payments_over_500,28-Mar-2023,Director of Law & Governance,SHARPE PRITCHARD,Assistant Chief Executive (Excl SIU),893.50,Externally Purchased Professional Services ,2223P12_CR00435,13615,,
Sandwell Metropolitan Borough Council,http://www.sandwell.gov.uk/info/200202/performance_and_spending/1079/payments_over_500,07-Mar-2023,Director of Law & Governance,TELESHORE U.K. LTD,Assistant Chief Executive (Excl SIU),2692.50,Bereavement Expenses,2223P12_CR00436,01638687,,
Sandwell Metropolitan Borough Council,http://www.sandwell.gov.uk/info/200202/performance_and_spending/1079/payments_over_500,06-Mar-2023,Director of Law & Governance,TELESHORE U.K. LTD,Assistant Chief Executive (Excl SIU),1335.50,Materials & Consumables,2223P12_CR00437,01638687,,
Sandwell Metropolitan Borough Council,http://www.sandwell.gov.uk/info/200202/performance_and_spending/1079/payments_over_500,01-Mar-2023,Director of Law & Governance,THE WILD HALO,Assistant Chief Executive (Excl SIU),4657.50,Equipment & Furniture ,2223P12_CR00438,147047,,
Sandwell Metropolitan Borough Council,http://www.sandwell.gov.uk/info/200202/performance_and_spending/1079/payments_over_500,28-Mar-2023,Director of Law & Governance,THORNES THE SOLICITORS,Assistant Chief Executive (Excl SIU),1127.17,Externally Purchased Professional Services ,2223P12_CR00439,137982,,
Sandwell Metropolitan Borough Council,http://www.sandwell.gov.uk/info/200202/performance_and_spending/1079/payments_over_500,01-Mar-2023,Director of Law & Governance,TREASURED MEMORIES LTD,Assistant Chief Executive (Excl SIU),602.30,Bereavement Expenses,2223P12_CR00440,91211,,
Sandwell Metropolitan Borough Council,http://www.sandwell.gov.uk/info/200202/performance_and_spending/1079/payments_over_500,11-Mar-2023,Director of Law & Governance,TRINITY FUNERAL SERVICES LTD,Assistant Chief Executive (Excl SIU),2663.00,Bereavement Expenses,2223P12_CR00441,75803,,
Sandwell Metropolitan Borough Council,http://www.sandwell.gov.uk/info/200202/performance_and_spending/1079/payments_over_500,11-Mar-2023,Director of Law & Governance,TRINITY FUNERAL SERVICES LTD,Assistant Chief Executive (Excl SIU),1464.00,Bereavement Expenses,2223P12_CR00442,75803,,
Sandwell Metropolitan Borough Council,http://www.sandwell.gov.uk/info/200202/performance_and_spending/1079/payments_over_500,01-Mar-2023,Director of Law & Governance,TROWERS & HAMLINS LLP,Assistant Chief Executive (Excl SIU),1000.00,Externally Purchased Professional Services ,2223P12_CR00443,37198,,
Sandwell Metropolitan Borough Council,http://www.sandwell.gov.uk/info/200202/performance_and_spending/1079/payments_over_500,01-Mar-2023,Director of Law & Governance,TROWERS & HAMLINS LLP,Assistant Chief Executive (Excl SIU),1950.00,Externally Purchased Professional Services ,2223P12_CR00444,37198,,
Sandwell Metropolitan Borough Council,http://www.sandwell.gov.uk/info/200202/performance_and_spending/1079/payments_over_500,01-Mar-2023,Director of Law & Governance,TROWERS & HAMLINS LLP,Director of Law & Governance,8750.00,Externally Purchased Professional Services ,2223P12_CR00445,37198,,
Sandwell Metropolitan Borough Council,http://www.sandwell.gov.uk/info/200202/performance_and_spending/1079/payments_over_500,01-Mar-2023,Director of Law & Governance,VIVEDIA LTD,Assistant Chief Executive (Excl SIU),605.20,Externally Purchased Professional Services ,2223P12_CR00446,141990,,
Sandwell Metropolitan Borough Council,http://www.sandwell.gov.uk/info/200202/performance_and_spending/1079/payments_over_500,01-Mar-2023,Director of Law & Governance,VIVEDIA LTD,Assistant Chief Executive (Excl SIU),7500.00,Externally Purchased Professional Services ,2223P12_CR00447,141990,,
Sandwell Metropolitan Borough Council,http://www.sandwell.gov.uk/info/200202/performance_and_spending/1079/payments_over_500,01-Mar-2023,Director of Law & Governance,VIVEDIA LTD,Assistant Chief Executive (Excl SIU),7500.00,Externally Purchased Professional Services ,2223P12_CR00448,141990,,
Sandwell Metropolitan Borough Council,http://www.sandwell.gov.uk/info/200202/performance_and_spending/1079/payments_over_500,01-Mar-2023,Director of Law & Governance,VIVEDIA LTD,Assistant Chief Executive (Excl SIU),3534.70,Externally Purchased Professional Services ,2223P12_CR00449,141990,,
Sandwell Metropolitan Borough Council,http://www.sandwell.gov.uk/info/200202/performance_and_spending/1079/payments_over_500,01-Mar-2023,Director of Law & Governance,VIVEDIA LTD,Assistant Chief Executive (Excl SIU),1726.00,Externally Purchased Professional Services ,2223P12_CR00450,141990,,
Sandwell Metropolitan Borough Council,http://www.sandwell.gov.uk/info/200202/performance_and_spending/1079/payments_over_500,01-Mar-2023,Director of Law & Governance,VIVEDIA LTD,Assistant Chief Executive (Excl SIU),2917.00,Externally Purchased Professional Services ,2223P12_CR00451,141990,,
Sandwell Metropolitan Borough Council,http://www.sandwell.gov.uk/info/200202/performance_and_spending/1079/payments_over_500,01-Mar-2023,Director of Law & Governance,VIVEDIA LTD,Assistant Chief Executive (Excl SIU),4380.00,Externally Purchased Professional Services ,2223P12_CR00452,141990,,
Sandwell Metropolitan Borough Council,http://www.sandwell.gov.uk/info/200202/performance_and_spending/1079/payments_over_500,24-Mar-2023,Director of Law & Governance,WATER PLUS SELECT LIMITED,Assistant Chief Executive (Excl SIU),1085.52,Water Services,2223P12_CR00453,129644,,
Sandwell Metropolitan Borough Council,http://www.sandwell.gov.uk/info/200202/performance_and_spending/1079/payments_over_500,24-Mar-2023,Director of Law & Governance,WATER PLUS SELECT LIMITED,Assistant Chief Executive (Excl SIU),5220.87,Water Services,2223P12_CR00454,129644,,
Sandwell Metropolitan Borough Council,http://www.sandwell.gov.uk/info/200202/performance_and_spending/1079/payments_over_500,24-Mar-2023,Director of Law & Governance,WATER PLUS SELECT LIMITED,Assistant Chief Executive (Excl SIU),547.03,Water Services,2223P12_CR00455,129644,,
Sandwell Metropolitan Borough Council,http://www.sandwell.gov.uk/info/200202/performance_and_spending/1079/payments_over_500,24-Mar-2023,Director of Law & Governance,WATER PLUS SELECT LIMITED,Assistant Chief Executive (Excl SIU),859.61,Water Services,2223P12_CR00456,129644,,
Sandwell Metropolitan Borough Council,http://www.sandwell.gov.uk/info/200202/performance_and_spending/1079/payments_over_500,24-Mar-2023,Director of Law & Governance,WATER PLUS SELECT LIMITED,Assistant Chief Executive (Excl SIU),881.70,Water Services,2223P12_CR00457,129644,,
Sandwell Metropolitan Borough Council,http://www.sandwell.gov.uk/info/200202/performance_and_spending/1079/payments_over_500,01-Mar-2023,Director of Law & Governance,WEST MIDLANDS EMPLOYERS,Assistant Chief Executive (Excl SIU),650.00,Externally Purchased Professional Services ,2223P12_CR00458,01587505,,
Sandwell Metropolitan Borough Council,http://www.sandwell.gov.uk/info/200202/performance_and_spending/1079/payments_over_500,01-Mar-2023,Director of Law & Governance,W H TINSLEY,Assistant Chief Executive (Excl SIU),10100.00,Bereavement Expenses,2223P12_CR00459,34640,,
Sandwell Metropolitan Borough Council,http://www.sandwell.gov.uk/info/200202/performance_and_spending/1079/payments_over_500,01-Mar-2023,Director of Law & Governance,REDACTED PERSONAL DATA,Assistant Chief Executive (Excl SIU),880.00,Externally Purchased Professional Services ,2223P12_CR00460,REDACTED PERSONAL DATA,,
Sandwell Metropolitan Borough Council,http://www.sandwell.gov.uk/info/200202/performance_and_spending/1079/payments_over_500,01-Mar-2023,Director of Law & Governance,DR B A ANDREOU,Assistant Chief Executive (Excl SIU),2489.00,Externally Purchased Professional Services ,2223P12_CR00461,13025425,,
Sandwell Metropolitan Borough Council,http://www.sandwell.gov.uk/info/200202/performance_and_spending/1079/payments_over_500,01-Mar-2023,Director of Law & Governance,DR JOHN DUNCAN MIDDLETON,Assistant Chief Executive (Excl SIU),1330.00,Externally Purchased Professional Services ,2223P12_CR00462,118186,,
Sandwell Metropolitan Borough Council,http://www.sandwell.gov.uk/info/200202/performance_and_spending/1079/payments_over_500,01-Mar-2023,Director of Law & Governance,DR TONY COLLINS,Assistant Chief Executive (Excl SIU),1957.00,Externally Purchased Professional Services ,2223P12_CR00463,119994,,
Sandwell Metropolitan Borough Council,http://www.sandwell.gov.uk/info/200202/performance_and_spending/1079/payments_over_500,01-Mar-2023,Director of Law & Governance,ROBIN HOPKINS,Assistant Chief Executive (Excl SIU),1000.00,Externally Purchased Professional Services ,2223P12_CR00464,136104,,
Sandwell Metropolitan Borough Council,http://www.sandwell.gov.uk/info/200202/performance_and_spending/1079/payments_over_500,14-Mar-2023,Director of Law & Governance,JONATHAN BOTT,Assistant Chief Executive (Excl SIU),850.00,Externally Purchased Professional Services ,2223P12_CR00465,125485,,
Sandwell Metropolitan Borough Council,http://www.sandwell.gov.uk/info/200202/performance_and_spending/1079/payments_over_500,01-Mar-2023,Director of Law & Governance,MATISS KRUMINS,Assistant Chief Executive (Excl SIU),1750.00,Externally Purchased Professional Services ,2223P12_CR00466,138979,,
Sandwell Metropolitan Borough Council,http://www.sandwell.gov.uk/info/200202/performance_and_spending/1079/payments_over_500,01-Mar-2023,Director of Law & Governance,MARK JACKSON,Assistant Chief Executive (Excl SIU),6937.50,Externally Purchased Professional Services ,2223P12_CR00467,79150,,
Sandwell Metropolitan Borough Council,http://www.sandwell.gov.uk/info/200202/performance_and_spending/1079/payments_over_500,01-Mar-2023,Director of Law & Governance,ROBIN HOPKINS,Director of Law & Governance,1500.00,Externally Purchased Professional Services ,2223P12_CR00468,136104,,
Sandwell Metropolitan Borough Council,http://www.sandwell.gov.uk/info/200202/performance_and_spending/1079/payments_over_500,08-Mar-2023,FINANCE (Inc SIU),BROWNE JACOBSON LLP,Assistant Chief Executive (Excl SIU),1634.00,Externally Purchased Professional Services ,2223P12_CR00469,109574,,
Sandwell Metropolitan Borough Council,http://www.sandwell.gov.uk/info/200202/performance_and_spending/1079/payments_over_500,16-Mar-2023,FINANCE (Inc SIU),BROWNE JACOBSON LLP,Assistant Chief Executive (Excl SIU),1920.00,Externally Purchased Professional Services ,2223P12_CR00470,109574,,
Sandwell Metropolitan Borough Council,http://www.sandwell.gov.uk/info/200202/performance_and_spending/1079/payments_over_500,16-Mar-2023,FINANCE (Inc SIU),BROWNE JACOBSON LLP,Assistant Chief Executive (Excl SIU),2016.40,Externally Purchased Professional Services ,2223P12_CR00471,109574,,
Sandwell Metropolitan Borough Council,http://www.sandwell.gov.uk/info/200202/performance_and_spending/1079/payments_over_500,08-Mar-2023,FINANCE (Inc SIU),BROWNE JACOBSON LLP,Assistant Chief Executive (Excl SIU),828.10,Externally Purchased Professional Services ,2223P12_CR00472,109574,,
Sandwell Metropolitan Borough Council,http://www.sandwell.gov.uk/info/200202/performance_and_spending/1079/payments_over_500,16-Mar-2023,FINANCE (Inc SIU),BROWNE JACOBSON LLP,Assistant Chief Executive (Excl SIU),1216.80,Externally Purchased Professional Services ,2223P12_CR00473,109574,,
Sandwell Metropolitan Borough Council,http://www.sandwell.gov.uk/info/200202/performance_and_spending/1079/payments_over_500,08-Mar-2023,FINANCE (Inc SIU),BROWNE JACOBSON LLP,Assistant Chief Executive (Excl SIU),1366.00,Externally Purchased Professional Services ,2223P12_CR00474,109574,,
Sandwell Metropolitan Borough Council,http://www.sandwell.gov.uk/info/200202/performance_and_spending/1079/payments_over_500,16-Mar-2023,FINANCE (Inc SIU),BROWNE JACOBSON LLP,Assistant Chief Executive (Excl SIU),1544.80,Externally Purchased Professional Services ,2223P12_CR00475,109574,,
Sandwell Metropolitan Borough Council,http://www.sandwell.gov.uk/info/200202/performance_and_spending/1079/payments_over_500,15-Mar-2023,FINANCE (Inc SIU),BROWNE JACOBSON LLP,Assistant Chief Executive (Excl SIU),1030.60,Externally Purchased Professional Services ,2223P12_CR00476,109574,,
Sandwell Metropolitan Borough Council,http://www.sandwell.gov.uk/info/200202/performance_and_spending/1079/payments_over_500,07-Mar-2023,FINANCE (Inc SIU),BROWNE JACOBSON LLP,Assistant Chief Executive (Excl SIU),1064.70,Externally Purchased Professional Services ,2223P12_CR00477,109574,,
Sandwell Metropolitan Borough Council,http://www.sandwell.gov.uk/info/200202/performance_and_spending/1079/payments_over_500,08-Mar-2023,FINANCE (Inc SIU),BROWNE JACOBSON LLP,Assistant Chief Executive (Excl SIU),980.20,Externally Purchased Professional Services ,2223P12_CR00478,109574,,
Sandwell Metropolitan Borough Council,http://www.sandwell.gov.uk/info/200202/performance_and_spending/1079/payments_over_500,16-Mar-2023,FINANCE (Inc SIU),BROWNE JACOBSON LLP,Assistant Chief Executive (Excl SIU),2295.20,Externally Purchased Professional Services ,2223P12_CR00479,109574,,
Sandwell Metropolitan Borough Council,http://www.sandwell.gov.uk/info/200202/performance_and_spending/1079/payments_over_500,07-Mar-2023,FINANCE (Inc SIU),BROWNE JACOBSON LLP,Assistant Chief Executive (Excl SIU),625.30,Externally Purchased Professional Services ,2223P12_CR00480,109574,,
Sandwell Metropolitan Borough Council,http://www.sandwell.gov.uk/info/200202/performance_and_spending/1079/payments_over_500,07-Mar-2023,FINANCE (Inc SIU),BROWNE JACOBSON LLP,Assistant Chief Executive (Excl SIU),2148.60,Externally Purchased Professional Services ,2223P12_CR00481,109574,,
Sandwell Metropolitan Borough Council,http://www.sandwell.gov.uk/info/200202/performance_and_spending/1079/payments_over_500,08-Mar-2023,FINANCE (Inc SIU),BROWNE JACOBSON LLP,Assistant Chief Executive (Excl SIU),1301.30,Externally Purchased Professional Services ,2223P12_CR00482,109574,,
Sandwell Metropolitan Borough Council,http://www.sandwell.gov.uk/info/200202/performance_and_spending/1079/payments_over_500,08-Mar-2023,FINANCE (Inc SIU),BROWNE JACOBSON LLP,Assistant Chief Executive (Excl SIU),1030.90,Externally Purchased Professional Services ,2223P12_CR00483,109574,,
Sandwell Metropolitan Borough Council,http://www.sandwell.gov.uk/info/200202/performance_and_spending/1079/payments_over_500,08-Mar-2023,FINANCE (Inc SIU),BROWNE JACOBSON LLP,Assistant Chief Executive (Excl SIU),963.30,Externally Purchased Professional Services ,2223P12_CR00484,109574,,
Sandwell Metropolitan Borough Council,http://www.sandwell.gov.uk/info/200202/performance_and_spending/1079/payments_over_500,07-Mar-2023,FINANCE (Inc SIU),BROWNE JACOBSON LLP,Assistant Chief Executive (Excl SIU),1368.90,Externally Purchased Professional Services ,2223P12_CR00485,109574,,
Sandwell Metropolitan Borough Council,http://www.sandwell.gov.uk/info/200202/performance_and_spending/1079/payments_over_500,08-Mar-2023,FINANCE (Inc SIU),BROWNE JACOBSON LLP,Assistant Chief Executive (Excl SIU),1436.50,Externally Purchased Professional Services ,2223P12_CR00486,109574,,
Sandwell Metropolitan Borough Council,http://www.sandwell.gov.uk/info/200202/performance_and_spending/1079/payments_over_500,08-Mar-2023,FINANCE (Inc SIU),BROWNE JACOBSON LLP,Assistant Chief Executive (Excl SIU),828.10,Externally Purchased Professional Services ,2223P12_CR00487,109574,,
Sandwell Metropolitan Borough Council,http://www.sandwell.gov.uk/info/200202/performance_and_spending/1079/payments_over_500,08-Mar-2023,FINANCE (Inc SIU),BROWNE JACOBSON LLP,Assistant Chief Executive (Excl SIU),997.10,Externally Purchased Professional Services ,2223P12_CR00488,109574,,
Sandwell Metropolitan Borough Council,http://www.sandwell.gov.uk/info/200202/performance_and_spending/1079/payments_over_500,08-Mar-2023,FINANCE (Inc SIU),BROWNE JACOBSON LLP,Assistant Chief Executive (Excl SIU),709.80,Externally Purchased Professional Services ,2223P12_CR00489,109574,,
Sandwell Metropolitan Borough Council,http://www.sandwell.gov.uk/info/200202/performance_and_spending/1079/payments_over_500,30-Mar-2023,FINANCE (Inc SIU),BROWNE JACOBSON LLP,Assistant Chief Executive (Excl SIU),912.60,Externally Purchased Professional Services ,2223P12_CR00490,109574,,
Sandwell Metropolitan Borough Council,http://www.sandwell.gov.uk/info/200202/performance_and_spending/1079/payments_over_500,07-Mar-2023,FINANCE (Inc SIU),BROWNE JACOBSON LLP,Assistant Chief Executive (Excl SIU),950.30,Externally Purchased Professional Services ,2223P12_CR00491,109574,,
Sandwell Metropolitan Borough Council,http://www.sandwell.gov.uk/info/200202/performance_and_spending/1079/payments_over_500,16-Mar-2023,FINANCE (Inc SIU),BROWNE JACOBSON LLP,Assistant Chief Executive (Excl SIU),1161.00,Externally Purchased Professional Services ,2223P12_CR00492,109574,,
Sandwell Metropolitan Borough Council,http://www.sandwell.gov.uk/info/200202/performance_and_spending/1079/payments_over_500,07-Mar-2023,FINANCE (Inc SIU),BROWNE JACOBSON LLP,Assistant Chief Executive (Excl SIU),512.00,Externally Purchased Professional Services ,2223P12_CR00493,109574,,
Sandwell Metropolitan Borough Council,http://www.sandwell.gov.uk/info/200202/performance_and_spending/1079/payments_over_500,10-Mar-2023,FINANCE (Inc SIU),CHESHIRE ESTATE & LEGAL,Assistant Chief Executive (Excl SIU),1088.24,Insurance,2223P12_CR00494,139926,,
Sandwell Metropolitan Borough Council,http://www.sandwell.gov.uk/info/200202/performance_and_spending/1079/payments_over_500,28-Mar-2023,FINANCE (Inc SIU),COBLEYS LLP,Assistant Chief Executive (Excl SIU),2500.00,Insurance,2223P12_CR00495,110381,,
Sandwell Metropolitan Borough Council,http://www.sandwell.gov.uk/info/200202/performance_and_spending/1079/payments_over_500,01-Mar-2023,FINANCE (Inc SIU),COBLEYS LLP,Assistant Chief Executive (Excl SIU),6000.00,Insurance,2223P12_CR00496,110381,,
Sandwell Metropolitan Borough Council,http://www.sandwell.gov.uk/info/200202/performance_and_spending/1079/payments_over_500,08-Mar-2023,FINANCE (Inc SIU),COBLEYS LLP,Assistant Chief Executive (Excl SIU),3000.00,Insurance,2223P12_CR00497,110381,,
Sandwell Metropolitan Borough Council,http://www.sandwell.gov.uk/info/200202/performance_and_spending/1079/payments_over_500,28-Mar-2023,FINANCE (Inc SIU),COBLEYS LLP,Assistant Chief Executive (Excl SIU),1000.00,Insurance,2223P12_CR00498,110381,,
Sandwell Metropolitan Borough Council,http://www.sandwell.gov.uk/info/200202/performance_and_spending/1079/payments_over_500,28-Mar-2023,FINANCE (Inc SIU),DAS LAW LIMITED,Assistant Chief Executive (Excl SIU),11892.00,Insurance,2223P12_CR00499,125587,,
Sandwell Metropolitan Borough Council,http://www.sandwell.gov.uk/info/200202/performance_and_spending/1079/payments_over_500,28-Mar-2023,FINANCE (Inc SIU),DAS LAW LIMITED,Assistant Chief Executive (Excl SIU),18000.00,Insurance,2223P12_CR00500,125587,,
Sandwell Metropolitan Borough Council,http://www.sandwell.gov.uk/info/200202/performance_and_spending/1079/payments_over_500,27-Mar-2023,FINANCE (Inc SIU),DRISCOLL KINGSTON SOLICITORS,Assistant Chief Executive (Excl SIU),4000.00,Insurance,2223P12_CR00501,140883,,
Sandwell Metropolitan Borough Council,http://www.sandwell.gov.uk/info/200202/performance_and_spending/1079/payments_over_500,13-Mar-2023,FINANCE (Inc SIU),DRISCOLL KINGSTON SOLICITORS,Assistant Chief Executive (Excl SIU),11456.41,Insurance,2223P12_CR00502,140883,,
Sandwell Metropolitan Borough Council,http://www.sandwell.gov.uk/info/200202/performance_and_spending/1079/payments_over_500,01-Mar-2023,FINANCE (Inc SIU),DRISCOLL KINGSTON SOLICITORS,Assistant Chief Executive (Excl SIU),5000.00,Insurance,2223P12_CR00503,140883,,
Sandwell Metropolitan Borough Council,http://www.sandwell.gov.uk/info/200202/performance_and_spending/1079/payments_over_500,27-Mar-2023,FINANCE (Inc SIU),DRISCOLL KINGSTON SOLICITORS,Assistant Chief Executive (Excl SIU),1750.00,Insurance,2223P12_CR00504,140883,,
Sandwell Metropolitan Borough Council,http://www.sandwell.gov.uk/info/200202/performance_and_spending/1079/payments_over_500,13-Mar-2023,FINANCE (Inc SIU),DRISCOLL KINGSTON SOLICITORS,Assistant Chief Executive (Excl SIU),1200.00,Insurance,2223P12_CR00505,140883,,
Sandwell Metropolitan Borough Council,http://www.sandwell.gov.uk/info/200202/performance_and_spending/1079/payments_over_500,01-Mar-2023,FINANCE (Inc SIU),DRISCOLL KINGSTON SOLICITORS,Assistant Chief Executive (Excl SIU),2000.00,Insurance,2223P12_CR00506,140883,,
Sandwell Metropolitan Borough Council,http://www.sandwell.gov.uk/info/200202/performance_and_spending/1079/payments_over_500,06-Mar-2023,FINANCE (Inc SIU),GOWING LAW SOLICITORS,Assistant Chief Executive (Excl SIU),3000.00,Insurance,2223P12_CR00507,163069,,
Sandwell Metropolitan Borough Council,http://www.sandwell.gov.uk/info/200202/performance_and_spending/1079/payments_over_500,07-Mar-2023,FINANCE (Inc SIU),GOWING LAW SOLICITORS,Assistant Chief Executive (Excl SIU),5500.00,Insurance,2223P12_CR00508,163069,,
Sandwell Metropolitan Borough Council,http://www.sandwell.gov.uk/info/200202/performance_and_spending/1079/payments_over_500,15-Mar-2023,FINANCE (Inc SIU),GOWING LAW SOLICITORS,Assistant Chief Executive (Excl SIU),1062.00,Insurance,2223P12_CR00509,163069,,
Sandwell Metropolitan Borough Council,http://www.sandwell.gov.uk/info/200202/performance_and_spending/1079/payments_over_500,03-Mar-2023,FINANCE (Inc SIU),GOWING LAW SOLICITORS,Assistant Chief Executive (Excl SIU),1000.00,Insurance,2223P12_CR00510,163069,,
Sandwell Metropolitan Borough Council,http://www.sandwell.gov.uk/info/200202/performance_and_spending/1079/payments_over_500,15-Mar-2023,FINANCE (Inc SIU),GOWING LAW SOLICITORS,Assistant Chief Executive (Excl SIU),500.00,Insurance,2223P12_CR00511,163069,,
Sandwell Metropolitan Borough Council,http://www.sandwell.gov.uk/info/200202/performance_and_spending/1079/payments_over_500,24-Mar-2023,FINANCE (Inc SIU),INAAYA SOLICITORS,Assistant Chief Executive (Excl SIU),617.80,Insurance,2223P12_CR00512,165648,,
Sandwell Metropolitan Borough Council,http://www.sandwell.gov.uk/info/200202/performance_and_spending/1079/payments_over_500,21-Mar-2023,FINANCE (Inc SIU),MATRIX SOLICITORS,Assistant Chief Executive (Excl SIU),2500.00,Insurance,2223P12_CR00513,150465,,
Sandwell Metropolitan Borough Council,http://www.sandwell.gov.uk/info/200202/performance_and_spending/1079/payments_over_500,01-Mar-2023,FINANCE (Inc SIU),MATRIX SOLICITORS,Assistant Chief Executive (Excl SIU),4500.00,Insurance,2223P12_CR00514,150465,,
Sandwell Metropolitan Borough Council,http://www.sandwell.gov.uk/info/200202/performance_and_spending/1079/payments_over_500,24-Mar-2023,FINANCE (Inc SIU),MATRIX SOLICITORS,Assistant Chief Executive (Excl SIU),7000.00,Insurance,2223P12_CR00515,150465,,
Sandwell Metropolitan Borough Council,http://www.sandwell.gov.uk/info/200202/performance_and_spending/1079/payments_over_500,01-Mar-2023,FINANCE (Inc SIU),MATRIX SOLICITORS,Assistant Chief Executive (Excl SIU),2000.00,Insurance,2223P12_CR00516,150465,,
Sandwell Metropolitan Borough Council,http://www.sandwell.gov.uk/info/200202/performance_and_spending/1079/payments_over_500,16-Mar-2023,FINANCE (Inc SIU),MURRIA SOLICITORS,Assistant Chief Executive (Excl SIU),600.00,Insurance,2223P12_CR00517,01749898,,
Sandwell Metropolitan Borough Council,http://www.sandwell.gov.uk/info/200202/performance_and_spending/1079/payments_over_500,16-Mar-2023,FINANCE (Inc SIU),MURRIA SOLICITORS,Assistant Chief Executive (Excl SIU),1700.00,Insurance,2223P12_CR00518,01749898,,
Sandwell Metropolitan Borough Council,http://www.sandwell.gov.uk/info/200202/performance_and_spending/1079/payments_over_500,22-Mar-2023,FINANCE (Inc SIU),PROGRESS LAW,Assistant Chief Executive (Excl SIU),3000.00,Insurance,2223P12_CR00519,164592,,
Sandwell Metropolitan Borough Council,http://www.sandwell.gov.uk/info/200202/performance_and_spending/1079/payments_over_500,28-Mar-2023,FINANCE (Inc SIU),ROBERT BINGHAM LTD,Assistant Chief Executive (Excl SIU),4250.00,Insurance,2223P12_CR00520,164179,,
Sandwell Metropolitan Borough Council,http://www.sandwell.gov.uk/info/200202/performance_and_spending/1079/payments_over_500,28-Mar-2023,FINANCE (Inc SIU),ROBERT BINGHAM LTD,Assistant Chief Executive (Excl SIU),1000.00,Insurance,2223P12_CR00521,164179,,
Sandwell Metropolitan Borough Council,http://www.sandwell.gov.uk/info/200202/performance_and_spending/1079/payments_over_500,28-Mar-2023,FINANCE (Inc SIU),SATCHELL MORAN SOLICITORS,Assistant Chief Executive (Excl SIU),1250.00,Insurance,2223P12_CR00522,154265,,
Sandwell Metropolitan Borough Council,http://www.sandwell.gov.uk/info/200202/performance_and_spending/1079/payments_over_500,24-Mar-2023,FINANCE (Inc SIU),SEDGWICK INTERNATIONAL UK,Assistant Chief Executive (Excl SIU),1800.00,Externally Purchased Professional Services ,2223P12_CR00523,136510,,
Sandwell Metropolitan Borough Council,http://www.sandwell.gov.uk/info/200202/performance_and_spending/1079/payments_over_500,16-Mar-2023,FINANCE (Inc SIU),THOMPSONS SOLICITORS,Assistant Chief Executive (Excl SIU),1530.00,Insurance,2223P12_CR00524,110668,,
Sandwell Metropolitan Borough Council,http://www.sandwell.gov.uk/info/200202/performance_and_spending/1079/payments_over_500,22-Mar-2023,FINANCE (Inc SIU),VERITAS SOLICITORS,Assistant Chief Executive (Excl SIU),3500.00,Insurance,2223P12_CR00525,163336,,
Sandwell Metropolitan Borough Council,http://www.sandwell.gov.uk/info/200202/performance_and_spending/1079/payments_over_500,22-Mar-2023,FINANCE (Inc SIU),VERITAS SOLICITORS,Assistant Chief Executive (Excl SIU),695.16,Insurance,2223P12_CR00526,163336,,
Sandwell Metropolitan Borough Council,http://www.sandwell.gov.uk/info/200202/performance_and_spending/1079/payments_over_500,03-Mar-2023,FINANCE (Inc SIU),BOND TURNER,Assistant Chief Executive (Excl SIU),5741.16,Insurance,2223P12_CR00527,152400,,
Sandwell Metropolitan Borough Council,http://www.sandwell.gov.uk/info/200202/performance_and_spending/1079/payments_over_500,01-Mar-2023,FINANCE (Inc SIU),HAYS SPECIALIST RECRUITMENT LTD,Assistant Chief Executive (Excl SIU),-23385.40,Agency Staff,2223P12_CR00528,80349,,
Sandwell Metropolitan Borough Council,http://www.sandwell.gov.uk/info/200202/performance_and_spending/1079/payments_over_500,01-Mar-2023,FINANCE (Inc SIU),VENN GROUP LTD,Assistant Chief Executive (Excl SIU),-830.65,Agency Staff,2223P12_CR00529,49728,,
Sandwell Metropolitan Borough Council,http://www.sandwell.gov.uk/info/200202/performance_and_spending/1079/payments_over_500,01-Mar-2023,FINANCE (Inc SIU),VENN GROUP LTD,Assistant Chief Executive (Excl SIU),-830.65,Agency Staff,2223P12_CR00530,49728,,
Sandwell Metropolitan Borough Council,http://www.sandwell.gov.uk/info/200202/performance_and_spending/1079/payments_over_500,01-Mar-2023,FINANCE (Inc SIU),VENN GROUP LTD,Assistant Chief Executive (Excl SIU),-830.65,Agency Staff,2223P12_CR00531,49728,,
Sandwell Metropolitan Borough Council,http://www.sandwell.gov.uk/info/200202/performance_and_spending/1079/payments_over_500,01-Mar-2023,FINANCE (Inc SIU),ABSOLUTE TRANSLATIONS LIMITED,FINANCE (Inc SIU),599.77,Externally Purchased Professional Services ,2223P12_CR00532,127115,,
Sandwell Metropolitan Borough Council,http://www.sandwell.gov.uk/info/200202/performance_and_spending/1079/payments_over_500,01-Mar-2023,FINANCE (Inc SIU),ADVANCED VISUALISATION TECHNOLOGIES LTD T/A DIGITAL AUTOPSY UK,Assistant Chief Executive (Excl SIU),6664.00,Bereavement Expenses,2223P12_CR00533,164897,,
Sandwell Metropolitan Borough Council,http://www.sandwell.gov.uk/info/200202/performance_and_spending/1079/payments_over_500,06-Mar-2023,FINANCE (Inc SIU),ALLPAY LIMITED,Total Adult Social Care,1900.00,Externally Purchased Professional Services ,2223P12_CR00534,111177,,
Sandwell Metropolitan Borough Council,http://www.sandwell.gov.uk/info/200202/performance_and_spending/1079/payments_over_500,24-Mar-2023,FINANCE (Inc SIU),AMBIENT PEOPLE LTD,Assistant Chief Executive (Excl SIU),6210.00,Agency Staff,2223P12_CR00535,165446,,
Sandwell Metropolitan Borough Council,http://www.sandwell.gov.uk/info/200202/performance_and_spending/1079/payments_over_500,01-Mar-2023,FINANCE (Inc SIU),ANALYTICAL SERVICES INTERNATIONAL LTD,Assistant Chief Executive (Excl SIU),13865.00,Bereavement Expenses,2223P12_CR00536,141474,,
Sandwell Metropolitan Borough Council,http://www.sandwell.gov.uk/info/200202/performance_and_spending/1079/payments_over_500,01-Mar-2023,FINANCE (Inc SIU),BCH PROPERTY LIMITED,Childrens Services,933.52,Rents,2223P12_CR00537,01011861,,
Sandwell Metropolitan Borough Council,http://www.sandwell.gov.uk/info/200202/performance_and_spending/1079/payments_over_500,01-Mar-2023,FINANCE (Inc SIU),BCH PROPERTY LIMITED,Childrens Services,1166.76,Rents,2223P12_CR00538,01011861,,
Sandwell Metropolitan Borough Council,http://www.sandwell.gov.uk/info/200202/performance_and_spending/1079/payments_over_500,01-Mar-2023,FINANCE (Inc SIU),BCH PROPERTY LIMITED,Childrens Services,1283.52,Rents,2223P12_CR00539,01011861,,
Sandwell Metropolitan Borough Council,http://www.sandwell.gov.uk/info/200202/performance_and_spending/1079/payments_over_500,01-Mar-2023,FINANCE (Inc SIU),BCH PROPERTY LIMITED,Childrens Services,1166.76,Rents,2223P12_CR00540,01011861,,
Sandwell Metropolitan Borough Council,http://www.sandwell.gov.uk/info/200202/performance_and_spending/1079/payments_over_500,01-Mar-2023,FINANCE (Inc SIU),BCH PROPERTY LIMITED,Childrens Services,1568.00,Rents,2223P12_CR00541,01011861,,
Sandwell Metropolitan Borough Council,http://www.sandwell.gov.uk/info/200202/performance_and_spending/1079/payments_over_500,01-Mar-2023,FINANCE (Inc SIU),BCH PROPERTY LIMITED,Childrens Services,1166.76,Rents,2223P12_CR00542,01011861,,
Sandwell Metropolitan Borough Council,http://www.sandwell.gov.uk/info/200202/performance_and_spending/1079/payments_over_500,01-Mar-2023,FINANCE (Inc SIU),BCH PROPERTY LIMITED,Childrens Services,1568.00,Rents,2223P12_CR00543,01011861,,
Sandwell Metropolitan Borough Council,http://www.sandwell.gov.uk/info/200202/performance_and_spending/1079/payments_over_500,01-Mar-2023,FINANCE (Inc SIU),BCH PROPERTY LIMITED,Childrens Services,1283.52,Rents,2223P12_CR00544,01011861,,
Sandwell Metropolitan Borough Council,http://www.sandwell.gov.uk/info/200202/performance_and_spending/1079/payments_over_500,01-Mar-2023,FINANCE (Inc SIU),BCH PROPERTY LIMITED,Childrens Services,1166.76,Rents,2223P12_CR00545,01011861,,
Sandwell Metropolitan Borough Council,http://www.sandwell.gov.uk/info/200202/performance_and_spending/1079/payments_over_500,01-Mar-2023,FINANCE (Inc SIU),BCH PROPERTY LIMITED,Childrens Services,1166.76,Rents,2223P12_CR00546,01011861,,
Sandwell Metropolitan Borough Council,http://www.sandwell.gov.uk/info/200202/performance_and_spending/1079/payments_over_500,01-Mar-2023,FINANCE (Inc SIU),BCH PROPERTY LIMITED,Childrens Services,1568.00,Rents,2223P12_CR00547,01011861,,
Sandwell Metropolitan Borough Council,http://www.sandwell.gov.uk/info/200202/performance_and_spending/1079/payments_over_500,01-Mar-2023,FINANCE (Inc SIU),BCH PROPERTY LIMITED,Childrens Services,1166.76,Rents,2223P12_CR00548,01011861,,
Sandwell Metropolitan Borough Council,http://www.sandwell.gov.uk/info/200202/performance_and_spending/1079/payments_over_500,01-Mar-2023,FINANCE (Inc SIU),BCH PROPERTY LIMITED,Childrens Services,1283.52,Rents,2223P12_CR00549,01011861,,
Sandwell Metropolitan Borough Council,http://www.sandwell.gov.uk/info/200202/performance_and_spending/1079/payments_over_500,01-Mar-2023,FINANCE (Inc SIU),BCH PROPERTY LIMITED,Childrens Services,1568.00,Rents,2223P12_CR00550,01011861,,
Sandwell Metropolitan Borough Council,http://www.sandwell.gov.uk/info/200202/performance_and_spending/1079/payments_over_500,01-Mar-2023,FINANCE (Inc SIU),BCH PROPERTY LIMITED,Childrens Services,933.52,Rents,2223P12_CR00551,01011861,,
Sandwell Metropolitan Borough Council,http://www.sandwell.gov.uk/info/200202/performance_and_spending/1079/payments_over_500,01-Mar-2023,FINANCE (Inc SIU),BCH PROPERTY LIMITED,Childrens Services,1283.52,Rents,2223P12_CR00552,01011861,,
Sandwell Metropolitan Borough Council,http://www.sandwell.gov.uk/info/200202/performance_and_spending/1079/payments_over_500,01-Mar-2023,FINANCE (Inc SIU),BIRMINGHAM CITY COUNCIL,Assistant Chief Executive (Excl SIU),8165.00,Externally Purchased Professional Services ,2223P12_CR00553,01622521,,
Sandwell Metropolitan Borough Council,http://www.sandwell.gov.uk/info/200202/performance_and_spending/1079/payments_over_500,02-Mar-2023,FINANCE (Inc SIU),BWR RECRUITMENT LTD TA TOTAL SOCIAL,Assistant Chief Executive (Excl SIU),1272.80,Agency Staff,2223P12_CR00554,162923,,
Sandwell Metropolitan Borough Council,http://www.sandwell.gov.uk/info/200202/performance_and_spending/1079/payments_over_500,02-Mar-2023,FINANCE (Inc SIU),BWR RECRUITMENT LTD TA TOTAL SOCIAL,Assistant Chief Executive (Excl SIU),1191.40,Agency Staff,2223P12_CR00555,162923,,
Sandwell Metropolitan Borough Council,http://www.sandwell.gov.uk/info/200202/performance_and_spending/1079/payments_over_500,08-Mar-2023,FINANCE (Inc SIU),BWR RECRUITMENT LTD TA TOTAL SOCIAL,Assistant Chief Executive (Excl SIU),1014.80,Agency Staff,2223P12_CR00556,162923,,
Sandwell Metropolitan Borough Council,http://www.sandwell.gov.uk/info/200202/performance_and_spending/1079/payments_over_500,08-Mar-2023,FINANCE (Inc SIU),BWR RECRUITMENT LTD TA TOTAL SOCIAL,Assistant Chief Executive (Excl SIU),1191.40,Agency Staff,2223P12_CR00557,162923,,
Sandwell Metropolitan Borough Council,http://www.sandwell.gov.uk/info/200202/performance_and_spending/1079/payments_over_500,01-Mar-2023,FINANCE (Inc SIU),BWR RECRUITMENT LTD TA TOTAL SOCIAL,Assistant Chief Executive (Excl SIU),1272.80,Agency Staff,2223P12_CR00558,162923,,
Sandwell Metropolitan Borough Council,http://www.sandwell.gov.uk/info/200202/performance_and_spending/1079/payments_over_500,01-Mar-2023,FINANCE (Inc SIU),BWR RECRUITMENT LTD TA TOTAL SOCIAL,Assistant Chief Executive (Excl SIU),1191.40,Agency Staff,2223P12_CR00559,162923,,
Sandwell Metropolitan Borough Council,http://www.sandwell.gov.uk/info/200202/performance_and_spending/1079/payments_over_500,24-Mar-2023,FINANCE (Inc SIU),BWR RECRUITMENT LTD TA TOTAL SOCIAL,Assistant Chief Executive (Excl SIU),1032.00,Agency Staff,2223P12_CR00560,162923,,
Sandwell Metropolitan Borough Council,http://www.sandwell.gov.uk/info/200202/performance_and_spending/1079/payments_over_500,24-Mar-2023,FINANCE (Inc SIU),BWR RECRUITMENT LTD TA TOTAL SOCIAL,Assistant Chief Executive (Excl SIU),1191.40,Agency Staff,2223P12_CR00561,162923,,
Sandwell Metropolitan Borough Council,http://www.sandwell.gov.uk/info/200202/performance_and_spending/1079/payments_over_500,24-Mar-2023,FINANCE (Inc SIU),CAMPBELL TICKELL LTD,Assistant Chief Executive (Excl SIU),13320.00,Agency Staff,2223P12_CR00562,163142,,
Sandwell Metropolitan Borough Council,http://www.sandwell.gov.uk/info/200202/performance_and_spending/1079/payments_over_500,01-Mar-2023,FINANCE (Inc SIU),CHARTERED INSTITUTE OF PURCHASING & SUPPLY (CIPS),Assistant Chief Executive (Excl SIU),5750.00,Externally Purchased Professional Services ,2223P12_CR00563,24906,,
Sandwell Metropolitan Borough Council,http://www.sandwell.gov.uk/info/200202/performance_and_spending/1079/payments_over_500,06-Mar-2023,FINANCE (Inc SIU),CIPFA BUSINESS LIMITED,Assistant Chief Executive (Excl SIU),6890.00,Materials & Consumables,2223P12_CR00564,01023717,,
Sandwell Metropolitan Borough Council,http://www.sandwell.gov.uk/info/200202/performance_and_spending/1079/payments_over_500,01-Mar-2023,FINANCE (Inc SIU),CIPFA C.CO,Assistant Chief Executive (Excl SIU),25000.00,Externally Purchased Professional Services ,2223P12_CR00565,134304,,
Sandwell Metropolitan Borough Council,http://www.sandwell.gov.uk/info/200202/performance_and_spending/1079/payments_over_500,01-Mar-2023,FINANCE (Inc SIU),CIVICA UK LTD,Assistant Chief Executive (Excl SIU),600.00,Externally Purchased Professional Services ,2223P12_CR00566,26200,,
Sandwell Metropolitan Borough Council,http://www.sandwell.gov.uk/info/200202/performance_and_spending/1079/payments_over_500,22-Mar-2023,FINANCE (Inc SIU),CIVICA UK LTD,Assistant Chief Executive (Excl SIU),3000.00,Externally Purchased Professional Services ,2223P12_CR00567,26200,,
Sandwell Metropolitan Borough Council,http://www.sandwell.gov.uk/info/200202/performance_and_spending/1079/payments_over_500,20-Mar-2023,FINANCE (Inc SIU),CUSTODIAN GROUP LTD,Childrens Services,630.00,Rents,2223P12_CR00568,151637,,
Sandwell Metropolitan Borough Council,http://www.sandwell.gov.uk/info/200202/performance_and_spending/1079/payments_over_500,20-Mar-2023,FINANCE (Inc SIU),CUSTODIAN GROUP LTD,Childrens Services,630.00,Rents,2223P12_CR00569,151637,,
Sandwell Metropolitan Borough Council,http://www.sandwell.gov.uk/info/200202/performance_and_spending/1079/payments_over_500,20-Mar-2023,FINANCE (Inc SIU),CUSTODIAN GROUP LTD,Childrens Services,630.00,Rents,2223P12_CR00570,151637,,
Sandwell Metropolitan Borough Council,http://www.sandwell.gov.uk/info/200202/performance_and_spending/1079/payments_over_500,20-Mar-2023,FINANCE (Inc SIU),CUSTODIAN GROUP LTD,Childrens Services,630.00,Rents,2223P12_CR00571,151637,,
Sandwell Metropolitan Borough Council,http://www.sandwell.gov.uk/info/200202/performance_and_spending/1079/payments_over_500,20-Mar-2023,FINANCE (Inc SIU),CUSTODIAN GROUP LTD,Childrens Services,630.00,Rents,2223P12_CR00572,151637,,
Sandwell Metropolitan Borough Council,http://www.sandwell.gov.uk/info/200202/performance_and_spending/1079/payments_over_500,20-Mar-2023,FINANCE (Inc SIU),CUSTODIAN GROUP LTD,Childrens Services,630.00,Rents,2223P12_CR00573,151637,,
Sandwell Metropolitan Borough Council,http://www.sandwell.gov.uk/info/200202/performance_and_spending/1079/payments_over_500,20-Mar-2023,FINANCE (Inc SIU),CUSTODIAN GROUP LTD,Childrens Services,630.00,Rents,2223P12_CR00574,151637,,
Sandwell Metropolitan Borough Council,http://www.sandwell.gov.uk/info/200202/performance_and_spending/1079/payments_over_500,20-Mar-2023,FINANCE (Inc SIU),CUSTODIAN GROUP LTD,Childrens Services,630.00,Rents,2223P12_CR00575,151637,,
Sandwell Metropolitan Borough Council,http://www.sandwell.gov.uk/info/200202/performance_and_spending/1079/payments_over_500,20-Mar-2023,FINANCE (Inc SIU),CUSTODIAN GROUP LTD,Childrens Services,630.00,Rents,2223P12_CR00576,151637,,
Sandwell Metropolitan Borough Council,http://www.sandwell.gov.uk/info/200202/performance_and_spending/1079/payments_over_500,20-Mar-2023,FINANCE (Inc SIU),CUSTODIAN GROUP LTD,Childrens Services,630.00,Rents,2223P12_CR00577,151637,,
Sandwell Metropolitan Borough Council,http://www.sandwell.gov.uk/info/200202/performance_and_spending/1079/payments_over_500,20-Mar-2023,FINANCE (Inc SIU),CUSTODIAN GROUP LTD,Childrens Services,630.00,Rents,2223P12_CR00578,151637,,
Sandwell Metropolitan Borough Council,http://www.sandwell.gov.uk/info/200202/performance_and_spending/1079/payments_over_500,20-Mar-2023,FINANCE (Inc SIU),CUSTODIAN GROUP LTD,Childrens Services,630.00,Rents,2223P12_CR00579,151637,,
Sandwell Metropolitan Borough Council,http://www.sandwell.gov.uk/info/200202/performance_and_spending/1079/payments_over_500,20-Mar-2023,FINANCE (Inc SIU),CUSTODIAN GROUP LTD,Childrens Services,630.00,Rents,2223P12_CR00580,151637,,
Sandwell Metropolitan Borough Council,http://www.sandwell.gov.uk/info/200202/performance_and_spending/1079/payments_over_500,20-Mar-2023,FINANCE (Inc SIU),CUSTODIAN GROUP LTD,Childrens Services,630.00,Rents,2223P12_CR00581,151637,,
Sandwell Metropolitan Borough Council,http://www.sandwell.gov.uk/info/200202/performance_and_spending/1079/payments_over_500,20-Mar-2023,FINANCE (Inc SIU),CUSTODIAN GROUP LTD,Childrens Services,630.00,Rents,2223P12_CR00582,151637,,
Sandwell Metropolitan Borough Council,http://www.sandwell.gov.uk/info/200202/performance_and_spending/1079/payments_over_500,20-Mar-2023,FINANCE (Inc SIU),CUSTODIAN GROUP LTD,Childrens Services,630.00,Rents,2223P12_CR00583,151637,,
Sandwell Metropolitan Borough Council,http://www.sandwell.gov.uk/info/200202/performance_and_spending/1079/payments_over_500,20-Mar-2023,FINANCE (Inc SIU),CUSTODIAN GROUP LTD,Childrens Services,630.00,Rents,2223P12_CR00584,151637,,
Sandwell Metropolitan Borough Council,http://www.sandwell.gov.uk/info/200202/performance_and_spending/1079/payments_over_500,20-Mar-2023,FINANCE (Inc SIU),CUSTODIAN GROUP LTD,Childrens Services,630.00,Rents,2223P12_CR00585,151637,,
Sandwell Metropolitan Borough Council,http://www.sandwell.gov.uk/info/200202/performance_and_spending/1079/payments_over_500,20-Mar-2023,FINANCE (Inc SIU),CUSTODIAN GROUP LTD,Childrens Services,630.00,Rents,2223P12_CR00586,151637,,
Sandwell Metropolitan Borough Council,http://www.sandwell.gov.uk/info/200202/performance_and_spending/1079/payments_over_500,20-Mar-2023,FINANCE (Inc SIU),CUSTODIAN GROUP LTD,Childrens Services,630.00,Rents,2223P12_CR00587,151637,,
Sandwell Metropolitan Borough Council,http://www.sandwell.gov.uk/info/200202/performance_and_spending/1079/payments_over_500,20-Mar-2023,FINANCE (Inc SIU),CUSTODIAN GROUP LTD,Childrens Services,630.00,Rents,2223P12_CR00588,151637,,
Sandwell Metropolitan Borough Council,http://www.sandwell.gov.uk/info/200202/performance_and_spending/1079/payments_over_500,20-Mar-2023,FINANCE (Inc SIU),CUSTODIAN GROUP LTD,Childrens Services,630.00,Rents,2223P12_CR00589,151637,,
Sandwell Metropolitan Borough Council,http://www.sandwell.gov.uk/info/200202/performance_and_spending/1079/payments_over_500,20-Mar-2023,FINANCE (Inc SIU),CUSTODIAN GROUP LTD,Childrens Services,630.00,Rents,2223P12_CR00590,151637,,
Sandwell Metropolitan Borough Council,http://www.sandwell.gov.uk/info/200202/performance_and_spending/1079/payments_over_500,20-Mar-2023,FINANCE (Inc SIU),CUSTODIAN GROUP LTD,Childrens Services,630.00,Rents,2223P12_CR00591,151637,,
Sandwell Metropolitan Borough Council,http://www.sandwell.gov.uk/info/200202/performance_and_spending/1079/payments_over_500,20-Mar-2023,FINANCE (Inc SIU),CUSTODIAN GROUP LTD,Childrens Services,630.00,Rents,2223P12_CR00592,151637,,
Sandwell Metropolitan Borough Council,http://www.sandwell.gov.uk/info/200202/performance_and_spending/1079/payments_over_500,24-Mar-2023,FINANCE (Inc SIU),CUSTODIAN GROUP LTD,Childrens Services,630.00,Rents,2223P12_CR00593,151637,,
Sandwell Metropolitan Borough Council,http://www.sandwell.gov.uk/info/200202/performance_and_spending/1079/payments_over_500,24-Mar-2023,FINANCE (Inc SIU),CUSTODIAN GROUP LTD,Childrens Services,630.00,Rents,2223P12_CR00594,151637,,
Sandwell Metropolitan Borough Council,http://www.sandwell.gov.uk/info/200202/performance_and_spending/1079/payments_over_500,24-Mar-2023,FINANCE (Inc SIU),CUSTODIAN GROUP LTD,Childrens Services,630.00,Rents,2223P12_CR00595,151637,,
Sandwell Metropolitan Borough Council,http://www.sandwell.gov.uk/info/200202/performance_and_spending/1079/payments_over_500,24-Mar-2023,FINANCE (Inc SIU),CUSTODIAN GROUP LTD,Childrens Services,630.00,Rents,2223P12_CR00596,151637,,
Sandwell Metropolitan Borough Council,http://www.sandwell.gov.uk/info/200202/performance_and_spending/1079/payments_over_500,24-Mar-2023,FINANCE (Inc SIU),CUSTODIAN GROUP LTD,Childrens Services,630.00,Rents,2223P12_CR00597,151637,,
Sandwell Metropolitan Borough Council,http://www.sandwell.gov.uk/info/200202/performance_and_spending/1079/payments_over_500,15-Mar-2023,FINANCE (Inc SIU),DSI BILLING SERVICES LIMITED,Assistant Chief Executive (Excl SIU),13116.82,"Printing, Stationery & General Office Expenses",2223P12_CR00598,161962,,
Sandwell Metropolitan Borough Council,http://www.sandwell.gov.uk/info/200202/performance_and_spending/1079/payments_over_500,15-Mar-2023,FINANCE (Inc SIU),DSI BILLING SERVICES LIMITED,Assistant Chief Executive (Excl SIU),3165.51,"Printing, Stationery & General Office Expenses",2223P12_CR00599,161962,,
Sandwell Metropolitan Borough Council,http://www.sandwell.gov.uk/info/200202/performance_and_spending/1079/payments_over_500,24-Mar-2023,FINANCE (Inc SIU),EDEN BROWN LIMITED,Assistant Chief Executive (Excl SIU),980.56,Agency Staff,2223P12_CR00600,47241,,
Sandwell Metropolitan Borough Council,http://www.sandwell.gov.uk/info/200202/performance_and_spending/1079/payments_over_500,03-Mar-2023,FINANCE (Inc SIU),EUROFINS FORENSIC SERVICES LTD,Assistant Chief Executive (Excl SIU),693.00,Bereavement Expenses,2223P12_CR00601,165178,,
Sandwell Metropolitan Borough Council,http://www.sandwell.gov.uk/info/200202/performance_and_spending/1079/payments_over_500,01-Mar-2023,FINANCE (Inc SIU),FOCUS ON BANKING,Assistant Chief Executive (Excl SIU),6000.00,Consultancy,2223P12_CR00602,165005,,
Sandwell Metropolitan Borough Council,http://www.sandwell.gov.uk/info/200202/performance_and_spending/1079/payments_over_500,01-Mar-2023,FINANCE (Inc SIU),G4S CASH SOLUTIONS (UK) LTD,Assistant Chief Executive (Excl SIU),633.60,Cash Collections,2223P12_CR00603,01606348,,
Sandwell Metropolitan Borough Council,http://www.sandwell.gov.uk/info/200202/performance_and_spending/1079/payments_over_500,08-Mar-2023,FINANCE (Inc SIU),GOVTECH SOLUTIONS LIMITED,Assistant Chief Executive (Excl SIU),168110.00,ICT ,2223P12_CR00604,93887,,
Sandwell Metropolitan Borough Council,http://www.sandwell.gov.uk/info/200202/performance_and_spending/1079/payments_over_500,14-Mar-2023,FINANCE (Inc SIU),GRANT THORNTON UK LLP,Assistant Chief Executive (Excl SIU),40000.00,Externally Purchased Professional Services ,2223P12_CR00605,74713,,
Sandwell Metropolitan Borough Council,http://www.sandwell.gov.uk/info/200202/performance_and_spending/1079/payments_over_500,01-Mar-2023,FINANCE (Inc SIU),GREENHALGH KERR SOLICITORS LIMITED,Assistant Chief Executive (Excl SIU),1000.00,Externally Purchased Professional Services ,2223P12_CR00606,127273,,
Sandwell Metropolitan Borough Council,http://www.sandwell.gov.uk/info/200202/performance_and_spending/1079/payments_over_500,01-Mar-2023,FINANCE (Inc SIU),GREENHALGH KERR SOLICITORS LIMITED,Assistant Chief Executive (Excl SIU),3172.56,Externally Purchased Professional Services ,2223P12_CR00607,127273,,
Sandwell Metropolitan Borough Council,http://www.sandwell.gov.uk/info/200202/performance_and_spending/1079/payments_over_500,01-Mar-2023,FINANCE (Inc SIU),GREENHALGH KERR SOLICITORS LIMITED,Assistant Chief Executive (Excl SIU),617.00,Externally Purchased Professional Services ,2223P12_CR00608,127273,,
Sandwell Metropolitan Borough Council,http://www.sandwell.gov.uk/info/200202/performance_and_spending/1079/payments_over_500,01-Mar-2023,FINANCE (Inc SIU),GREENHALGH KERR SOLICITORS LIMITED,Assistant Chief Executive (Excl SIU),824.00,Externally Purchased Professional Services ,2223P12_CR00609,127273,,
Sandwell Metropolitan Borough Council,http://www.sandwell.gov.uk/info/200202/performance_and_spending/1079/payments_over_500,01-Mar-2023,FINANCE (Inc SIU),GREENHALGH KERR SOLICITORS LIMITED,Assistant Chief Executive (Excl SIU),2606.00,Externally Purchased Professional Services ,2223P12_CR00610,127273,,
Sandwell Metropolitan Borough Council,http://www.sandwell.gov.uk/info/200202/performance_and_spending/1079/payments_over_500,01-Mar-2023,FINANCE (Inc SIU),GREENHALGH KERR SOLICITORS LIMITED,Assistant Chief Executive (Excl SIU),1509.00,Externally Purchased Professional Services ,2223P12_CR00611,127273,,
Sandwell Metropolitan Borough Council,http://www.sandwell.gov.uk/info/200202/performance_and_spending/1079/payments_over_500,08-Mar-2023,FINANCE (Inc SIU),GREENHALGH KERR SOLICITORS LIMITED,Assistant Chief Executive (Excl SIU),2201.00,Externally Purchased Professional Services ,2223P12_CR00612,127273,,
Sandwell Metropolitan Borough Council,http://www.sandwell.gov.uk/info/200202/performance_and_spending/1079/payments_over_500,16-Mar-2023,FINANCE (Inc SIU),HAWK INCENTIVES LTD,Assistant Chief Executive (Excl SIU),8500.00,Catering Provisions,2223P12_CR00613,148982,,
Sandwell Metropolitan Borough Council,http://www.sandwell.gov.uk/info/200202/performance_and_spending/1079/payments_over_500,01-Mar-2023,FINANCE (Inc SIU),HAYS SPECIALIST RECRUITMENT LTD,Assistant Chief Executive (Excl SIU),121895.09,Agency Staff,2223P12_CR00614,80349,,
Sandwell Metropolitan Borough Council,http://www.sandwell.gov.uk/info/200202/performance_and_spending/1079/payments_over_500,01-Mar-2023,FINANCE (Inc SIU),HAYS SPECIALIST RECRUITMENT LTD,Assistant Chief Executive (Excl SIU),131016.12,Agency Staff,2223P12_CR00615,80349,,
Sandwell Metropolitan Borough Council,http://www.sandwell.gov.uk/info/200202/performance_and_spending/1079/payments_over_500,01-Mar-2023,FINANCE (Inc SIU),HAYS SPECIALIST RECRUITMENT LTD,Assistant Chief Executive (Excl SIU),116825.26,Agency Staff,2223P12_CR00616,80349,,
Sandwell Metropolitan Borough Council,http://www.sandwell.gov.uk/info/200202/performance_and_spending/1079/payments_over_500,01-Mar-2023,FINANCE (Inc SIU),HAYS SPECIALIST RECRUITMENT LTD,Assistant Chief Executive (Excl SIU),118897.79,Agency Staff,2223P12_CR00617,80349,,
Sandwell Metropolitan Borough Council,http://www.sandwell.gov.uk/info/200202/performance_and_spending/1079/payments_over_500,28-Mar-2023,FINANCE (Inc SIU),HAYS SPECIALIST RECRUITMENT LTD,Assistant Chief Executive (Excl SIU),121271.72,Agency Staff,2223P12_CR00618,80349,,
Sandwell Metropolitan Borough Council,http://www.sandwell.gov.uk/info/200202/performance_and_spending/1079/payments_over_500,15-Mar-2023,FINANCE (Inc SIU),HM COURT & TRIBUNAL SERVICES,Assistant Chief Executive (Excl SIU),8981.00,Other Agency Payments,2223P12_CR00619,120965,,
Sandwell Metropolitan Borough Council,http://www.sandwell.gov.uk/info/200202/performance_and_spending/1079/payments_over_500,01-Mar-2023,FINANCE (Inc SIU),HM COURT & TRIBUNAL SERVICES,Assistant Chief Executive (Excl SIU),5518.00,Other Agency Payments,2223P12_CR00620,120965,,
Sandwell Metropolitan Borough Council,http://www.sandwell.gov.uk/info/200202/performance_and_spending/1079/payments_over_500,01-Mar-2023,FINANCE (Inc SIU),INFORM COMMUNICATIONS PLC,Assistant Chief Executive (Excl SIU),600.00,Licences,2223P12_CR00621,98508,,
Sandwell Metropolitan Borough Council,http://www.sandwell.gov.uk/info/200202/performance_and_spending/1079/payments_over_500,28-Mar-2023,FINANCE (Inc SIU),INOAPPS LIMITED,Assistant Chief Executive (Excl SIU),7700.00,Externally Purchased Professional Services ,2223P12_CR00622,122364,,
Sandwell Metropolitan Borough Council,http://www.sandwell.gov.uk/info/200202/performance_and_spending/1079/payments_over_500,01-Mar-2023,FINANCE (Inc SIU),IRON MOUNTAIN (UK) LTD,Assistant Chief Executive (Excl SIU),1318.74,ICT ,2223P12_CR00623,01719704,,
Sandwell Metropolitan Borough Council,http://www.sandwell.gov.uk/info/200202/performance_and_spending/1079/payments_over_500,29-Mar-2023,FINANCE (Inc SIU),IRON MOUNTAIN (UK) LTD,Assistant Chief Executive (Excl SIU),1318.74,ICT ,2223P12_CR00624,01719704,,
Sandwell Metropolitan Borough Council,http://www.sandwell.gov.uk/info/200202/performance_and_spending/1079/payments_over_500,01-Mar-2023,FINANCE (Inc SIU),JORECRUITMENT LIMITED,Assistant Chief Executive (Excl SIU),666.00,Agency Staff,2223P12_CR00625,154704,,
Sandwell Metropolitan Borough Council,http://www.sandwell.gov.uk/info/200202/performance_and_spending/1079/payments_over_500,01-Mar-2023,FINANCE (Inc SIU),JORECRUITMENT LIMITED,Assistant Chief Executive (Excl SIU),560.00,Agency Staff,2223P12_CR00626,154704,,
Sandwell Metropolitan Borough Council,http://www.sandwell.gov.uk/info/200202/performance_and_spending/1079/payments_over_500,01-Mar-2023,FINANCE (Inc SIU),JORECRUITMENT LIMITED,Assistant Chief Executive (Excl SIU),588.00,Agency Staff,2223P12_CR00627,154704,,
Sandwell Metropolitan Borough Council,http://www.sandwell.gov.uk/info/200202/performance_and_spending/1079/payments_over_500,01-Mar-2023,FINANCE (Inc SIU),JORECRUITMENT LIMITED,Assistant Chief Executive (Excl SIU),864.00,Agency Staff,2223P12_CR00628,154704,,
Sandwell Metropolitan Borough Council,http://www.sandwell.gov.uk/info/200202/performance_and_spending/1079/payments_over_500,08-Mar-2023,FINANCE (Inc SIU),JORECRUITMENT LIMITED,Assistant Chief Executive (Excl SIU),897.02,Agency Staff,2223P12_CR00629,154704,,
Sandwell Metropolitan Borough Council,http://www.sandwell.gov.uk/info/200202/performance_and_spending/1079/payments_over_500,08-Mar-2023,FINANCE (Inc SIU),JORECRUITMENT LIMITED,Assistant Chief Executive (Excl SIU),662.20,Agency Staff,2223P12_CR00630,154704,,
Sandwell Metropolitan Borough Council,http://www.sandwell.gov.uk/info/200202/performance_and_spending/1079/payments_over_500,08-Mar-2023,FINANCE (Inc SIU),JORECRUITMENT LIMITED,Assistant Chief Executive (Excl SIU),666.00,Agency Staff,2223P12_CR00631,154704,,
Sandwell Metropolitan Borough Council,http://www.sandwell.gov.uk/info/200202/performance_and_spending/1079/payments_over_500,01-Mar-2023,FINANCE (Inc SIU),JORECRUITMENT LIMITED,Assistant Chief Executive (Excl SIU),666.00,Agency Staff,2223P12_CR00632,154704,,
Sandwell Metropolitan Borough Council,http://www.sandwell.gov.uk/info/200202/performance_and_spending/1079/payments_over_500,01-Mar-2023,FINANCE (Inc SIU),JORECRUITMENT LIMITED,Assistant Chief Executive (Excl SIU),897.02,Agency Staff,2223P12_CR00633,154704,,
Sandwell Metropolitan Borough Council,http://www.sandwell.gov.uk/info/200202/performance_and_spending/1079/payments_over_500,01-Mar-2023,FINANCE (Inc SIU),JORECRUITMENT LIMITED,Assistant Chief Executive (Excl SIU),1113.70,Agency Staff,2223P12_CR00634,154704,,
Sandwell Metropolitan Borough Council,http://www.sandwell.gov.uk/info/200202/performance_and_spending/1079/payments_over_500,01-Mar-2023,FINANCE (Inc SIU),JORECRUITMENT LIMITED,Assistant Chief Executive (Excl SIU),567.00,Agency Staff,2223P12_CR00635,154704,,
Sandwell Metropolitan Borough Council,http://www.sandwell.gov.uk/info/200202/performance_and_spending/1079/payments_over_500,01-Mar-2023,FINANCE (Inc SIU),JORECRUITMENT LIMITED,Assistant Chief Executive (Excl SIU),975.00,Agency Staff,2223P12_CR00636,154704,,
Sandwell Metropolitan Borough Council,http://www.sandwell.gov.uk/info/200202/performance_and_spending/1079/payments_over_500,01-Mar-2023,FINANCE (Inc SIU),JORECRUITMENT LIMITED,Assistant Chief Executive (Excl SIU),975.00,Agency Staff,2223P12_CR00637,154704,,
Sandwell Metropolitan Borough Council,http://www.sandwell.gov.uk/info/200202/performance_and_spending/1079/payments_over_500,01-Mar-2023,FINANCE (Inc SIU),JORECRUITMENT LIMITED,Assistant Chief Executive (Excl SIU),897.02,Agency Staff,2223P12_CR00638,154704,,
Sandwell Metropolitan Borough Council,http://www.sandwell.gov.uk/info/200202/performance_and_spending/1079/payments_over_500,01-Mar-2023,FINANCE (Inc SIU),JORECRUITMENT LIMITED,Assistant Chief Executive (Excl SIU),1113.70,Agency Staff,2223P12_CR00639,154704,,
Sandwell Metropolitan Borough Council,http://www.sandwell.gov.uk/info/200202/performance_and_spending/1079/payments_over_500,01-Mar-2023,FINANCE (Inc SIU),JORECRUITMENT LIMITED,Assistant Chief Executive (Excl SIU),666.00,Agency Staff,2223P12_CR00640,154704,,
Sandwell Metropolitan Borough Council,http://www.sandwell.gov.uk/info/200202/performance_and_spending/1079/payments_over_500,01-Mar-2023,FINANCE (Inc SIU),JORECRUITMENT LIMITED,Assistant Chief Executive (Excl SIU),975.00,Agency Staff,2223P12_CR00641,154704,,
Sandwell Metropolitan Borough Council,http://www.sandwell.gov.uk/info/200202/performance_and_spending/1079/payments_over_500,01-Mar-2023,FINANCE (Inc SIU),JORECRUITMENT LIMITED,Assistant Chief Executive (Excl SIU),560.00,Agency Staff,2223P12_CR00642,154704,,
Sandwell Metropolitan Borough Council,http://www.sandwell.gov.uk/info/200202/performance_and_spending/1079/payments_over_500,01-Mar-2023,FINANCE (Inc SIU),KENYON BLOCK CONSULTANTS LIMITED,Assistant Chief Executive (Excl SIU),1002.00,Agency Staff,2223P12_CR00643,119366,,
Sandwell Metropolitan Borough Council,http://www.sandwell.gov.uk/info/200202/performance_and_spending/1079/payments_over_500,01-Mar-2023,FINANCE (Inc SIU),KENYON BLOCK CONSULTANTS LIMITED,Assistant Chief Executive (Excl SIU),855.00,Agency Staff,2223P12_CR00644,119366,,
Sandwell Metropolitan Borough Council,http://www.sandwell.gov.uk/info/200202/performance_and_spending/1079/payments_over_500,01-Mar-2023,FINANCE (Inc SIU),LAVAT CONSULTING LIMITED T/A PSTAX,Assistant Chief Executive (Excl SIU),1134.00,Externally Purchased Professional Services ,2223P12_CR00645,127781,,
Sandwell Metropolitan Borough Council,http://www.sandwell.gov.uk/info/200202/performance_and_spending/1079/payments_over_500,01-Mar-2023,FINANCE (Inc SIU),LG FUTURES LIMITED,Assistant Chief Executive (Excl SIU),16080.00,Externally Purchased Professional Services ,2223P12_CR00646,102773,,
Sandwell Metropolitan Borough Council,http://www.sandwell.gov.uk/info/200202/performance_and_spending/1079/payments_over_500,14-Mar-2023,FINANCE (Inc SIU),LOAVES N FISHES,Assistant Chief Executive (Excl SIU),14013.00,Equipment & Furniture ,2223P12_CR00647,71090,,
Sandwell Metropolitan Borough Council,http://www.sandwell.gov.uk/info/200202/performance_and_spending/1079/payments_over_500,02-Mar-2023,FINANCE (Inc SIU),MACILDOWIE ASSOCIATES LTD,Assistant Chief Executive (Excl SIU),3510.00,Agency Staff,2223P12_CR00648,164797,,
Sandwell Metropolitan Borough Council,http://www.sandwell.gov.uk/info/200202/performance_and_spending/1079/payments_over_500,08-Mar-2023,FINANCE (Inc SIU),MACILDOWIE ASSOCIATES LTD,Assistant Chief Executive (Excl SIU),3510.00,Agency Staff,2223P12_CR00649,164797,,
Sandwell Metropolitan Borough Council,http://www.sandwell.gov.uk/info/200202/performance_and_spending/1079/payments_over_500,01-Mar-2023,FINANCE (Inc SIU),MACILDOWIE ASSOCIATES LTD,Assistant Chief Executive (Excl SIU),3510.00,Agency Staff,2223P12_CR00650,164797,,
Sandwell Metropolitan Borough Council,http://www.sandwell.gov.uk/info/200202/performance_and_spending/1079/payments_over_500,24-Mar-2023,FINANCE (Inc SIU),MACILDOWIE ASSOCIATES LTD,Assistant Chief Executive (Excl SIU),3510.00,Agency Staff,2223P12_CR00651,164797,,
Sandwell Metropolitan Borough Council,http://www.sandwell.gov.uk/info/200202/performance_and_spending/1079/payments_over_500,01-Mar-2023,FINANCE (Inc SIU),MARSH LIMITED,Assistant Chief Executive (Excl SIU),2000.00,Externally Purchased Professional Services ,2223P12_CR00652,01165486,,
Sandwell Metropolitan Borough Council,http://www.sandwell.gov.uk/info/200202/performance_and_spending/1079/payments_over_500,01-Mar-2023,FINANCE (Inc SIU),NATIONAL MEDICARE SERVICES LTD,Assistant Chief Executive (Excl SIU),1048.00,Agency Staff,2223P12_CR00653,164404,,
Sandwell Metropolitan Borough Council,http://www.sandwell.gov.uk/info/200202/performance_and_spending/1079/payments_over_500,01-Mar-2023,FINANCE (Inc SIU),NATIONAL MEDICARE SERVICES LTD,Assistant Chief Executive (Excl SIU),1048.00,Agency Staff,2223P12_CR00654,164404,,
Sandwell Metropolitan Borough Council,http://www.sandwell.gov.uk/info/200202/performance_and_spending/1079/payments_over_500,23-Mar-2023,FINANCE (Inc SIU),NATIONAL WESTMINSTER BANK PLC,Assistant Chief Executive (Excl SIU),2422.00,Other Agency Payments,2223P12_CR00655,120965,,
Sandwell Metropolitan Borough Council,http://www.sandwell.gov.uk/info/200202/performance_and_spending/1079/payments_over_500,09-Mar-2023,FINANCE (Inc SIU),NATIONAL WESTMINSTER BANK PLC,Assistant Chief Executive (Excl SIU),2967.00,Other Agency Payments,2223P12_CR00656,120965,,
Sandwell Metropolitan Borough Council,http://www.sandwell.gov.uk/info/200202/performance_and_spending/1079/payments_over_500,22-Mar-2023,FINANCE (Inc SIU),NATIONAL WESTMINSTER BANK PLC,FINANCE (Inc SIU),3279.00,Externally Purchased Professional Services ,2223P12_CR00657,120965,,
Sandwell Metropolitan Borough Council,http://www.sandwell.gov.uk/info/200202/performance_and_spending/1079/payments_over_500,01-Mar-2023,FINANCE (Inc SIU),NEC SOFTWARE SOLUTIONS UK LTD,Assistant Chief Executive (Excl SIU),11840.00,Private Contractors,2223P12_CR00658,56043,,
Sandwell Metropolitan Borough Council,http://www.sandwell.gov.uk/info/200202/performance_and_spending/1079/payments_over_500,08-Mar-2023,FINANCE (Inc SIU),PAYPOINT PLC,Assistant Chief Executive (Excl SIU),4354.00,Fuel ,2223P12_CR00659,112333,,
Sandwell Metropolitan Borough Council,http://www.sandwell.gov.uk/info/200202/performance_and_spending/1079/payments_over_500,07-Mar-2023,FINANCE (Inc SIU),PAYPOINT PLC,Assistant Chief Executive (Excl SIU),3848.80,Fuel ,2223P12_CR00660,112333,,
Sandwell Metropolitan Borough Council,http://www.sandwell.gov.uk/info/200202/performance_and_spending/1079/payments_over_500,21-Mar-2023,FINANCE (Inc SIU),PAYPOINT PLC,Assistant Chief Executive (Excl SIU),4261.60,Fuel ,2223P12_CR00661,112333,,
Sandwell Metropolitan Borough Council,http://www.sandwell.gov.uk/info/200202/performance_and_spending/1079/payments_over_500,28-Mar-2023,FINANCE (Inc SIU),PAYPOINT PLC,Assistant Chief Executive (Excl SIU),2571.20,Fuel ,2223P12_CR00662,112333,,
Sandwell Metropolitan Borough Council,http://www.sandwell.gov.uk/info/200202/performance_and_spending/1079/payments_over_500,01-Mar-2023,FINANCE (Inc SIU),PHOENIX SOFTWARE LTD,FINANCE (Inc SIU),125851.92,ICT ,2223P12_CR00663,01504689,,
Sandwell Metropolitan Borough Council,http://www.sandwell.gov.uk/info/200202/performance_and_spending/1079/payments_over_500,01-Mar-2023,FINANCE (Inc SIU),PHOENIX SOFTWARE LTD,FINANCE (Inc SIU),152906.78,ICT ,2223P12_CR00664,01504689,,
Sandwell Metropolitan Borough Council,http://www.sandwell.gov.uk/info/200202/performance_and_spending/1079/payments_over_500,01-Mar-2023,FINANCE (Inc SIU),PHOENIX SOFTWARE LTD,FINANCE (Inc SIU),933244.84,ICT ,2223P12_CR00665,01504689,,
Sandwell Metropolitan Borough Council,http://www.sandwell.gov.uk/info/200202/performance_and_spending/1079/payments_over_500,01-Mar-2023,FINANCE (Inc SIU),REMARKABLE MEDIA GROUP LTD,FINANCE (Inc SIU),1200.00,Advertising & Publicity,2223P12_CR00666,147283,,
Sandwell Metropolitan Borough Council,http://www.sandwell.gov.uk/info/200202/performance_and_spending/1079/payments_over_500,01-Mar-2023,FINANCE (Inc SIU),RESTORE SCAN LIMITED,Total Adult Social Care,826.64,ICT ,2223P12_CR00667,13549,,
Sandwell Metropolitan Borough Council,http://www.sandwell.gov.uk/info/200202/performance_and_spending/1079/payments_over_500,01-Mar-2023,FINANCE (Inc SIU),RESTORE SCAN LIMITED,Total Adult Social Care,826.64,ICT ,2223P12_CR00668,13549,,
Sandwell Metropolitan Borough Council,http://www.sandwell.gov.uk/info/200202/performance_and_spending/1079/payments_over_500,06-Mar-2023,FINANCE (Inc SIU),ROC TECHNOLOGIES LTD,Assistant Chief Executive (Excl SIU),1706.25,Externally Purchased Professional Services ,2223P12_CR00669,161921,,
Sandwell Metropolitan Borough Council,http://www.sandwell.gov.uk/info/200202/performance_and_spending/1079/payments_over_500,02-Mar-2023,FINANCE (Inc SIU),S R MEDICAL LIMITED,Assistant Chief Executive (Excl SIU),4206.80,Bereavement Expenses,2223P12_CR00670,126888,,
Sandwell Metropolitan Borough Council,http://www.sandwell.gov.uk/info/200202/performance_and_spending/1079/payments_over_500,02-Mar-2023,FINANCE (Inc SIU),S R MEDICAL LIMITED,Assistant Chief Executive (Excl SIU),3556.20,Bereavement Expenses,2223P12_CR00671,126888,,
Sandwell Metropolitan Borough Council,http://www.sandwell.gov.uk/info/200202/performance_and_spending/1079/payments_over_500,02-Mar-2023,FINANCE (Inc SIU),S R MEDICAL LIMITED,Assistant Chief Executive (Excl SIU),1875.25,Bereavement Expenses,2223P12_CR00672,126888,,
Sandwell Metropolitan Borough Council,http://www.sandwell.gov.uk/info/200202/performance_and_spending/1079/payments_over_500,10-Mar-2023,FINANCE (Inc SIU),S R MEDICAL LIMITED,Assistant Chief Executive (Excl SIU),2394.60,Bereavement Expenses,2223P12_CR00673,126888,,
Sandwell Metropolitan Borough Council,http://www.sandwell.gov.uk/info/200202/performance_and_spending/1079/payments_over_500,10-Mar-2023,FINANCE (Inc SIU),S R MEDICAL LIMITED,Assistant Chief Executive (Excl SIU),1445.25,Bereavement Expenses,2223P12_CR00674,126888,,
Sandwell Metropolitan Borough Council,http://www.sandwell.gov.uk/info/200202/performance_and_spending/1079/payments_over_500,10-Mar-2023,FINANCE (Inc SIU),S R MEDICAL LIMITED,Assistant Chief Executive (Excl SIU),2248.95,Bereavement Expenses,2223P12_CR00675,126888,,
Sandwell Metropolitan Borough Council,http://www.sandwell.gov.uk/info/200202/performance_and_spending/1079/payments_over_500,10-Mar-2023,FINANCE (Inc SIU),S R MEDICAL LIMITED,Assistant Chief Executive (Excl SIU),2255.70,Bereavement Expenses,2223P12_CR00676,126888,,
Sandwell Metropolitan Borough Council,http://www.sandwell.gov.uk/info/200202/performance_and_spending/1079/payments_over_500,01-Mar-2023,FINANCE (Inc SIU),S R MEDICAL LIMITED,Assistant Chief Executive (Excl SIU),2068.85,Bereavement Expenses,2223P12_CR00677,126888,,
Sandwell Metropolitan Borough Council,http://www.sandwell.gov.uk/info/200202/performance_and_spending/1079/payments_over_500,15-Mar-2023,FINANCE (Inc SIU),SANDWELL CHILDREN'S TRUST,Assistant Chief Executive (Excl SIU),31622.00,Externally Purchased Professional Services ,2223P12_CR00678,133302,,
Sandwell Metropolitan Borough Council,http://www.sandwell.gov.uk/info/200202/performance_and_spending/1079/payments_over_500,02-Mar-2023,FINANCE (Inc SIU),SELLICK PARTNERSHIP GROUP LIMITED,Assistant Chief Executive (Excl SIU),2294.00,Agency Staff,2223P12_CR00679,63607,,
Sandwell Metropolitan Borough Council,http://www.sandwell.gov.uk/info/200202/performance_and_spending/1079/payments_over_500,08-Mar-2023,FINANCE (Inc SIU),SELLICK PARTNERSHIP GROUP LIMITED,Assistant Chief Executive (Excl SIU),2331.00,Agency Staff,2223P12_CR00680,63607,,
Sandwell Metropolitan Borough Council,http://www.sandwell.gov.uk/info/200202/performance_and_spending/1079/payments_over_500,08-Mar-2023,FINANCE (Inc SIU),SELLICK PARTNERSHIP GROUP LIMITED,Assistant Chief Executive (Excl SIU),2294.00,Agency Staff,2223P12_CR00681,63607,,
Sandwell Metropolitan Borough Council,http://www.sandwell.gov.uk/info/200202/performance_and_spending/1079/payments_over_500,08-Mar-2023,FINANCE (Inc SIU),SELLICK PARTNERSHIP GROUP LIMITED,Assistant Chief Executive (Excl SIU),2331.00,Agency Staff,2223P12_CR00682,63607,,
Sandwell Metropolitan Borough Council,http://www.sandwell.gov.uk/info/200202/performance_and_spending/1079/payments_over_500,01-Mar-2023,FINANCE (Inc SIU),SELLICK PARTNERSHIP GROUP LIMITED,Assistant Chief Executive (Excl SIU),2331.00,Agency Staff,2223P12_CR00683,63607,,
Sandwell Metropolitan Borough Council,http://www.sandwell.gov.uk/info/200202/performance_and_spending/1079/payments_over_500,01-Mar-2023,FINANCE (Inc SIU),SELLICK PARTNERSHIP GROUP LIMITED,Assistant Chief Executive (Excl SIU),2294.00,Agency Staff,2223P12_CR00684,63607,,
Sandwell Metropolitan Borough Council,http://www.sandwell.gov.uk/info/200202/performance_and_spending/1079/payments_over_500,24-Mar-2023,FINANCE (Inc SIU),SELLICK PARTNERSHIP GROUP LIMITED,Assistant Chief Executive (Excl SIU),2331.00,Agency Staff,2223P12_CR00685,63607,,
Sandwell Metropolitan Borough Council,http://www.sandwell.gov.uk/info/200202/performance_and_spending/1079/payments_over_500,24-Mar-2023,FINANCE (Inc SIU),SELLICK PARTNERSHIP GROUP LIMITED,Assistant Chief Executive (Excl SIU),2294.00,Agency Staff,2223P12_CR00686,63607,,
Sandwell Metropolitan Borough Council,http://www.sandwell.gov.uk/info/200202/performance_and_spending/1079/payments_over_500,24-Mar-2023,FINANCE (Inc SIU),SELLICK PARTNERSHIP GROUP LIMITED,Assistant Chief Executive (Excl SIU),2331.00,Agency Staff,2223P12_CR00687,63607,,
Sandwell Metropolitan Borough Council,http://www.sandwell.gov.uk/info/200202/performance_and_spending/1079/payments_over_500,30-Mar-2023,FINANCE (Inc SIU),SELLICK PARTNERSHIP GROUP LIMITED,Assistant Chief Executive (Excl SIU),2294.00,Agency Staff,2223P12_CR00688,63607,,
Sandwell Metropolitan Borough Council,http://www.sandwell.gov.uk/info/200202/performance_and_spending/1079/payments_over_500,01-Mar-2023,FINANCE (Inc SIU),SERVICE CARE SOLUTIONS,Assistant Chief Executive (Excl SIU),951.75,Agency Staff,2223P12_CR00689,123856,,
Sandwell Metropolitan Borough Council,http://www.sandwell.gov.uk/info/200202/performance_and_spending/1079/payments_over_500,01-Mar-2023,FINANCE (Inc SIU),SERVICE CARE SOLUTIONS,Assistant Chief Executive (Excl SIU),945.00,Agency Staff,2223P12_CR00690,123856,,
Sandwell Metropolitan Borough Council,http://www.sandwell.gov.uk/info/200202/performance_and_spending/1079/payments_over_500,01-Mar-2023,FINANCE (Inc SIU),SERVICE CARE SOLUTIONS,Assistant Chief Executive (Excl SIU),945.00,Agency Staff,2223P12_CR00691,123856,,
Sandwell Metropolitan Borough Council,http://www.sandwell.gov.uk/info/200202/performance_and_spending/1079/payments_over_500,01-Mar-2023,FINANCE (Inc SIU),SERVICE CARE SOLUTIONS,Assistant Chief Executive (Excl SIU),535.50,Agency Staff,2223P12_CR00692,123856,,
Sandwell Metropolitan Borough Council,http://www.sandwell.gov.uk/info/200202/performance_and_spending/1079/payments_over_500,01-Mar-2023,FINANCE (Inc SIU),SERVICE CARE SOLUTIONS,Assistant Chief Executive (Excl SIU),904.73,Agency Staff,2223P12_CR00693,123856,,
Sandwell Metropolitan Borough Council,http://www.sandwell.gov.uk/info/200202/performance_and_spending/1079/payments_over_500,01-Mar-2023,FINANCE (Inc SIU),SERVICE CARE SOLUTIONS,Assistant Chief Executive (Excl SIU),945.00,Agency Staff,2223P12_CR00694,123856,,
Sandwell Metropolitan Borough Council,http://www.sandwell.gov.uk/info/200202/performance_and_spending/1079/payments_over_500,01-Mar-2023,FINANCE (Inc SIU),SERVICE CARE SOLUTIONS,Assistant Chief Executive (Excl SIU),945.00,Agency Staff,2223P12_CR00695,123856,,
Sandwell Metropolitan Borough Council,http://www.sandwell.gov.uk/info/200202/performance_and_spending/1079/payments_over_500,01-Mar-2023,FINANCE (Inc SIU),SERVICE CARE SOLUTIONS,Assistant Chief Executive (Excl SIU),511.88,Agency Staff,2223P12_CR00696,123856,,
Sandwell Metropolitan Borough Council,http://www.sandwell.gov.uk/info/200202/performance_and_spending/1079/payments_over_500,01-Mar-2023,FINANCE (Inc SIU),SERVICE CARE SOLUTIONS,Assistant Chief Executive (Excl SIU),740.25,Agency Staff,2223P12_CR00697,123856,,
Sandwell Metropolitan Borough Council,http://www.sandwell.gov.uk/info/200202/performance_and_spending/1079/payments_over_500,02-Mar-2023,FINANCE (Inc SIU),SERVICE CARE SOLUTIONS,Assistant Chief Executive (Excl SIU),945.00,Agency Staff,2223P12_CR00698,123856,,
Sandwell Metropolitan Borough Council,http://www.sandwell.gov.uk/info/200202/performance_and_spending/1079/payments_over_500,02-Mar-2023,FINANCE (Inc SIU),SERVICE CARE SOLUTIONS,Assistant Chief Executive (Excl SIU),779.63,Agency Staff,2223P12_CR00699,123856,,
Sandwell Metropolitan Borough Council,http://www.sandwell.gov.uk/info/200202/performance_and_spending/1079/payments_over_500,02-Mar-2023,FINANCE (Inc SIU),SERVICE CARE SOLUTIONS,Assistant Chief Executive (Excl SIU),621.86,Agency Staff,2223P12_CR00700,123856,,
Sandwell Metropolitan Borough Council,http://www.sandwell.gov.uk/info/200202/performance_and_spending/1079/payments_over_500,08-Mar-2023,FINANCE (Inc SIU),SERVICE CARE SOLUTIONS,Assistant Chief Executive (Excl SIU),676.73,Agency Staff,2223P12_CR00701,123856,,
Sandwell Metropolitan Borough Council,http://www.sandwell.gov.uk/info/200202/performance_and_spending/1079/payments_over_500,01-Mar-2023,FINANCE (Inc SIU),SERVICE CARE SOLUTIONS,Assistant Chief Executive (Excl SIU),548.70,Agency Staff,2223P12_CR00702,123856,,
Sandwell Metropolitan Borough Council,http://www.sandwell.gov.uk/info/200202/performance_and_spending/1079/payments_over_500,24-Mar-2023,FINANCE (Inc SIU),SERVICE CARE SOLUTIONS,Assistant Chief Executive (Excl SIU),945.00,Agency Staff,2223P12_CR00703,123856,,
Sandwell Metropolitan Borough Council,http://www.sandwell.gov.uk/info/200202/performance_and_spending/1079/payments_over_500,24-Mar-2023,FINANCE (Inc SIU),SERVICE CARE SOLUTIONS,Assistant Chief Executive (Excl SIU),732.38,Agency Staff,2223P12_CR00704,123856,,
Sandwell Metropolitan Borough Council,http://www.sandwell.gov.uk/info/200202/performance_and_spending/1079/payments_over_500,24-Mar-2023,FINANCE (Inc SIU),SERVICE CARE SOLUTIONS,Assistant Chief Executive (Excl SIU),874.13,Agency Staff,2223P12_CR00705,123856,,
Sandwell Metropolitan Borough Council,http://www.sandwell.gov.uk/info/200202/performance_and_spending/1079/payments_over_500,24-Mar-2023,FINANCE (Inc SIU),SERVICE CARE SOLUTIONS,Assistant Chief Executive (Excl SIU),548.70,Agency Staff,2223P12_CR00706,123856,,
Sandwell Metropolitan Borough Council,http://www.sandwell.gov.uk/info/200202/performance_and_spending/1079/payments_over_500,08-Mar-2023,FINANCE (Inc SIU),THE OYSTER PARTNERSHIP LTD,Assistant Chief Executive (Excl SIU),1054.00,Agency Staff,2223P12_CR00707,148917,,
Sandwell Metropolitan Borough Council,http://www.sandwell.gov.uk/info/200202/performance_and_spending/1079/payments_over_500,08-Mar-2023,FINANCE (Inc SIU),THE OYSTER PARTNERSHIP LTD,Assistant Chief Executive (Excl SIU),1665.00,Agency Staff,2223P12_CR00708,148917,,
Sandwell Metropolitan Borough Council,http://www.sandwell.gov.uk/info/200202/performance_and_spending/1079/payments_over_500,01-Mar-2023,FINANCE (Inc SIU),THE OYSTER PARTNERSHIP LTD,Assistant Chief Executive (Excl SIU),1037.80,Agency Staff,2223P12_CR00709,148917,,
Sandwell Metropolitan Borough Council,http://www.sandwell.gov.uk/info/200202/performance_and_spending/1079/payments_over_500,01-Mar-2023,FINANCE (Inc SIU),THE OYSTER PARTNERSHIP LTD,Assistant Chief Executive (Excl SIU),1665.00,Agency Staff,2223P12_CR00710,148917,,
Sandwell Metropolitan Borough Council,http://www.sandwell.gov.uk/info/200202/performance_and_spending/1079/payments_over_500,24-Mar-2023,FINANCE (Inc SIU),THE OYSTER PARTNERSHIP LTD,Assistant Chief Executive (Excl SIU),1665.00,Agency Staff,2223P12_CR00711,148917,,
Sandwell Metropolitan Borough Council,http://www.sandwell.gov.uk/info/200202/performance_and_spending/1079/payments_over_500,24-Mar-2023,FINANCE (Inc SIU),THE OYSTER PARTNERSHIP LTD,Assistant Chief Executive (Excl SIU),1047.25,Agency Staff,2223P12_CR00712,148917,,
Sandwell Metropolitan Borough Council,http://www.sandwell.gov.uk/info/200202/performance_and_spending/1079/payments_over_500,01-Mar-2023,FINANCE (Inc SIU),TOTAL SUPPORT RECRUITMENT LTD,Assistant Chief Executive (Excl SIU),902.36,Agency Staff,2223P12_CR00713,162092,,
Sandwell Metropolitan Borough Council,http://www.sandwell.gov.uk/info/200202/performance_and_spending/1079/payments_over_500,08-Mar-2023,FINANCE (Inc SIU),TOTAL SUPPORT RECRUITMENT LTD,Assistant Chief Executive (Excl SIU),905.34,Agency Staff,2223P12_CR00714,162092,,
Sandwell Metropolitan Borough Council,http://www.sandwell.gov.uk/info/200202/performance_and_spending/1079/payments_over_500,01-Mar-2023,FINANCE (Inc SIU),TOTAL SUPPORT RECRUITMENT LTD,Assistant Chief Executive (Excl SIU),525.36,Agency Staff,2223P12_CR00715,162092,,
Sandwell Metropolitan Borough Council,http://www.sandwell.gov.uk/info/200202/performance_and_spending/1079/payments_over_500,24-Mar-2023,FINANCE (Inc SIU),TOTAL SUPPORT RECRUITMENT LTD,Assistant Chief Executive (Excl SIU),902.86,Agency Staff,2223P12_CR00716,162092,,
Sandwell Metropolitan Borough Council,http://www.sandwell.gov.uk/info/200202/performance_and_spending/1079/payments_over_500,01-Mar-2023,FINANCE (Inc SIU),TRH WALSALL LTD,Childrens Services,1166.76,Rents,2223P12_CR00717,85648,,
Sandwell Metropolitan Borough Council,http://www.sandwell.gov.uk/info/200202/performance_and_spending/1079/payments_over_500,01-Mar-2023,FINANCE (Inc SIU),TRH WALSALL LTD,Childrens Services,1166.76,Rents,2223P12_CR00718,85648,,
Sandwell Metropolitan Borough Council,http://www.sandwell.gov.uk/info/200202/performance_and_spending/1079/payments_over_500,01-Mar-2023,FINANCE (Inc SIU),TRINITY FUNERAL SERVICES LTD,Assistant Chief Executive (Excl SIU),2350.00,Bereavement Expenses,2223P12_CR00719,75803,,
Sandwell Metropolitan Borough Council,http://www.sandwell.gov.uk/info/200202/performance_and_spending/1079/payments_over_500,01-Mar-2023,FINANCE (Inc SIU),TRINITY FUNERAL SERVICES LTD,Assistant Chief Executive (Excl SIU),6490.00,Bereavement Expenses,2223P12_CR00720,75803,,
Sandwell Metropolitan Borough Council,http://www.sandwell.gov.uk/info/200202/performance_and_spending/1079/payments_over_500,01-Mar-2023,FINANCE (Inc SIU),TRINITY FUNERAL SERVICES LTD,Assistant Chief Executive (Excl SIU),5220.00,Bereavement Expenses,2223P12_CR00721,75803,,
Sandwell Metropolitan Borough Council,http://www.sandwell.gov.uk/info/200202/performance_and_spending/1079/payments_over_500,06-Mar-2023,FINANCE (Inc SIU),TROJAN CONSULTANTS LTD,Total Adult Social Care,19516.00,ICT ,2223P12_CR00722,108169,,
Sandwell Metropolitan Borough Council,http://www.sandwell.gov.uk/info/200202/performance_and_spending/1079/payments_over_500,30-Mar-2023,FINANCE (Inc SIU),TURPIN BARKER ARMSTRONG CORPORATE RECOVERY AND INSOLVENCY,Assistant Chief Executive (Excl SIU),10399.15,"Printing, Stationery & General Office Expenses",2223P12_CR00723,165712,,
Sandwell Metropolitan Borough Council,http://www.sandwell.gov.uk/info/200202/performance_and_spending/1079/payments_over_500,01-Mar-2023,FINANCE (Inc SIU),VENN GROUP LTD,Assistant Chief Executive (Excl SIU),604.50,Agency Staff,2223P12_CR00724,49728,,
Sandwell Metropolitan Borough Council,http://www.sandwell.gov.uk/info/200202/performance_and_spending/1079/payments_over_500,01-Mar-2023,FINANCE (Inc SIU),VENN GROUP LTD,Assistant Chief Executive (Excl SIU),1200.00,Agency Staff,2223P12_CR00725,49728,,
Sandwell Metropolitan Borough Council,http://www.sandwell.gov.uk/info/200202/performance_and_spending/1079/payments_over_500,01-Mar-2023,FINANCE (Inc SIU),VENN GROUP LTD,Assistant Chief Executive (Excl SIU),830.65,Agency Staff,2223P12_CR00726,49728,,
Sandwell Metropolitan Borough Council,http://www.sandwell.gov.uk/info/200202/performance_and_spending/1079/payments_over_500,01-Mar-2023,FINANCE (Inc SIU),VENN GROUP LTD,Assistant Chief Executive (Excl SIU),879.49,Agency Staff,2223P12_CR00727,49728,,
Sandwell Metropolitan Borough Council,http://www.sandwell.gov.uk/info/200202/performance_and_spending/1079/payments_over_500,01-Mar-2023,FINANCE (Inc SIU),VENN GROUP LTD,Assistant Chief Executive (Excl SIU),828.75,Agency Staff,2223P12_CR00728,49728,,
Sandwell Metropolitan Borough Council,http://www.sandwell.gov.uk/info/200202/performance_and_spending/1079/payments_over_500,01-Mar-2023,FINANCE (Inc SIU),VENN GROUP LTD,Assistant Chief Executive (Excl SIU),1333.07,Agency Staff,2223P12_CR00729,49728,,
Sandwell Metropolitan Borough Council,http://www.sandwell.gov.uk/info/200202/performance_and_spending/1079/payments_over_500,01-Mar-2023,FINANCE (Inc SIU),VENN GROUP LTD,Assistant Chief Executive (Excl SIU),1211.75,Agency Staff,2223P12_CR00730,49728,,
Sandwell Metropolitan Borough Council,http://www.sandwell.gov.uk/info/200202/performance_and_spending/1079/payments_over_500,01-Mar-2023,FINANCE (Inc SIU),VENN GROUP LTD,Assistant Chief Executive (Excl SIU),1211.75,Agency Staff,2223P12_CR00731,49728,,
Sandwell Metropolitan Borough Council,http://www.sandwell.gov.uk/info/200202/performance_and_spending/1079/payments_over_500,01-Mar-2023,FINANCE (Inc SIU),VENN GROUP LTD,Assistant Chief Executive (Excl SIU),1305.36,Agency Staff,2223P12_CR00732,49728,,
Sandwell Metropolitan Borough Council,http://www.sandwell.gov.uk/info/200202/performance_and_spending/1079/payments_over_500,01-Mar-2023,FINANCE (Inc SIU),VENN GROUP LTD,Assistant Chief Executive (Excl SIU),1478.13,Agency Staff,2223P12_CR00733,49728,,
Sandwell Metropolitan Borough Council,http://www.sandwell.gov.uk/info/200202/performance_and_spending/1079/payments_over_500,01-Mar-2023,FINANCE (Inc SIU),VENN GROUP LTD,Assistant Chief Executive (Excl SIU),1445.93,Agency Staff,2223P12_CR00734,49728,,
Sandwell Metropolitan Borough Council,http://www.sandwell.gov.uk/info/200202/performance_and_spending/1079/payments_over_500,01-Mar-2023,FINANCE (Inc SIU),VENN GROUP LTD,Assistant Chief Executive (Excl SIU),750.00,Agency Staff,2223P12_CR00735,49728,,
Sandwell Metropolitan Borough Council,http://www.sandwell.gov.uk/info/200202/performance_and_spending/1079/payments_over_500,01-Mar-2023,FINANCE (Inc SIU),VENN GROUP LTD,Assistant Chief Executive (Excl SIU),1015.15,Agency Staff,2223P12_CR00736,49728,,
Sandwell Metropolitan Borough Council,http://www.sandwell.gov.uk/info/200202/performance_and_spending/1079/payments_over_500,01-Mar-2023,FINANCE (Inc SIU),VENN GROUP LTD,Assistant Chief Executive (Excl SIU),913.92,Agency Staff,2223P12_CR00737,49728,,
Sandwell Metropolitan Borough Council,http://www.sandwell.gov.uk/info/200202/performance_and_spending/1079/payments_over_500,01-Mar-2023,FINANCE (Inc SIU),VENN GROUP LTD,Assistant Chief Executive (Excl SIU),2750.00,Agency Staff,2223P12_CR00738,49728,,
Sandwell Metropolitan Borough Council,http://www.sandwell.gov.uk/info/200202/performance_and_spending/1079/payments_over_500,01-Mar-2023,FINANCE (Inc SIU),VENN GROUP LTD,Assistant Chief Executive (Excl SIU),2500.00,Agency Staff,2223P12_CR00739,49728,,
Sandwell Metropolitan Borough Council,http://www.sandwell.gov.uk/info/200202/performance_and_spending/1079/payments_over_500,01-Mar-2023,FINANCE (Inc SIU),VENN GROUP LTD,Assistant Chief Executive (Excl SIU),808.82,Agency Staff,2223P12_CR00740,49728,,
Sandwell Metropolitan Borough Council,http://www.sandwell.gov.uk/info/200202/performance_and_spending/1079/payments_over_500,01-Mar-2023,FINANCE (Inc SIU),VENN GROUP LTD,Assistant Chief Executive (Excl SIU),634.28,Agency Staff,2223P12_CR00741,49728,,
Sandwell Metropolitan Borough Council,http://www.sandwell.gov.uk/info/200202/performance_and_spending/1079/payments_over_500,01-Mar-2023,FINANCE (Inc SIU),VENN GROUP LTD,Assistant Chief Executive (Excl SIU),1967.60,Agency Staff,2223P12_CR00742,49728,,
Sandwell Metropolitan Borough Council,http://www.sandwell.gov.uk/info/200202/performance_and_spending/1079/payments_over_500,01-Mar-2023,FINANCE (Inc SIU),VENN GROUP LTD,Assistant Chief Executive (Excl SIU),2755.58,Agency Staff,2223P12_CR00743,49728,,
Sandwell Metropolitan Borough Council,http://www.sandwell.gov.uk/info/200202/performance_and_spending/1079/payments_over_500,01-Mar-2023,FINANCE (Inc SIU),VENN GROUP LTD,Assistant Chief Executive (Excl SIU),1855.00,Agency Staff,2223P12_CR00744,49728,,
Sandwell Metropolitan Borough Council,http://www.sandwell.gov.uk/info/200202/performance_and_spending/1079/payments_over_500,01-Mar-2023,FINANCE (Inc SIU),VENN GROUP LTD,Assistant Chief Executive (Excl SIU),801.79,Agency Staff,2223P12_CR00745,49728,,
Sandwell Metropolitan Borough Council,http://www.sandwell.gov.uk/info/200202/performance_and_spending/1079/payments_over_500,01-Mar-2023,FINANCE (Inc SIU),VENN GROUP LTD,Assistant Chief Executive (Excl SIU),828.75,Agency Staff,2223P12_CR00746,49728,,
Sandwell Metropolitan Borough Council,http://www.sandwell.gov.uk/info/200202/performance_and_spending/1079/payments_over_500,01-Mar-2023,FINANCE (Inc SIU),VENN GROUP LTD,Assistant Chief Executive (Excl SIU),731.25,Agency Staff,2223P12_CR00747,49728,,
Sandwell Metropolitan Borough Council,http://www.sandwell.gov.uk/info/200202/performance_and_spending/1079/payments_over_500,01-Mar-2023,FINANCE (Inc SIU),VENN GROUP LTD,Assistant Chief Executive (Excl SIU),1080.00,Agency Staff,2223P12_CR00748,49728,,
Sandwell Metropolitan Borough Council,http://www.sandwell.gov.uk/info/200202/performance_and_spending/1079/payments_over_500,01-Mar-2023,FINANCE (Inc SIU),VENN GROUP LTD,Assistant Chief Executive (Excl SIU),1200.00,Agency Staff,2223P12_CR00749,49728,,
Sandwell Metropolitan Borough Council,http://www.sandwell.gov.uk/info/200202/performance_and_spending/1079/payments_over_500,01-Mar-2023,FINANCE (Inc SIU),VENN GROUP LTD,Assistant Chief Executive (Excl SIU),655.80,Agency Staff,2223P12_CR00750,49728,,
Sandwell Metropolitan Borough Council,http://www.sandwell.gov.uk/info/200202/performance_and_spending/1079/payments_over_500,01-Mar-2023,FINANCE (Inc SIU),VENN GROUP LTD,Assistant Chief Executive (Excl SIU),2175.00,Agency Staff,2223P12_CR00751,49728,,
Sandwell Metropolitan Borough Council,http://www.sandwell.gov.uk/info/200202/performance_and_spending/1079/payments_over_500,01-Mar-2023,FINANCE (Inc SIU),VENN GROUP LTD,Assistant Chief Executive (Excl SIU),3375.00,Agency Staff,2223P12_CR00752,49728,,
Sandwell Metropolitan Borough Council,http://www.sandwell.gov.uk/info/200202/performance_and_spending/1079/payments_over_500,01-Mar-2023,FINANCE (Inc SIU),VENN GROUP LTD,Assistant Chief Executive (Excl SIU),879.49,Agency Staff,2223P12_CR00753,49728,,
Sandwell Metropolitan Borough Council,http://www.sandwell.gov.uk/info/200202/performance_and_spending/1079/payments_over_500,15-Mar-2023,FINANCE (Inc SIU),VENN GROUP LTD,Assistant Chief Executive (Excl SIU),1211.75,Agency Staff,2223P12_CR00754,49728,,
